Body Name,Date Paid,Transaction Number,Amount,Supplier Name,Supplier Type,Expense Area,Cost Centre Description,Expense Type
Cambridgeshire County Council,01-Oct-21,51301652125,"-11,497.24",VOYAGE,CARE ESTABLISHMENT,LD - South Locality - Cost of Care,LD - South Cambs - Special Needs,Residential Care
Cambridgeshire County Council,01-Oct-21,51301651687,"-10,918.56",PRIMROSE HEALTHCARE,CARE ESTABLISHMENT,OP - City & South Blocks,City and South - Long term blocks,Residential Care
Cambridgeshire County Council,01-Oct-21,51301651687,"-10,918.56",PRIMROSE HEALTHCARE,CARE ESTABLISHMENT,OP - City & South Blocks,City and South - Long term blocks,Residential Care
Cambridgeshire County Council,01-Oct-21,51301651687,"-10,918.56",PRIMROSE HEALTHCARE,CARE ESTABLISHMENT,OP - City & South Blocks,City and South - Long term blocks,Residential Care
Cambridgeshire County Council,01-Oct-21,51301651687,"-10,918.56",PRIMROSE HEALTHCARE,CARE ESTABLISHMENT,OP - City & South Blocks,City and South - Long term blocks,Residential Care
Cambridgeshire County Council,01-Oct-21,51301651687,"-10,918.56",PRIMROSE HEALTHCARE,CARE ESTABLISHMENT,OP - City & South Blocks,City and South - Long term blocks,Residential Care
Cambridgeshire County Council,01-Oct-21,51301651687,"-10,918.56",PRIMROSE HEALTHCARE,CARE ESTABLISHMENT,OP - City & South Blocks,City and South - Long term blocks,Residential Care
Cambridgeshire County Council,01-Oct-21,51301651671,"-10,800.00",RHEOLA HEALTHCARE,CARE ESTABLISHMENT,OP - Hunts Blocks,Hunts - Long term blocks,Residential Care
Cambridgeshire County Council,01-Oct-21,51301651671,"-10,800.00",RHEOLA HEALTHCARE,CARE ESTABLISHMENT,OP - Hunts Blocks,Hunts - Long term blocks,Residential Care
Cambridgeshire County Council,01-Oct-21,51301651686,"-8,656.20",RHEOLA HEALTHCARE,CARE ESTABLISHMENT,OP - Hunts Blocks,Hunts - Long term blocks,Residential Care
Cambridgeshire County Council,01-Oct-21,51301651686,"-8,656.20",RHEOLA HEALTHCARE,CARE ESTABLISHMENT,OP - Hunts Blocks,Hunts - Long term blocks,Residential Care
Cambridgeshire County Council,01-Oct-21,51301651686,"-8,656.20",RHEOLA HEALTHCARE,CARE ESTABLISHMENT,OP - Hunts Blocks,Hunts - Long term blocks,Residential Care
Cambridgeshire County Council,01-Oct-21,51301651686,"-8,656.20",RHEOLA HEALTHCARE,CARE ESTABLISHMENT,OP - Hunts Blocks,Hunts - Long term blocks,Residential Care
Cambridgeshire County Council,01-Oct-21,51301651686,"-8,656.20",RHEOLA HEALTHCARE,CARE ESTABLISHMENT,OP - Hunts Blocks,Hunts - Long term blocks,Residential Care
Cambridgeshire County Council,01-Oct-21,51301651686,"-8,656.20",RHEOLA HEALTHCARE,CARE ESTABLISHMENT,OP - Hunts Blocks,Hunts - Long term blocks,Residential Care
Cambridgeshire County Council,01-Oct-21,51301651671,"-6,100.00",RHEOLA HEALTHCARE,CARE ESTABLISHMENT,OP - Hunts Blocks,Hunts - Long term blocks,Residential Care
Cambridgeshire County Council,01-Oct-21,51301651671,"-6,100.00",RHEOLA HEALTHCARE,CARE ESTABLISHMENT,OP - Hunts Blocks,Hunts - Long term blocks,Residential Care
Cambridgeshire County Council,01-Oct-21,51301651727,"-5,798.80",THE CAMBRIDGE NURSING CENTRE,CARE ESTABLISHMENT,OP - City & South Blocks,City and South - Short term blocks,Nursing Care
Cambridgeshire County Council,01-Oct-21,51301651727,"-5,798.80",THE CAMBRIDGE NURSING CENTRE,CARE ESTABLISHMENT,OP - City & South Blocks,City and South - Short term blocks,Nursing Care
Cambridgeshire County Council,01-Oct-21,51301651727,"-5,798.80",THE CAMBRIDGE NURSING CENTRE,CARE ESTABLISHMENT,OP - City & South Blocks,City and South - Short term blocks,Nursing Care
Cambridgeshire County Council,01-Oct-21,51301649872,"-5,235.00",VOYAGE,CARE ESTABLISHMENT,LD - Hunts Locality - Cost of Care,LD - Huntingdonshire - Special Needs,Supported Living
Cambridgeshire County Council,01-Oct-21,51301651727,"-4,142.00",THE CAMBRIDGE NURSING CENTRE,CARE ESTABLISHMENT,OP - City & South Blocks,City and South - Short term blocks,Nursing Care
Cambridgeshire County Council,01-Oct-21,51301611091,"-4,070.00",On Track Education Services Limited,EDUCATION,SEN Placements,Placements - Education,Independent School Placements
Cambridgeshire County Council,01-Oct-21,51301651731,"-4,068.47",THE RED HOUSE RESIDENTIAL & NURSING HOME,CARE ESTABLISHMENT,OP - Hunts Blocks,Hunts - Long term blocks,Nursing Care
Cambridgeshire County Council,01-Oct-21,51301651731,"-4,068.47",THE RED HOUSE RESIDENTIAL & NURSING HOME,CARE ESTABLISHMENT,OP - Hunts Blocks,Hunts - Long term blocks,Nursing Care
Cambridgeshire County Council,01-Oct-21,51301651731,"-4,068.47",THE RED HOUSE RESIDENTIAL & NURSING HOME,CARE ESTABLISHMENT,OP - Hunts Blocks,Hunts - Long term blocks,Nursing Care
Cambridgeshire County Council,01-Oct-21,51301651731,"-4,068.47",THE RED HOUSE RESIDENTIAL & NURSING HOME,CARE ESTABLISHMENT,OP - Hunts Blocks,Hunts - Long term blocks,Nursing Care
Cambridgeshire County Council,01-Oct-21,51301651731,"-4,068.47",THE RED HOUSE RESIDENTIAL & NURSING HOME,CARE ESTABLISHMENT,OP - Hunts Blocks,Hunts - Long term blocks,Nursing Care
Cambridgeshire County Council,01-Oct-21,51301651731,"-4,068.47",THE RED HOUSE RESIDENTIAL & NURSING HOME,CARE ESTABLISHMENT,OP - Hunts Blocks,Hunts - Long term blocks,Nursing Care
Cambridgeshire County Council,01-Oct-21,51301651672,"-3,720.00",ALIWAL HEALTHCARE LTD,CARE ESTABLISHMENT,OP - Fenland Blocks,Fenland - Long term blocks,Residential Care
Cambridgeshire County Council,01-Oct-21,51301651672,"-3,720.00",ALIWAL HEALTHCARE LTD,CARE ESTABLISHMENT,OP - Fenland Blocks,Fenland - Long term blocks,Residential Care
Cambridgeshire County Council,01-Oct-21,51301651698,"-3,590.40",GLENNFIELD CARE CENTRE (OP),CARE ESTABLISHMENT,OP - Fenland Blocks,Fenland - Long term blocks,Nursing Care
Cambridgeshire County Council,01-Oct-21,51301651698,"-3,590.40",GLENNFIELD CARE CENTRE (OP),CARE ESTABLISHMENT,OP - Fenland Blocks,Fenland - Long term blocks,Nursing Care
Cambridgeshire County Council,01-Oct-21,51301651698,"-3,590.40",GLENNFIELD CARE CENTRE (OP),CARE ESTABLISHMENT,OP - Fenland Blocks,Fenland - Long term blocks,Nursing Care
Cambridgeshire County Council,01-Oct-21,51301651698,"-3,590.40",GLENNFIELD CARE CENTRE (OP),CARE ESTABLISHMENT,OP - Fenland Blocks,Fenland - Long term blocks,Nursing Care
Cambridgeshire County Council,01-Oct-21,51301651698,"-3,590.40",GLENNFIELD CARE CENTRE (OP),CARE ESTABLISHMENT,OP - Fenland Blocks,Fenland - Long term blocks,Nursing Care
Cambridgeshire County Council,01-Oct-21,51301651698,"-3,590.40",GLENNFIELD CARE CENTRE (OP),CARE ESTABLISHMENT,OP - Fenland Blocks,Fenland - Long term blocks,Nursing Care
Cambridgeshire County Council,01-Oct-21,51301651676,"-3,572.20",GLENNFIELD CARE CENTRE (OP),CARE ESTABLISHMENT,OP - Fenland Blocks,Fenland - Long term blocks,Nursing Care
Cambridgeshire County Council,01-Oct-21,51301651676,"-3,572.20",GLENNFIELD CARE CENTRE (OP),CARE ESTABLISHMENT,OP - Fenland Blocks,Fenland - Long term blocks,Nursing Care
Cambridgeshire County Council,01-Oct-21,51301651676,"-3,572.20",GLENNFIELD CARE CENTRE (OP),CARE ESTABLISHMENT,OP - Fenland Blocks,Fenland - Long term blocks,Nursing Care
Cambridgeshire County Council,01-Oct-21,51301651676,"-3,572.20",GLENNFIELD CARE CENTRE (OP),CARE ESTABLISHMENT,OP - Fenland Blocks,Fenland - Long term blocks,Nursing Care
Cambridgeshire County Council,01-Oct-21,51301651676,"-3,572.20",GLENNFIELD CARE CENTRE (OP),CARE ESTABLISHMENT,OP - Fenland Blocks,Fenland - Long term blocks,Nursing Care
Cambridgeshire County Council,01-Oct-21,51301651676,"-3,572.20",GLENNFIELD CARE CENTRE (OP),CARE ESTABLISHMENT,OP - Fenland Blocks,Fenland - Long term blocks,Nursing Care
Cambridgeshire County Council,01-Oct-21,51301651675,"-3,522.20",HUNTERS HEALTHCARE (HUNTERS DOWN),CARE ESTABLISHMENT,OP - Hunts Blocks,Hunts - Long term blocks,Nursing Care
Cambridgeshire County Council,01-Oct-21,51301651675,"-3,522.20",HUNTERS HEALTHCARE (HUNTERS DOWN),CARE ESTABLISHMENT,OP - Hunts Blocks,Hunts - Long term blocks,Nursing Care
Cambridgeshire County Council,01-Oct-21,51301651675,"-3,522.20",HUNTERS HEALTHCARE (HUNTERS DOWN),CARE ESTABLISHMENT,OP - Hunts Blocks,Hunts - Long term blocks,Nursing Care
Cambridgeshire County Council,01-Oct-21,51301651675,"-3,522.20",HUNTERS HEALTHCARE (HUNTERS DOWN),CARE ESTABLISHMENT,OP - Hunts Blocks,Hunts - Long term blocks,Nursing Care
Cambridgeshire County Council,01-Oct-21,51301651675,"-3,522.20",HUNTERS HEALTHCARE (HUNTERS DOWN),CARE ESTABLISHMENT,OP - Hunts Blocks,Hunts - Long term blocks,Nursing Care
Cambridgeshire County Council,01-Oct-21,51301651675,"-3,522.20",HUNTERS HEALTHCARE (HUNTERS DOWN),CARE ESTABLISHMENT,OP - Hunts Blocks,Hunts - Long term blocks,Nursing Care
Cambridgeshire County Council,01-Oct-21,51301651694,"-3,510.00",SWAN HOUSE NURSING & RESIDENTIAL HOME,CARE ESTABLISHMENT,OP - Fenland Blocks,Fenland - Long term blocks,Nursing Care
Cambridgeshire County Council,01-Oct-21,51301651694,"-3,510.00",SWAN HOUSE NURSING & RESIDENTIAL HOME,CARE ESTABLISHMENT,OP - Fenland Blocks,Fenland - Long term blocks,Nursing Care
Cambridgeshire County Council,01-Oct-21,51301651694,"-3,510.00",SWAN HOUSE NURSING & RESIDENTIAL HOME,CARE ESTABLISHMENT,OP - Fenland Blocks,Fenland - Long term blocks,Nursing Care
Cambridgeshire County Council,01-Oct-21,51301651694,"-3,510.00",SWAN HOUSE NURSING & RESIDENTIAL HOME,CARE ESTABLISHMENT,OP - Fenland Blocks,Fenland - Long term blocks,Nursing Care
Cambridgeshire County Council,01-Oct-21,51301651694,"-3,510.00",SWAN HOUSE NURSING & RESIDENTIAL HOME,CARE ESTABLISHMENT,OP - Fenland Blocks,Fenland - Long term blocks,Nursing Care
Cambridgeshire County Council,01-Oct-21,51301651694,"-3,510.00",SWAN HOUSE NURSING & RESIDENTIAL HOME,CARE ESTABLISHMENT,OP - Fenland Blocks,Fenland - Long term blocks,Nursing Care
Cambridgeshire County Council,01-Oct-21,51301651670,"-3,493.21",FLORIDA AVENUE (VOYAGE),CARE ESTABLISHMENT,LD - Fenland Locality - Cost of Care,LD - Fenland  - Care,Supported Living
Cambridgeshire County Council,01-Oct-21,51301651675,"-3,422.20",HUNTERS HEALTHCARE (HUNTERS DOWN),CARE ESTABLISHMENT,OP - Hunts Blocks,Hunts - Long term blocks,Nursing Care
Cambridgeshire County Council,01-Oct-21,51301651675,"-3,422.20",HUNTERS HEALTHCARE (HUNTERS DOWN),CARE ESTABLISHMENT,OP - Hunts Blocks,Hunts - Long term blocks,Nursing Care
Cambridgeshire County Council,01-Oct-21,51301651675,"-3,422.20",HUNTERS HEALTHCARE (HUNTERS DOWN),CARE ESTABLISHMENT,OP - Hunts Blocks,Hunts - Long term blocks,Nursing Care
Cambridgeshire County Council,01-Oct-21,51301651675,"-3,422.20",HUNTERS HEALTHCARE (HUNTERS DOWN),CARE ESTABLISHMENT,OP - Hunts Blocks,Hunts - Long term blocks,Nursing Care
Cambridgeshire County Council,01-Oct-21,51301651675,"-3,422.20",HUNTERS HEALTHCARE (HUNTERS DOWN),CARE ESTABLISHMENT,OP - Hunts Blocks,Hunts - Long term blocks,Nursing Care
Cambridgeshire County Council,01-Oct-21,51301651675,"-3,422.20",HUNTERS HEALTHCARE (HUNTERS DOWN),CARE ESTABLISHMENT,OP - Hunts Blocks,Hunts - Long term blocks,Nursing Care
Cambridgeshire County Council,01-Oct-21,51301651672,"-3,240.00",ALIWAL HEALTHCARE LTD,CARE ESTABLISHMENT,OP - Fenland Blocks,Fenland - Long term blocks,Residential Care
Cambridgeshire County Council,01-Oct-21,51301651672,"-3,240.00",ALIWAL HEALTHCARE LTD,CARE ESTABLISHMENT,OP - Fenland Blocks,Fenland - Long term blocks,Residential Care
Cambridgeshire County Council,01-Oct-21,51301651714,"-3,204.48",RADIS COMMUNITY CARE,CARE ESTABLISHMENT,OP - Hunts Locality - Cost of Care,Hunts OP Team - Care,Supported Living
Cambridgeshire County Council,01-Oct-21,51301651714,"-3,204.48",RADIS COMMUNITY CARE,CARE ESTABLISHMENT,OP - Hunts Locality - Cost of Care,Hunts OP Team - Care,Supported Living
Cambridgeshire County Council,01-Oct-21,51301651714,"-3,204.48",RADIS COMMUNITY CARE,CARE ESTABLISHMENT,OP - Hunts Locality - Cost of Care,Hunts OP Team - Care,Supported Living
Cambridgeshire County Council,01-Oct-21,51301651714,"-3,204.48",RADIS COMMUNITY CARE,CARE ESTABLISHMENT,OP - Hunts Locality - Cost of Care,Hunts OP Team - Care,Supported Living
Cambridgeshire County Council,01-Oct-21,51301651714,"-3,204.48",RADIS COMMUNITY CARE,CARE ESTABLISHMENT,OP - Hunts Locality - Cost of Care,Hunts OP Team - Care,Supported Living
Cambridgeshire County Council,01-Oct-21,51301651714,"-3,204.48",RADIS COMMUNITY CARE,CARE ESTABLISHMENT,OP - Hunts Locality - Cost of Care,Hunts OP Team - Care,Supported Living
Cambridgeshire County Council,01-Oct-21,51301651714,"-3,204.48",RADIS COMMUNITY CARE,CARE ESTABLISHMENT,OP - Hunts Locality - Cost of Care,Hunts OP Team - Care,Supported Living
Cambridgeshire County Council,01-Oct-21,51301651714,"-3,204.48",RADIS COMMUNITY CARE,CARE ESTABLISHMENT,OP - Hunts Locality - Cost of Care,Hunts OP Team - Care,Supported Living
Cambridgeshire County Council,01-Oct-21,51301651714,"-3,204.48",RADIS COMMUNITY CARE,CARE ESTABLISHMENT,OP - Hunts Locality - Cost of Care,Hunts OP Team - Care,Supported Living
Cambridgeshire County Council,01-Oct-21,51301651714,"-3,204.48",RADIS COMMUNITY CARE,CARE ESTABLISHMENT,OP - Hunts Locality - Cost of Care,Hunts OP Team - Care,Supported Living
Cambridgeshire County Council,01-Oct-21,51301651714,"-3,204.48",RADIS COMMUNITY CARE,CARE ESTABLISHMENT,OP - Hunts Locality - Cost of Care,Hunts OP Team - Care,Supported Living
Cambridgeshire County Council,01-Oct-21,51301651714,"-3,204.48",RADIS COMMUNITY CARE,CARE ESTABLISHMENT,OP - Hunts Locality - Cost of Care,Hunts OP Team - Care,Supported Living
Cambridgeshire County Council,01-Oct-21,51301651714,"-3,204.48",RADIS COMMUNITY CARE,CARE ESTABLISHMENT,OP - Hunts Locality - Cost of Care,Hunts OP Team - Care,Supported Living
Cambridgeshire County Council,01-Oct-21,51301651714,"-3,204.48",RADIS COMMUNITY CARE,CARE ESTABLISHMENT,OP - Hunts Locality - Cost of Care,Hunts OP Team - Care,Supported Living
Cambridgeshire County Council,01-Oct-21,51301651714,"-3,204.48",RADIS COMMUNITY CARE,CARE ESTABLISHMENT,OP - Hunts Locality - Cost of Care,Hunts OP Team - Care,Supported Living
Cambridgeshire County Council,01-Oct-21,51301651714,"-3,204.48",RADIS COMMUNITY CARE,CARE ESTABLISHMENT,OP - Hunts Locality - Cost of Care,Hunts OP Team - Care,Supported Living
Cambridgeshire County Council,01-Oct-21,51301651714,"-3,204.48",RADIS COMMUNITY CARE,CARE ESTABLISHMENT,OP - Hunts Locality - Cost of Care,Hunts OP Team - Care,Supported Living
Cambridgeshire County Council,01-Oct-21,51301651714,"-3,204.48",RADIS COMMUNITY CARE,CARE ESTABLISHMENT,OP - Hunts Locality - Cost of Care,Hunts OP Team - Care,Supported Living
Cambridgeshire County Council,01-Oct-21,51301651714,"-3,204.48",RADIS COMMUNITY CARE,CARE ESTABLISHMENT,OP - Hunts Locality - Cost of Care,Hunts OP Team - Care,Supported Living
Cambridgeshire County Council,01-Oct-21,51301651714,"-3,204.48",RADIS COMMUNITY CARE,CARE ESTABLISHMENT,OP - Hunts Locality - Cost of Care,Hunts OP Team - Care,Supported Living
Cambridgeshire County Council,01-Oct-21,51301651714,"-3,204.48",RADIS COMMUNITY CARE,CARE ESTABLISHMENT,OP - Hunts Locality - Cost of Care,Hunts OP Team - Care,Supported Living
Cambridgeshire County Council,01-Oct-21,51301651714,"-3,204.48",RADIS COMMUNITY CARE,CARE ESTABLISHMENT,OP - Hunts Locality - Cost of Care,Hunts OP Team - Care,Supported Living
Cambridgeshire County Council,01-Oct-21,51301651714,"-3,204.48",RADIS COMMUNITY CARE,CARE ESTABLISHMENT,OP - Hunts Locality - Cost of Care,Hunts OP Team - Care,Supported Living
Cambridgeshire County Council,01-Oct-21,51301651714,"-3,204.48",RADIS COMMUNITY CARE,CARE ESTABLISHMENT,OP - Hunts Locality - Cost of Care,Hunts OP Team - Care,Supported Living
Cambridgeshire County Council,01-Oct-21,51301651714,"-3,204.48",RADIS COMMUNITY CARE,CARE ESTABLISHMENT,OP - Hunts Locality - Cost of Care,Hunts OP Team - Care,Supported Living
Cambridgeshire County Council,01-Oct-21,51301651714,"-3,204.48",RADIS COMMUNITY CARE,CARE ESTABLISHMENT,OP - Hunts Locality - Cost of Care,Hunts OP Team - Care,Supported Living
Cambridgeshire County Council,01-Oct-21,51301651714,"-3,204.48",RADIS COMMUNITY CARE,CARE ESTABLISHMENT,OP - Hunts Locality - Cost of Care,Hunts OP Team - Care,Supported Living
Cambridgeshire County Council,01-Oct-21,51301651714,"-3,204.48",RADIS COMMUNITY CARE,CARE ESTABLISHMENT,OP - Hunts Locality - Cost of Care,Hunts OP Team - Care,Supported Living
Cambridgeshire County Council,01-Oct-21,51301651714,"-3,204.48",RADIS COMMUNITY CARE,CARE ESTABLISHMENT,OP - Hunts Locality - Cost of Care,Hunts OP Team - Care,Supported Living
Cambridgeshire County Council,01-Oct-21,51301651714,"-3,204.48",RADIS COMMUNITY CARE,CARE ESTABLISHMENT,OP - Hunts Locality - Cost of Care,Hunts OP Team - Care,Supported Living
Cambridgeshire County Council,01-Oct-21,51301651714,"-3,204.48",RADIS COMMUNITY CARE,CARE ESTABLISHMENT,OP - Hunts Locality - Cost of Care,Hunts OP Team - Care,Supported Living
Cambridgeshire County Council,01-Oct-21,51301651714,"-3,204.48",RADIS COMMUNITY CARE,CARE ESTABLISHMENT,OP - Hunts Locality - Cost of Care,Hunts OP Team - Care,Supported Living
Cambridgeshire County Council,01-Oct-21,51301651714,"-3,204.48",RADIS COMMUNITY CARE,CARE ESTABLISHMENT,OP - Hunts Locality - Cost of Care,Hunts OP Team - Care,Supported Living
Cambridgeshire County Council,01-Oct-21,51301651714,"-3,204.48",RADIS COMMUNITY CARE,CARE ESTABLISHMENT,OP - Hunts Locality - Cost of Care,Hunts OP Team - Care,Supported Living
Cambridgeshire County Council,01-Oct-21,51301651714,"-3,204.48",RADIS COMMUNITY CARE,CARE ESTABLISHMENT,OP - Hunts Locality - Cost of Care,Hunts OP Team - Care,Supported Living
Cambridgeshire County Council,01-Oct-21,51301651714,"-3,204.48",RADIS COMMUNITY CARE,CARE ESTABLISHMENT,OP - Hunts Locality - Cost of Care,Hunts OP Team - Care,Supported Living
Cambridgeshire County Council,01-Oct-21,51301651714,"-3,204.48",RADIS COMMUNITY CARE,CARE ESTABLISHMENT,OP - Hunts Locality - Cost of Care,Hunts OP Team - Care,Supported Living
Cambridgeshire County Council,01-Oct-21,51301651714,"-3,204.48",RADIS COMMUNITY CARE,CARE ESTABLISHMENT,OP - Hunts Locality - Cost of Care,Hunts OP Team - Care,Supported Living
Cambridgeshire County Council,01-Oct-21,51301651714,"-3,204.48",RADIS COMMUNITY CARE,CARE ESTABLISHMENT,OP - Hunts Locality - Cost of Care,Hunts OP Team - Care,Supported Living
Cambridgeshire County Council,01-Oct-21,51301651714,"-3,204.48",RADIS COMMUNITY CARE,CARE ESTABLISHMENT,OP - Hunts Locality - Cost of Care,Hunts OP Team - Care,Supported Living
Cambridgeshire County Council,01-Oct-21,51301651714,"-3,204.48",RADIS COMMUNITY CARE,CARE ESTABLISHMENT,OP - Hunts Locality - Cost of Care,Hunts OP Team - Care,Supported Living
Cambridgeshire County Council,01-Oct-21,51301651714,"-3,204.48",RADIS COMMUNITY CARE,CARE ESTABLISHMENT,OP - Hunts Locality - Cost of Care,Hunts OP Team - Care,Supported Living
Cambridgeshire County Council,01-Oct-21,51301651714,"-3,204.48",RADIS COMMUNITY CARE,CARE ESTABLISHMENT,OP - Hunts Locality - Cost of Care,Hunts OP Team - Care,Supported Living
Cambridgeshire County Council,01-Oct-21,51301651714,"-3,204.48",RADIS COMMUNITY CARE,CARE ESTABLISHMENT,OP - Hunts Locality - Cost of Care,Hunts OP Team - Care,Supported Living
Cambridgeshire County Council,01-Oct-21,51301651714,"-3,204.48",RADIS COMMUNITY CARE,CARE ESTABLISHMENT,OP - Hunts Locality - Cost of Care,Hunts OP Team - Care,Supported Living
Cambridgeshire County Council,01-Oct-21,51301651714,"-3,204.48",RADIS COMMUNITY CARE,CARE ESTABLISHMENT,OP - Hunts Locality - Cost of Care,Hunts OP Team - Care,Supported Living
Cambridgeshire County Council,01-Oct-21,51301651714,"-3,204.48",RADIS COMMUNITY CARE,CARE ESTABLISHMENT,OP - Hunts Locality - Cost of Care,Hunts OP Team - Care,Supported Living
Cambridgeshire County Council,01-Oct-21,51301651714,"-3,204.48",RADIS COMMUNITY CARE,CARE ESTABLISHMENT,OP - Hunts Locality - Cost of Care,Hunts OP Team - Care,Supported Living
Cambridgeshire County Council,01-Oct-21,51301651714,"-3,204.48",RADIS COMMUNITY CARE,CARE ESTABLISHMENT,OP - Hunts Locality - Cost of Care,Hunts OP Team - Care,Supported Living
Cambridgeshire County Council,01-Oct-21,51301651714,"-3,204.48",RADIS COMMUNITY CARE,CARE ESTABLISHMENT,OP - Hunts Locality - Cost of Care,Hunts OP Team - Care,Supported Living
Cambridgeshire County Council,01-Oct-21,51301651714,"-3,204.48",RADIS COMMUNITY CARE,CARE ESTABLISHMENT,OP - Hunts Locality - Cost of Care,Hunts OP Team - Care,Supported Living
Cambridgeshire County Council,01-Oct-21,51301651714,"-3,204.48",RADIS COMMUNITY CARE,CARE ESTABLISHMENT,OP - Hunts Locality - Cost of Care,Hunts OP Team - Care,Supported Living
Cambridgeshire County Council,01-Oct-21,51301651714,"-3,204.48",RADIS COMMUNITY CARE,CARE ESTABLISHMENT,OP - Hunts Locality - Cost of Care,Hunts OP Team - Care,Supported Living
Cambridgeshire County Council,01-Oct-21,51301651714,"-3,204.48",RADIS COMMUNITY CARE,CARE ESTABLISHMENT,OP - Hunts Locality - Cost of Care,Hunts OP Team - Care,Supported Living
Cambridgeshire County Council,01-Oct-21,51301651714,"-3,204.48",RADIS COMMUNITY CARE,CARE ESTABLISHMENT,OP - Hunts Locality - Cost of Care,Hunts OP Team - Care,Supported Living
Cambridgeshire County Council,01-Oct-21,51301651714,"-3,204.48",RADIS COMMUNITY CARE,CARE ESTABLISHMENT,OP - Hunts Locality - Cost of Care,Hunts OP Team - Care,Supported Living
Cambridgeshire County Council,01-Oct-21,51301651714,"-3,204.48",RADIS COMMUNITY CARE,CARE ESTABLISHMENT,OP - Hunts Locality - Cost of Care,Hunts OP Team - Care,Supported Living
Cambridgeshire County Council,01-Oct-21,51301651714,"-3,204.48",RADIS COMMUNITY CARE,CARE ESTABLISHMENT,OP - Hunts Locality - Cost of Care,Hunts OP Team - Care,Supported Living
Cambridgeshire County Council,01-Oct-21,51301651714,"-3,204.48",RADIS COMMUNITY CARE,CARE ESTABLISHMENT,OP - Hunts Locality - Cost of Care,Hunts OP Team - Care,Supported Living
Cambridgeshire County Council,01-Oct-21,51301651714,"-3,204.48",RADIS COMMUNITY CARE,CARE ESTABLISHMENT,OP - Hunts Locality - Cost of Care,Hunts OP Team - Care,Supported Living
Cambridgeshire County Council,01-Oct-21,51301651714,"-3,204.48",RADIS COMMUNITY CARE,CARE ESTABLISHMENT,OP - Hunts Locality - Cost of Care,Hunts OP Team - Care,Supported Living
Cambridgeshire County Council,01-Oct-21,51301651714,"-3,204.48",RADIS COMMUNITY CARE,CARE ESTABLISHMENT,OP - Hunts Locality - Cost of Care,Hunts OP Team - Care,Supported Living
Cambridgeshire County Council,01-Oct-21,51301651714,"-3,204.48",RADIS COMMUNITY CARE,CARE ESTABLISHMENT,OP - Hunts Locality - Cost of Care,Hunts OP Team - Care,Supported Living
Cambridgeshire County Council,01-Oct-21,51301651714,"-3,204.48",RADIS COMMUNITY CARE,CARE ESTABLISHMENT,OP - Hunts Locality - Cost of Care,Hunts OP Team - Care,Supported Living
Cambridgeshire County Council,01-Oct-21,51301651714,"-3,204.48",RADIS COMMUNITY CARE,CARE ESTABLISHMENT,OP - Hunts Locality - Cost of Care,Hunts OP Team - Care,Supported Living
Cambridgeshire County Council,01-Oct-21,51301651714,"-3,204.48",RADIS COMMUNITY CARE,CARE ESTABLISHMENT,OP - Hunts Locality - Cost of Care,Hunts OP Team - Care,Supported Living
Cambridgeshire County Council,01-Oct-21,51301651714,"-3,204.48",RADIS COMMUNITY CARE,CARE ESTABLISHMENT,OP - Hunts Locality - Cost of Care,Hunts OP Team - Care,Supported Living
Cambridgeshire County Council,01-Oct-21,51301651714,"-3,204.48",RADIS COMMUNITY CARE,CARE ESTABLISHMENT,OP - Hunts Locality - Cost of Care,Hunts OP Team - Care,Supported Living
Cambridgeshire County Council,01-Oct-21,51301651714,"-3,204.48",RADIS COMMUNITY CARE,CARE ESTABLISHMENT,OP - Hunts Locality - Cost of Care,Hunts OP Team - Care,Supported Living
Cambridgeshire County Council,01-Oct-21,51301651714,"-3,204.48",RADIS COMMUNITY CARE,CARE ESTABLISHMENT,OP - Hunts Locality - Cost of Care,Hunts OP Team - Care,Supported Living
Cambridgeshire County Council,01-Oct-21,51301651714,"-3,204.48",RADIS COMMUNITY CARE,CARE ESTABLISHMENT,OP - Hunts Locality - Cost of Care,Hunts OP Team - Care,Supported Living
Cambridgeshire County Council,01-Oct-21,51301651714,"-3,204.48",RADIS COMMUNITY CARE,CARE ESTABLISHMENT,OP - Hunts Locality - Cost of Care,Hunts OP Team - Care,Supported Living
Cambridgeshire County Council,01-Oct-21,51301651714,"-3,204.48",RADIS COMMUNITY CARE,CARE ESTABLISHMENT,OP - Hunts Locality - Cost of Care,Hunts OP Team - Care,Supported Living
Cambridgeshire County Council,01-Oct-21,51301651714,"-3,204.48",RADIS COMMUNITY CARE,CARE ESTABLISHMENT,OP - Hunts Locality - Cost of Care,Hunts OP Team - Care,Supported Living
Cambridgeshire County Council,01-Oct-21,51301647140,"-3,175.05",THE ELMS NURSING HOME,CARE ESTABLISHMENT,OP - Fenland Blocks,Fenland - Long term blocks,Nursing Care
Cambridgeshire County Council,01-Oct-21,51301647140,"-3,175.05",THE ELMS NURSING HOME,CARE ESTABLISHMENT,OP - Fenland Blocks,Fenland - Long term blocks,Nursing Care
Cambridgeshire County Council,01-Oct-21,51301647140,"-3,175.05",THE ELMS NURSING HOME,CARE ESTABLISHMENT,OP - Fenland Blocks,Fenland - Long term blocks,Nursing Care
Cambridgeshire County Council,01-Oct-21,51301647140,"-3,175.05",THE ELMS NURSING HOME,CARE ESTABLISHMENT,OP - Fenland Blocks,Fenland - Long term blocks,Nursing Care
Cambridgeshire County Council,01-Oct-21,51301647140,"-3,175.05",THE ELMS NURSING HOME,CARE ESTABLISHMENT,OP - Fenland Blocks,Fenland - Long term blocks,Nursing Care
Cambridgeshire County Council,01-Oct-21,51301647140,"-3,175.05",THE ELMS NURSING HOME,CARE ESTABLISHMENT,OP - Fenland Blocks,Fenland - Long term blocks,Nursing Care
Cambridgeshire County Council,01-Oct-21,51301647140,"-3,175.05",THE ELMS NURSING HOME,CARE ESTABLISHMENT,OP - Fenland Blocks,Fenland - Long term blocks,Nursing Care
Cambridgeshire County Council,01-Oct-21,51301647140,"-3,175.05",THE ELMS NURSING HOME,CARE ESTABLISHMENT,OP - Fenland Blocks,Fenland - Long term blocks,Nursing Care
Cambridgeshire County Council,01-Oct-21,51301647140,"-3,175.05",THE ELMS NURSING HOME,CARE ESTABLISHMENT,OP - Fenland Blocks,Fenland - Long term blocks,Nursing Care
Cambridgeshire County Council,01-Oct-21,51301647140,"-3,175.05",THE ELMS NURSING HOME,CARE ESTABLISHMENT,OP - Fenland Blocks,Fenland - Long term blocks,Nursing Care
Cambridgeshire County Council,01-Oct-21,51301647140,"-3,175.05",THE ELMS NURSING HOME,CARE ESTABLISHMENT,OP - Fenland Blocks,Fenland - Long term blocks,Nursing Care
Cambridgeshire County Council,01-Oct-21,51301651741,"-3,109.97",RADIS COMMUNITY CARE,CARE ESTABLISHMENT,OP - Fenland Locality - Cost of Care,Older People - Fenland - Care,Supported Living
Cambridgeshire County Council,01-Oct-21,51301651741,"-3,109.97",RADIS COMMUNITY CARE,CARE ESTABLISHMENT,OP - Fenland Locality - Cost of Care,Older People - Fenland - Care,Supported Living
Cambridgeshire County Council,01-Oct-21,51301651741,"-3,109.97",RADIS COMMUNITY CARE,CARE ESTABLISHMENT,OP - Fenland Locality - Cost of Care,Older People - Fenland - Care,Supported Living
Cambridgeshire County Council,01-Oct-21,51301651741,"-3,109.97",RADIS COMMUNITY CARE,CARE ESTABLISHMENT,OP - Fenland Locality - Cost of Care,Older People - Fenland - Care,Supported Living
Cambridgeshire County Council,01-Oct-21,51301651741,"-3,109.97",RADIS COMMUNITY CARE,CARE ESTABLISHMENT,OP - Fenland Locality - Cost of Care,Older People - Fenland - Care,Supported Living
Cambridgeshire County Council,01-Oct-21,51301651741,"-3,109.97",RADIS COMMUNITY CARE,CARE ESTABLISHMENT,OP - Fenland Locality - Cost of Care,Older People - Fenland - Care,Supported Living
Cambridgeshire County Council,01-Oct-21,51301651741,"-3,109.97",RADIS COMMUNITY CARE,CARE ESTABLISHMENT,OP - Fenland Locality - Cost of Care,Older People - Fenland - Care,Supported Living
Cambridgeshire County Council,01-Oct-21,51301651741,"-3,109.97",RADIS COMMUNITY CARE,CARE ESTABLISHMENT,OP - Fenland Locality - Cost of Care,Older People - Fenland - Care,Supported Living
Cambridgeshire County Council,01-Oct-21,51301651741,"-3,109.97",RADIS COMMUNITY CARE,CARE ESTABLISHMENT,OP - Fenland Locality - Cost of Care,Older People - Fenland - Care,Supported Living
Cambridgeshire County Council,01-Oct-21,51301651741,"-3,109.97",RADIS COMMUNITY CARE,CARE ESTABLISHMENT,OP - Fenland Locality - Cost of Care,Older People - Fenland - Care,Supported Living
Cambridgeshire County Council,01-Oct-21,51301651741,"-3,109.97",RADIS COMMUNITY CARE,CARE ESTABLISHMENT,OP - Fenland Locality - Cost of Care,Older People - Fenland - Care,Supported Living
Cambridgeshire County Council,01-Oct-21,51301651741,"-3,109.97",RADIS COMMUNITY CARE,CARE ESTABLISHMENT,OP - Fenland Locality - Cost of Care,Older People - Fenland - Care,Supported Living
Cambridgeshire County Council,01-Oct-21,51301651741,"-3,109.97",RADIS COMMUNITY CARE,CARE ESTABLISHMENT,OP - Fenland Locality - Cost of Care,Older People - Fenland - Care,Supported Living
Cambridgeshire County Council,01-Oct-21,51301651741,"-3,109.97",RADIS COMMUNITY CARE,CARE ESTABLISHMENT,OP - Fenland Locality - Cost of Care,Older People - Fenland - Care,Supported Living
Cambridgeshire County Council,01-Oct-21,51301651741,"-3,109.97",RADIS COMMUNITY CARE,CARE ESTABLISHMENT,OP - Fenland Locality - Cost of Care,Older People - Fenland - Care,Supported Living
Cambridgeshire County Council,01-Oct-21,51301651741,"-3,109.97",RADIS COMMUNITY CARE,CARE ESTABLISHMENT,OP - Fenland Locality - Cost of Care,Older People - Fenland - Care,Supported Living
Cambridgeshire County Council,01-Oct-21,51301651741,"-3,109.97",RADIS COMMUNITY CARE,CARE ESTABLISHMENT,OP - Fenland Locality - Cost of Care,Older People - Fenland - Care,Supported Living
Cambridgeshire County Council,01-Oct-21,51301651741,"-3,109.97",RADIS COMMUNITY CARE,CARE ESTABLISHMENT,OP - Fenland Locality - Cost of Care,Older People - Fenland - Care,Supported Living
Cambridgeshire County Council,01-Oct-21,51301651741,"-3,109.97",RADIS COMMUNITY CARE,CARE ESTABLISHMENT,OP - Fenland Locality - Cost of Care,Older People - Fenland - Care,Supported Living
Cambridgeshire County Council,01-Oct-21,51301651673,"-3,100.00",GLENNFIELD CARE CENTRE (OP),CARE ESTABLISHMENT,OP - Fenland Blocks,Fenland - Long term blocks,Residential Care
Cambridgeshire County Council,01-Oct-21,51301651673,"-3,100.00",GLENNFIELD CARE CENTRE (OP),CARE ESTABLISHMENT,OP - Fenland Blocks,Fenland - Long term blocks,Residential Care
Cambridgeshire County Council,01-Oct-21,51301651427,"-3,095.12",RENTON COURT (VOYAGE),CARE ESTABLISHMENT,LD - Hunts Locality - Cost of Care,LD - Huntingdonshire - Care,Supported Living
Cambridgeshire County Council,01-Oct-21,51301647139,"-2,906.05",HC-ONE,CARE ESTABLISHMENT,OP - Hunts Blocks,Hunts - Long term blocks,Nursing Care
Cambridgeshire County Council,01-Oct-21,51301647139,"-2,906.05",HC-ONE,CARE ESTABLISHMENT,OP - Hunts Blocks,Hunts - Long term blocks,Nursing Care
Cambridgeshire County Council,01-Oct-21,51301647139,"-2,906.05",HC-ONE,CARE ESTABLISHMENT,OP - Hunts Blocks,Hunts - Long term blocks,Nursing Care
Cambridgeshire County Council,01-Oct-21,51301647139,"-2,906.05",HC-ONE,CARE ESTABLISHMENT,OP - Hunts Blocks,Hunts - Long term blocks,Nursing Care
Cambridgeshire County Council,01-Oct-21,51301647139,"-2,906.05",HC-ONE,CARE ESTABLISHMENT,OP - Hunts Blocks,Hunts - Long term blocks,Nursing Care
Cambridgeshire County Council,01-Oct-21,51301647139,"-2,906.05",HC-ONE,CARE ESTABLISHMENT,OP - Hunts Blocks,Hunts - Long term blocks,Nursing Care
Cambridgeshire County Council,01-Oct-21,51301647139,"-2,906.05",HC-ONE,CARE ESTABLISHMENT,OP - Hunts Blocks,Hunts - Long term blocks,Nursing Care
Cambridgeshire County Council,01-Oct-21,51301647139,"-2,906.05",HC-ONE,CARE ESTABLISHMENT,OP - Hunts Blocks,Hunts - Long term blocks,Nursing Care
Cambridgeshire County Council,01-Oct-21,51301647139,"-2,906.05",HC-ONE,CARE ESTABLISHMENT,OP - Hunts Blocks,Hunts - Long term blocks,Nursing Care
Cambridgeshire County Council,01-Oct-21,51301647139,"-2,906.05",HC-ONE,CARE ESTABLISHMENT,OP - Hunts Blocks,Hunts - Long term blocks,Nursing Care
Cambridgeshire County Council,01-Oct-21,51301647139,"-2,906.05",HC-ONE,CARE ESTABLISHMENT,OP - Hunts Blocks,Hunts - Long term blocks,Nursing Care
Cambridgeshire County Council,01-Oct-21,51301651714,"-2,893.28",RADIS COMMUNITY CARE,CARE ESTABLISHMENT,OP - Hunts Locality - Cost of Care,Hunts OP Team - Care,Supported Living
Cambridgeshire County Council,01-Oct-21,51301651741,"-2,665.69",RADIS COMMUNITY CARE,CARE ESTABLISHMENT,OP - Fenland Locality - Cost of Care,Older People - Fenland - Care,Supported Living
Cambridgeshire County Council,01-Oct-21,51301649022,"-2,340.05",VOYAGE,CARE ESTABLISHMENT,LD - East Locality - Cost of Care,LD - East Cambs - Care,Residential Care
Cambridgeshire County Council,01-Oct-21,51301649022,"-2,340.05",VOYAGE,CARE ESTABLISHMENT,LD - East Locality - Cost of Care,LD - East Cambs - Care,Residential Care
Cambridgeshire County Council,01-Oct-21,51301649022,"-2,340.05",VOYAGE,CARE ESTABLISHMENT,LD - East Locality - Cost of Care,LD - East Cambs - Care,Residential Care
Cambridgeshire County Council,01-Oct-21,51301649022,"-2,340.05",VOYAGE,CARE ESTABLISHMENT,LD - East Locality - Cost of Care,LD - East Cambs - Care,Residential Care
Cambridgeshire County Council,01-Oct-21,51301649022,"-2,340.05",VOYAGE,CARE ESTABLISHMENT,LD - East Locality - Cost of Care,LD - East Cambs - Care,Residential Care
Cambridgeshire County Council,01-Oct-21,51301649022,"-2,340.05",VOYAGE,CARE ESTABLISHMENT,LD - East Locality - Cost of Care,LD - East Cambs - Care,Residential Care
Cambridgeshire County Council,01-Oct-21,51301649022,"-2,340.05",VOYAGE,CARE ESTABLISHMENT,LD - East Locality - Cost of Care,LD - East Cambs - Care,Residential Care
Cambridgeshire County Council,01-Oct-21,51301649022,"-2,340.05",VOYAGE,CARE ESTABLISHMENT,LD - East Locality - Cost of Care,LD - East Cambs - Care,Residential Care
Cambridgeshire County Council,01-Oct-21,51301649022,"-2,340.05",VOYAGE,CARE ESTABLISHMENT,LD - East Locality - Cost of Care,LD - East Cambs - Care,Residential Care
Cambridgeshire County Council,01-Oct-21,51301649022,"-2,340.05",VOYAGE,CARE ESTABLISHMENT,LD - East Locality - Cost of Care,LD - East Cambs - Care,Residential Care
Cambridgeshire County Council,01-Oct-21,51301649022,"-2,340.05",VOYAGE,CARE ESTABLISHMENT,LD - East Locality - Cost of Care,LD - East Cambs - Care,Residential Care
Cambridgeshire County Council,01-Oct-21,51301649022,"-2,340.05",VOYAGE,CARE ESTABLISHMENT,LD - East Locality - Cost of Care,LD - East Cambs - Care,Residential Care
Cambridgeshire County Council,01-Oct-21,51301649022,"-2,340.05",VOYAGE,CARE ESTABLISHMENT,LD - East Locality - Cost of Care,LD - East Cambs - Care,Residential Care
Cambridgeshire County Council,01-Oct-21,51301649022,"-2,340.05",VOYAGE,CARE ESTABLISHMENT,LD - East Locality - Cost of Care,LD - East Cambs - Care,Residential Care
Cambridgeshire County Council,01-Oct-21,51301649022,"-2,340.05",VOYAGE,CARE ESTABLISHMENT,LD - East Locality - Cost of Care,LD - East Cambs - Care,Residential Care
Cambridgeshire County Council,01-Oct-21,51301649022,"-2,340.05",VOYAGE,CARE ESTABLISHMENT,LD - East Locality - Cost of Care,LD - East Cambs - Care,Residential Care
Cambridgeshire County Council,01-Oct-21,51301649022,"-2,340.05",VOYAGE,CARE ESTABLISHMENT,LD - East Locality - Cost of Care,LD - East Cambs - Care,Residential Care
Cambridgeshire County Council,01-Oct-21,51301649022,"-2,340.05",VOYAGE,CARE ESTABLISHMENT,LD - East Locality - Cost of Care,LD - East Cambs - Care,Residential Care
Cambridgeshire County Council,01-Oct-21,51301649022,"-2,340.05",VOYAGE,CARE ESTABLISHMENT,LD - East Locality - Cost of Care,LD - East Cambs - Care,Residential Care
Cambridgeshire County Council,01-Oct-21,51301649022,"-2,340.05",VOYAGE,CARE ESTABLISHMENT,LD - East Locality - Cost of Care,LD - East Cambs - Care,Residential Care
Cambridgeshire County Council,01-Oct-21,51301649022,"-2,340.05",VOYAGE,CARE ESTABLISHMENT,LD - East Locality - Cost of Care,LD - East Cambs - Care,Residential Care
Cambridgeshire County Council,01-Oct-21,51301649098,"-2,304.66",VOYAGE,CARE ESTABLISHMENT,LD - South Locality - Cost of Care,LD - South Cambs - Care,Residential Care
Cambridgeshire County Council,01-Oct-21,51301649098,"-2,304.66",VOYAGE,CARE ESTABLISHMENT,LD - South Locality - Cost of Care,LD - South Cambs - Care,Residential Care
Cambridgeshire County Council,01-Oct-21,51301649098,"-2,304.66",VOYAGE,CARE ESTABLISHMENT,LD - South Locality - Cost of Care,LD - South Cambs - Care,Residential Care
Cambridgeshire County Council,01-Oct-21,51301649098,"-2,304.66",VOYAGE,CARE ESTABLISHMENT,LD - South Locality - Cost of Care,LD - South Cambs - Care,Residential Care
Cambridgeshire County Council,01-Oct-21,51301649098,"-2,304.66",VOYAGE,CARE ESTABLISHMENT,LD - South Locality - Cost of Care,LD - South Cambs - Care,Residential Care
Cambridgeshire County Council,01-Oct-21,51301649098,"-2,304.66",VOYAGE,CARE ESTABLISHMENT,LD - South Locality - Cost of Care,LD - South Cambs - Care,Residential Care
Cambridgeshire County Council,01-Oct-21,51301649098,"-2,304.66",VOYAGE,CARE ESTABLISHMENT,LD - South Locality - Cost of Care,LD - South Cambs - Care,Residential Care
Cambridgeshire County Council,01-Oct-21,51301649098,"-2,304.66",VOYAGE,CARE ESTABLISHMENT,LD - South Locality - Cost of Care,LD - South Cambs - Care,Residential Care
Cambridgeshire County Council,01-Oct-21,51301649098,"-2,304.66",VOYAGE,CARE ESTABLISHMENT,LD - South Locality - Cost of Care,LD - South Cambs - Care,Residential Care
Cambridgeshire County Council,01-Oct-21,51301649098,"-2,304.66",VOYAGE,CARE ESTABLISHMENT,LD - South Locality - Cost of Care,LD - South Cambs - Care,Residential Care
Cambridgeshire County Council,01-Oct-21,51301649098,"-2,304.66",VOYAGE,CARE ESTABLISHMENT,LD - South Locality - Cost of Care,LD - South Cambs - Care,Residential Care
Cambridgeshire County Council,01-Oct-21,51301649098,"-2,304.66",VOYAGE,CARE ESTABLISHMENT,LD - South Locality - Cost of Care,LD - South Cambs - Care,Residential Care
Cambridgeshire County Council,01-Oct-21,51301649098,"-2,304.66",VOYAGE,CARE ESTABLISHMENT,LD - South Locality - Cost of Care,LD - South Cambs - Care,Residential Care
Cambridgeshire County Council,01-Oct-21,51301649098,"-2,304.66",VOYAGE,CARE ESTABLISHMENT,LD - South Locality - Cost of Care,LD - South Cambs - Care,Residential Care
Cambridgeshire County Council,01-Oct-21,51301649098,"-2,304.66",VOYAGE,CARE ESTABLISHMENT,LD - South Locality - Cost of Care,LD - South Cambs - Care,Residential Care
Cambridgeshire County Council,01-Oct-21,51301649098,"-2,304.66",VOYAGE,CARE ESTABLISHMENT,LD - South Locality - Cost of Care,LD - South Cambs - Care,Residential Care
Cambridgeshire County Council,01-Oct-21,51301649098,"-2,304.66",VOYAGE,CARE ESTABLISHMENT,LD - South Locality - Cost of Care,LD - South Cambs - Care,Residential Care
Cambridgeshire County Council,01-Oct-21,51301649098,"-2,304.66",VOYAGE,CARE ESTABLISHMENT,LD - South Locality - Cost of Care,LD - South Cambs - Care,Residential Care
Cambridgeshire County Council,01-Oct-21,51301649098,"-2,304.66",VOYAGE,CARE ESTABLISHMENT,LD - South Locality - Cost of Care,LD - South Cambs - Care,Residential Care
Cambridgeshire County Council,01-Oct-21,51301649098,"-2,304.66",VOYAGE,CARE ESTABLISHMENT,LD - South Locality - Cost of Care,LD - South Cambs - Care,Residential Care
Cambridgeshire County Council,01-Oct-21,51301649098,"-2,304.66",VOYAGE,CARE ESTABLISHMENT,LD - South Locality - Cost of Care,LD - South Cambs - Care,Residential Care
Cambridgeshire County Council,01-Oct-21,51301649098,"-2,304.66",VOYAGE,CARE ESTABLISHMENT,LD - South Locality - Cost of Care,LD - South Cambs - Care,Residential Care
Cambridgeshire County Council,01-Oct-21,51301649098,"-2,304.66",VOYAGE,CARE ESTABLISHMENT,LD - South Locality - Cost of Care,LD - South Cambs - Care,Residential Care
Cambridgeshire County Council,01-Oct-21,51301649780,"-2,080.00",VOYAGE,CARE ESTABLISHMENT,LD - Fenland Locality - Cost of Care,LD - Fenland  - Care,Supported Living
Cambridgeshire County Council,01-Oct-21,51301651427,"-2,063.42",RENTON COURT (VOYAGE),CARE ESTABLISHMENT,LD - Hunts Locality - Cost of Care,LD - Huntingdonshire - Care,Supported Living
Cambridgeshire County Council,01-Oct-21,51301649739,"-2,054.97",VOYAGE,CARE ESTABLISHMENT,LD - South Locality - Cost of Care,LD - South Cambs - Care,Domiciliary Care
Cambridgeshire County Council,01-Oct-21,51301649739,"-2,054.97",VOYAGE,CARE ESTABLISHMENT,LD - South Locality - Cost of Care,LD - South Cambs - Care,Domiciliary Care
Cambridgeshire County Council,01-Oct-21,51301649739,"-2,054.97",VOYAGE,CARE ESTABLISHMENT,LD - South Locality - Cost of Care,LD - South Cambs - Care,Domiciliary Care
Cambridgeshire County Council,01-Oct-21,51301649739,"-2,054.97",VOYAGE,CARE ESTABLISHMENT,LD - South Locality - Cost of Care,LD - South Cambs - Care,Domiciliary Care
Cambridgeshire County Council,01-Oct-21,51301649739,"-2,054.97",VOYAGE,CARE ESTABLISHMENT,LD - South Locality - Cost of Care,LD - South Cambs - Care,Domiciliary Care
Cambridgeshire County Council,01-Oct-21,51301649739,"-2,054.97",VOYAGE,CARE ESTABLISHMENT,LD - South Locality - Cost of Care,LD - South Cambs - Care,Domiciliary Care
Cambridgeshire County Council,01-Oct-21,51301636116,"-2,032.01",FITZROY SUPPORTED,CARE ESTABLISHMENT,LD - Fenland Locality - Cost of Care,LD - Fenland  - Care,Supported Living
Cambridgeshire County Council,01-Oct-21,51301636116,"-2,032.01",FITZROY SUPPORTED,CARE ESTABLISHMENT,LD - Fenland Locality - Cost of Care,LD - Fenland  - Care,Supported Living
Cambridgeshire County Council,01-Oct-21,51301636116,"-2,032.01",FITZROY SUPPORTED,CARE ESTABLISHMENT,LD - Fenland Locality - Cost of Care,LD - Fenland  - Care,Supported Living
Cambridgeshire County Council,01-Oct-21,51301636116,"-2,032.01",FITZROY SUPPORTED,CARE ESTABLISHMENT,LD - Fenland Locality - Cost of Care,LD - Fenland  - Care,Supported Living
Cambridgeshire County Council,01-Oct-21,51301636116,"-2,032.01",FITZROY SUPPORTED,CARE ESTABLISHMENT,LD - Fenland Locality - Cost of Care,LD - Fenland  - Care,Supported Living
Cambridgeshire County Council,01-Oct-21,51301636116,"-2,032.01",FITZROY SUPPORTED,CARE ESTABLISHMENT,LD - Fenland Locality - Cost of Care,LD - Fenland  - Care,Supported Living
Cambridgeshire County Council,01-Oct-21,51301636116,"-2,032.01",FITZROY SUPPORTED,CARE ESTABLISHMENT,LD - Fenland Locality - Cost of Care,LD - Fenland  - Care,Supported Living
Cambridgeshire County Council,01-Oct-21,51301636116,"-2,032.01",FITZROY SUPPORTED,CARE ESTABLISHMENT,LD - Fenland Locality - Cost of Care,LD - Fenland  - Care,Supported Living
Cambridgeshire County Council,01-Oct-21,51301636116,"-2,032.01",FITZROY SUPPORTED,CARE ESTABLISHMENT,LD - Fenland Locality - Cost of Care,LD - Fenland  - Care,Supported Living
Cambridgeshire County Council,01-Oct-21,51301636116,"-2,032.01",FITZROY SUPPORTED,CARE ESTABLISHMENT,LD - Fenland Locality - Cost of Care,LD - Fenland  - Care,Supported Living
Cambridgeshire County Council,01-Oct-21,51301636116,"-2,032.01",FITZROY SUPPORTED,CARE ESTABLISHMENT,LD - Fenland Locality - Cost of Care,LD - Fenland  - Care,Supported Living
Cambridgeshire County Council,01-Oct-21,51301636116,"-2,032.01",FITZROY SUPPORTED,CARE ESTABLISHMENT,LD - Fenland Locality - Cost of Care,LD - Fenland  - Care,Supported Living
Cambridgeshire County Council,01-Oct-21,51301636116,"-2,032.01",FITZROY SUPPORTED,CARE ESTABLISHMENT,LD - Fenland Locality - Cost of Care,LD - Fenland  - Care,Supported Living
Cambridgeshire County Council,01-Oct-21,51301636116,"-2,032.01",FITZROY SUPPORTED,CARE ESTABLISHMENT,LD - Fenland Locality - Cost of Care,LD - Fenland  - Care,Supported Living
Cambridgeshire County Council,01-Oct-21,51301636116,"-2,032.01",FITZROY SUPPORTED,CARE ESTABLISHMENT,LD - Fenland Locality - Cost of Care,LD - Fenland  - Care,Supported Living
Cambridgeshire County Council,01-Oct-21,51301636116,"-2,032.01",FITZROY SUPPORTED,CARE ESTABLISHMENT,LD - Fenland Locality - Cost of Care,LD - Fenland  - Care,Supported Living
Cambridgeshire County Council,01-Oct-21,51301636116,"-2,032.01",FITZROY SUPPORTED,CARE ESTABLISHMENT,LD - Fenland Locality - Cost of Care,LD - Fenland  - Care,Supported Living
Cambridgeshire County Council,01-Oct-21,51301636116,"-2,032.01",FITZROY SUPPORTED,CARE ESTABLISHMENT,LD - Fenland Locality - Cost of Care,LD - Fenland  - Care,Supported Living
Cambridgeshire County Council,01-Oct-21,51301636116,"-2,032.01",FITZROY SUPPORTED,CARE ESTABLISHMENT,LD - Fenland Locality - Cost of Care,LD - Fenland  - Care,Supported Living
Cambridgeshire County Council,01-Oct-21,51301636116,"-2,032.01",FITZROY SUPPORTED,CARE ESTABLISHMENT,LD - Fenland Locality - Cost of Care,LD - Fenland  - Care,Supported Living
Cambridgeshire County Council,01-Oct-21,51301636116,"-2,032.01",FITZROY SUPPORTED,CARE ESTABLISHMENT,LD - Fenland Locality - Cost of Care,LD - Fenland  - Care,Supported Living
Cambridgeshire County Council,01-Oct-21,51301636116,"-2,032.01",FITZROY SUPPORTED,CARE ESTABLISHMENT,LD - Fenland Locality - Cost of Care,LD - Fenland  - Care,Supported Living
Cambridgeshire County Council,01-Oct-21,51301636116,"-2,032.01",FITZROY SUPPORTED,CARE ESTABLISHMENT,LD - Fenland Locality - Cost of Care,LD - Fenland  - Care,Supported Living
Cambridgeshire County Council,01-Oct-21,51301649022,"-2,005.76",VOYAGE,CARE ESTABLISHMENT,LD - East Locality - Cost of Care,LD - East Cambs - Care,Residential Care
Cambridgeshire County Council,01-Oct-21,51301650480,"-1,937.52",GLENHOLME HEALTHCARE LTD,CARE ESTABLISHMENT,LD - Hunts Locality - Cost of Care,LD - Huntingdonshire - Special Needs,Residential Care
Cambridgeshire County Council,01-Oct-21,51301650480,"-1,937.52",GLENHOLME HEALTHCARE LTD,CARE ESTABLISHMENT,LD - Hunts Locality - Cost of Care,LD - Huntingdonshire - Special Needs,Residential Care
Cambridgeshire County Council,01-Oct-21,51301650480,"-1,937.52",GLENHOLME HEALTHCARE LTD,CARE ESTABLISHMENT,LD - Hunts Locality - Cost of Care,LD - Huntingdonshire - Special Needs,Residential Care
Cambridgeshire County Council,01-Oct-21,51301650480,"-1,937.52",GLENHOLME HEALTHCARE LTD,CARE ESTABLISHMENT,LD - Hunts Locality - Cost of Care,LD - Huntingdonshire - Special Needs,Residential Care
Cambridgeshire County Council,01-Oct-21,51301650480,"-1,937.52",GLENHOLME HEALTHCARE LTD,CARE ESTABLISHMENT,LD - Hunts Locality - Cost of Care,LD - Huntingdonshire - Special Needs,Residential Care
Cambridgeshire County Council,01-Oct-21,51301650480,"-1,937.52",GLENHOLME HEALTHCARE LTD,CARE ESTABLISHMENT,LD - Hunts Locality - Cost of Care,LD - Huntingdonshire - Special Needs,Residential Care
Cambridgeshire County Council,01-Oct-21,51301650480,"-1,937.52",GLENHOLME HEALTHCARE LTD,CARE ESTABLISHMENT,LD - Hunts Locality - Cost of Care,LD - Huntingdonshire - Special Needs,Residential Care
Cambridgeshire County Council,01-Oct-21,51301650480,"-1,937.52",GLENHOLME HEALTHCARE LTD,CARE ESTABLISHMENT,LD - Hunts Locality - Cost of Care,LD - Huntingdonshire - Special Needs,Residential Care
Cambridgeshire County Council,01-Oct-21,51301650480,"-1,937.52",GLENHOLME HEALTHCARE LTD,CARE ESTABLISHMENT,LD - Hunts Locality - Cost of Care,LD - Huntingdonshire - Special Needs,Residential Care
Cambridgeshire County Council,01-Oct-21,51301650480,"-1,937.52",GLENHOLME HEALTHCARE LTD,CARE ESTABLISHMENT,LD - Hunts Locality - Cost of Care,LD - Huntingdonshire - Special Needs,Residential Care
Cambridgeshire County Council,01-Oct-21,51301650480,"-1,937.52",GLENHOLME HEALTHCARE LTD,CARE ESTABLISHMENT,LD - Hunts Locality - Cost of Care,LD - Huntingdonshire - Special Needs,Residential Care
Cambridgeshire County Council,01-Oct-21,51301650480,"-1,937.52",GLENHOLME HEALTHCARE LTD,CARE ESTABLISHMENT,LD - Hunts Locality - Cost of Care,LD - Huntingdonshire - Special Needs,Residential Care
Cambridgeshire County Council,01-Oct-21,51301650480,"-1,937.52",GLENHOLME HEALTHCARE LTD,CARE ESTABLISHMENT,LD - Hunts Locality - Cost of Care,LD - Huntingdonshire - Special Needs,Residential Care
Cambridgeshire County Council,01-Oct-21,51301650480,"-1,937.52",GLENHOLME HEALTHCARE LTD,CARE ESTABLISHMENT,LD - Hunts Locality - Cost of Care,LD - Huntingdonshire - Special Needs,Residential Care
Cambridgeshire County Council,01-Oct-21,51301650480,"-1,937.52",GLENHOLME HEALTHCARE LTD,CARE ESTABLISHMENT,LD - Hunts Locality - Cost of Care,LD - Huntingdonshire - Special Needs,Residential Care
Cambridgeshire County Council,01-Oct-21,51301650480,"-1,937.52",GLENHOLME HEALTHCARE LTD,CARE ESTABLISHMENT,LD - Hunts Locality - Cost of Care,LD - Huntingdonshire - Special Needs,Residential Care
Cambridgeshire County Council,01-Oct-21,51301650480,"-1,937.52",GLENHOLME HEALTHCARE LTD,CARE ESTABLISHMENT,LD - Hunts Locality - Cost of Care,LD - Huntingdonshire - Special Needs,Residential Care
Cambridgeshire County Council,01-Oct-21,51301650480,"-1,937.52",GLENHOLME HEALTHCARE LTD,CARE ESTABLISHMENT,LD - Hunts Locality - Cost of Care,LD - Huntingdonshire - Special Needs,Residential Care
Cambridgeshire County Council,01-Oct-21,51301650480,"-1,937.52",GLENHOLME HEALTHCARE LTD,CARE ESTABLISHMENT,LD - Hunts Locality - Cost of Care,LD - Huntingdonshire - Special Needs,Residential Care
Cambridgeshire County Council,01-Oct-21,51301650480,"-1,937.52",GLENHOLME HEALTHCARE LTD,CARE ESTABLISHMENT,LD - Hunts Locality - Cost of Care,LD - Huntingdonshire - Special Needs,Residential Care
Cambridgeshire County Council,01-Oct-21,51301650480,"-1,937.52",GLENHOLME HEALTHCARE LTD,CARE ESTABLISHMENT,LD - Hunts Locality - Cost of Care,LD - Huntingdonshire - Special Needs,Residential Care
Cambridgeshire County Council,01-Oct-21,51301650480,"-1,937.52",GLENHOLME HEALTHCARE LTD,CARE ESTABLISHMENT,LD - Hunts Locality - Cost of Care,LD - Huntingdonshire - Special Needs,Residential Care
Cambridgeshire County Council,01-Oct-21,51301650480,"-1,937.52",GLENHOLME HEALTHCARE LTD,CARE ESTABLISHMENT,LD - Hunts Locality - Cost of Care,LD - Huntingdonshire - Special Needs,Residential Care
Cambridgeshire County Council,01-Oct-21,51301650480,"-1,937.52",GLENHOLME HEALTHCARE LTD,CARE ESTABLISHMENT,LD - Hunts Locality - Cost of Care,LD - Huntingdonshire - Special Needs,Residential Care
Cambridgeshire County Council,01-Oct-21,51301650480,"-1,937.52",GLENHOLME HEALTHCARE LTD,CARE ESTABLISHMENT,LD - Hunts Locality - Cost of Care,LD - Huntingdonshire - Special Needs,Residential Care
Cambridgeshire County Council,01-Oct-21,51301650480,"-1,937.52",GLENHOLME HEALTHCARE LTD,CARE ESTABLISHMENT,LD - Hunts Locality - Cost of Care,LD - Huntingdonshire - Special Needs,Residential Care
Cambridgeshire County Council,01-Oct-21,51301650480,"-1,937.52",GLENHOLME HEALTHCARE LTD,CARE ESTABLISHMENT,LD - Hunts Locality - Cost of Care,LD - Huntingdonshire - Special Needs,Residential Care
Cambridgeshire County Council,01-Oct-21,51301650480,"-1,937.52",GLENHOLME HEALTHCARE LTD,CARE ESTABLISHMENT,LD - Hunts Locality - Cost of Care,LD - Huntingdonshire - Special Needs,Residential Care
Cambridgeshire County Council,01-Oct-21,51301650480,"-1,937.52",GLENHOLME HEALTHCARE LTD,CARE ESTABLISHMENT,LD - Hunts Locality - Cost of Care,LD - Huntingdonshire - Special Needs,Residential Care
Cambridgeshire County Council,01-Oct-21,51301650480,"-1,937.52",GLENHOLME HEALTHCARE LTD,CARE ESTABLISHMENT,LD - Hunts Locality - Cost of Care,LD - Huntingdonshire - Special Needs,Residential Care
Cambridgeshire County Council,01-Oct-21,51301650480,"-1,937.52",GLENHOLME HEALTHCARE LTD,CARE ESTABLISHMENT,LD - Hunts Locality - Cost of Care,LD - Huntingdonshire - Special Needs,Residential Care
Cambridgeshire County Council,01-Oct-21,51301650480,"-1,937.52",GLENHOLME HEALTHCARE LTD,CARE ESTABLISHMENT,LD - Hunts Locality - Cost of Care,LD - Huntingdonshire - Special Needs,Residential Care
Cambridgeshire County Council,01-Oct-21,51301650480,"-1,937.52",GLENHOLME HEALTHCARE LTD,CARE ESTABLISHMENT,LD - Hunts Locality - Cost of Care,LD - Huntingdonshire - Special Needs,Residential Care
Cambridgeshire County Council,01-Oct-21,51301650480,"-1,937.52",GLENHOLME HEALTHCARE LTD,CARE ESTABLISHMENT,LD - Hunts Locality - Cost of Care,LD - Huntingdonshire - Special Needs,Residential Care
Cambridgeshire County Council,01-Oct-21,51301650480,"-1,937.52",GLENHOLME HEALTHCARE LTD,CARE ESTABLISHMENT,LD - Hunts Locality - Cost of Care,LD - Huntingdonshire - Special Needs,Residential Care
Cambridgeshire County Council,01-Oct-21,51301650480,"-1,937.52",GLENHOLME HEALTHCARE LTD,CARE ESTABLISHMENT,LD - Hunts Locality - Cost of Care,LD - Huntingdonshire - Special Needs,Residential Care
Cambridgeshire County Council,01-Oct-21,51301650480,"-1,937.52",GLENHOLME HEALTHCARE LTD,CARE ESTABLISHMENT,LD - Hunts Locality - Cost of Care,LD - Huntingdonshire - Special Needs,Residential Care
Cambridgeshire County Council,01-Oct-21,51301650480,"-1,937.52",GLENHOLME HEALTHCARE LTD,CARE ESTABLISHMENT,LD - Hunts Locality - Cost of Care,LD - Huntingdonshire - Special Needs,Residential Care
Cambridgeshire County Council,01-Oct-21,51301650480,"-1,937.52",GLENHOLME HEALTHCARE LTD,CARE ESTABLISHMENT,LD - Hunts Locality - Cost of Care,LD - Huntingdonshire - Special Needs,Residential Care
Cambridgeshire County Council,01-Oct-21,51301650480,"-1,937.52",GLENHOLME HEALTHCARE LTD,CARE ESTABLISHMENT,LD - Hunts Locality - Cost of Care,LD - Huntingdonshire - Special Needs,Residential Care
Cambridgeshire County Council,01-Oct-21,51301650480,"-1,937.52",GLENHOLME HEALTHCARE LTD,CARE ESTABLISHMENT,LD - Hunts Locality - Cost of Care,LD - Huntingdonshire - Special Needs,Residential Care
Cambridgeshire County Council,01-Oct-21,51301650480,"-1,937.52",GLENHOLME HEALTHCARE LTD,CARE ESTABLISHMENT,LD - Hunts Locality - Cost of Care,LD - Huntingdonshire - Special Needs,Residential Care
Cambridgeshire County Council,01-Oct-21,51301650480,"-1,937.52",GLENHOLME HEALTHCARE LTD,CARE ESTABLISHMENT,LD - Hunts Locality - Cost of Care,LD - Huntingdonshire - Special Needs,Residential Care
Cambridgeshire County Council,01-Oct-21,51301650480,"-1,937.52",GLENHOLME HEALTHCARE LTD,CARE ESTABLISHMENT,LD - Hunts Locality - Cost of Care,LD - Huntingdonshire - Special Needs,Residential Care
Cambridgeshire County Council,01-Oct-21,51301650480,"-1,937.52",GLENHOLME HEALTHCARE LTD,CARE ESTABLISHMENT,LD - Hunts Locality - Cost of Care,LD - Huntingdonshire - Special Needs,Residential Care
Cambridgeshire County Council,01-Oct-21,51301650480,"-1,937.52",GLENHOLME HEALTHCARE LTD,CARE ESTABLISHMENT,LD - Hunts Locality - Cost of Care,LD - Huntingdonshire - Special Needs,Residential Care
Cambridgeshire County Council,01-Oct-21,51301650480,"-1,937.52",GLENHOLME HEALTHCARE LTD,CARE ESTABLISHMENT,LD - Hunts Locality - Cost of Care,LD - Huntingdonshire - Special Needs,Residential Care
Cambridgeshire County Council,01-Oct-21,51301650480,"-1,937.52",GLENHOLME HEALTHCARE LTD,CARE ESTABLISHMENT,LD - Hunts Locality - Cost of Care,LD - Huntingdonshire - Special Needs,Residential Care
Cambridgeshire County Council,01-Oct-21,51301650480,"-1,937.52",GLENHOLME HEALTHCARE LTD,CARE ESTABLISHMENT,LD - Hunts Locality - Cost of Care,LD - Huntingdonshire - Special Needs,Residential Care
Cambridgeshire County Council,01-Oct-21,51301650480,"-1,937.52",GLENHOLME HEALTHCARE LTD,CARE ESTABLISHMENT,LD - Hunts Locality - Cost of Care,LD - Huntingdonshire - Special Needs,Residential Care
Cambridgeshire County Council,01-Oct-21,51301650480,"-1,937.52",GLENHOLME HEALTHCARE LTD,CARE ESTABLISHMENT,LD - Hunts Locality - Cost of Care,LD - Huntingdonshire - Special Needs,Residential Care
Cambridgeshire County Council,01-Oct-21,51301650480,"-1,937.52",GLENHOLME HEALTHCARE LTD,CARE ESTABLISHMENT,LD - Hunts Locality - Cost of Care,LD - Huntingdonshire - Special Needs,Residential Care
Cambridgeshire County Council,01-Oct-21,51301650480,"-1,937.52",GLENHOLME HEALTHCARE LTD,CARE ESTABLISHMENT,LD - Hunts Locality - Cost of Care,LD - Huntingdonshire - Special Needs,Residential Care
Cambridgeshire County Council,01-Oct-21,51301649780,"-1,920.00",VOYAGE,CARE ESTABLISHMENT,LD - Fenland Locality - Cost of Care,LD - Fenland  - Care,Supported Living
Cambridgeshire County Council,01-Oct-21,51301651714,"-1,831.13",RADIS COMMUNITY CARE,CARE ESTABLISHMENT,OP - Hunts Locality - Cost of Care,Hunts OP Team - Care,Supported Living
Cambridgeshire County Council,01-Oct-21,51301642692,"-1,809.78",THE MANOR CHESHIRE HOME,CARE ESTABLISHMENT,LD - East Locality - Cost of Care,LD - East Cambs - Care,Residential Care
Cambridgeshire County Council,01-Oct-21,51301642692,"-1,809.78",THE MANOR CHESHIRE HOME,CARE ESTABLISHMENT,LD - East Locality - Cost of Care,LD - East Cambs - Care,Residential Care
Cambridgeshire County Council,01-Oct-21,51301642692,"-1,809.78",THE MANOR CHESHIRE HOME,CARE ESTABLISHMENT,LD - East Locality - Cost of Care,LD - East Cambs - Care,Residential Care
Cambridgeshire County Council,01-Oct-21,51301642692,"-1,809.78",THE MANOR CHESHIRE HOME,CARE ESTABLISHMENT,LD - East Locality - Cost of Care,LD - East Cambs - Care,Residential Care
Cambridgeshire County Council,01-Oct-21,51301637382,"-1,788.64",FITZROY SUPPORTED,CARE ESTABLISHMENT,LD - South Locality - Cost of Care,LD - South Cambs - Care,Residential Care
Cambridgeshire County Council,01-Oct-21,51301637382,"-1,788.64",FITZROY SUPPORTED,CARE ESTABLISHMENT,LD - South Locality - Cost of Care,LD - South Cambs - Care,Residential Care
Cambridgeshire County Council,01-Oct-21,51301637382,"-1,788.64",FITZROY SUPPORTED,CARE ESTABLISHMENT,LD - South Locality - Cost of Care,LD - South Cambs - Care,Residential Care
Cambridgeshire County Council,01-Oct-21,51301637382,"-1,788.64",FITZROY SUPPORTED,CARE ESTABLISHMENT,LD - South Locality - Cost of Care,LD - South Cambs - Care,Residential Care
Cambridgeshire County Council,01-Oct-21,51301637382,"-1,788.64",FITZROY SUPPORTED,CARE ESTABLISHMENT,LD - South Locality - Cost of Care,LD - South Cambs - Care,Residential Care
Cambridgeshire County Council,01-Oct-21,51301637382,"-1,788.64",FITZROY SUPPORTED,CARE ESTABLISHMENT,LD - South Locality - Cost of Care,LD - South Cambs - Care,Residential Care
Cambridgeshire County Council,01-Oct-21,51301637382,"-1,788.64",FITZROY SUPPORTED,CARE ESTABLISHMENT,LD - South Locality - Cost of Care,LD - South Cambs - Care,Residential Care
Cambridgeshire County Council,01-Oct-21,51301637382,"-1,788.64",FITZROY SUPPORTED,CARE ESTABLISHMENT,LD - South Locality - Cost of Care,LD - South Cambs - Care,Residential Care
Cambridgeshire County Council,01-Oct-21,51301637382,"-1,788.64",FITZROY SUPPORTED,CARE ESTABLISHMENT,LD - South Locality - Cost of Care,LD - South Cambs - Care,Residential Care
Cambridgeshire County Council,01-Oct-21,51301637382,"-1,788.64",FITZROY SUPPORTED,CARE ESTABLISHMENT,LD - South Locality - Cost of Care,LD - South Cambs - Care,Residential Care
Cambridgeshire County Council,01-Oct-21,51301637382,"-1,788.64",FITZROY SUPPORTED,CARE ESTABLISHMENT,LD - South Locality - Cost of Care,LD - South Cambs - Care,Residential Care
Cambridgeshire County Council,01-Oct-21,51301637382,"-1,788.64",FITZROY SUPPORTED,CARE ESTABLISHMENT,LD - South Locality - Cost of Care,LD - South Cambs - Care,Residential Care
Cambridgeshire County Council,01-Oct-21,51301637382,"-1,788.64",FITZROY SUPPORTED,CARE ESTABLISHMENT,LD - South Locality - Cost of Care,LD - South Cambs - Care,Residential Care
Cambridgeshire County Council,01-Oct-21,51301637382,"-1,788.64",FITZROY SUPPORTED,CARE ESTABLISHMENT,LD - South Locality - Cost of Care,LD - South Cambs - Care,Residential Care
Cambridgeshire County Council,01-Oct-21,51301649113,"-1,749.35",VOYAGE,CARE ESTABLISHMENT,LD - East Locality - Cost of Care,LD - East Cambs - Care,Residential Care
Cambridgeshire County Council,01-Oct-21,51301649177,"-1,635.00",THE MARBROOK CENTRE,CARE ESTABLISHMENT,Physical Disablity - Cost of Care,Countywide PD Service - Care,Nursing Care
Cambridgeshire County Council,01-Oct-21,51301649177,"-1,635.00",THE MARBROOK CENTRE,CARE ESTABLISHMENT,Physical Disablity - Cost of Care,Countywide PD Service - Care,Nursing Care
Cambridgeshire County Council,01-Oct-21,51301649177,"-1,635.00",THE MARBROOK CENTRE,CARE ESTABLISHMENT,Physical Disablity - Cost of Care,Countywide PD Service - Care,Nursing Care
Cambridgeshire County Council,01-Oct-21,51301649177,"-1,635.00",THE MARBROOK CENTRE,CARE ESTABLISHMENT,Physical Disablity - Cost of Care,Countywide PD Service - Care,Nursing Care
Cambridgeshire County Council,01-Oct-21,51301649177,"-1,635.00",THE MARBROOK CENTRE,CARE ESTABLISHMENT,Physical Disablity - Cost of Care,Countywide PD Service - Care,Nursing Care
Cambridgeshire County Council,01-Oct-21,51301649177,"-1,635.00",THE MARBROOK CENTRE,CARE ESTABLISHMENT,Physical Disablity - Cost of Care,Countywide PD Service - Care,Nursing Care
Cambridgeshire County Council,01-Oct-21,51301649177,"-1,635.00",THE MARBROOK CENTRE,CARE ESTABLISHMENT,Physical Disablity - Cost of Care,Countywide PD Service - Care,Nursing Care
Cambridgeshire County Council,01-Oct-21,51301649177,"-1,635.00",THE MARBROOK CENTRE,CARE ESTABLISHMENT,Physical Disablity - Cost of Care,Countywide PD Service - Care,Nursing Care
Cambridgeshire County Council,01-Oct-21,51301649177,"-1,635.00",THE MARBROOK CENTRE,CARE ESTABLISHMENT,Physical Disablity - Cost of Care,Countywide PD Service - Care,Nursing Care
Cambridgeshire County Council,01-Oct-21,51301649177,"-1,635.00",THE MARBROOK CENTRE,CARE ESTABLISHMENT,Physical Disablity - Cost of Care,Countywide PD Service - Care,Nursing Care
Cambridgeshire County Council,01-Oct-21,51301649177,"-1,635.00",THE MARBROOK CENTRE,CARE ESTABLISHMENT,Physical Disablity - Cost of Care,Countywide PD Service - Care,Nursing Care
Cambridgeshire County Council,01-Oct-21,51301649177,"-1,635.00",THE MARBROOK CENTRE,CARE ESTABLISHMENT,Physical Disablity - Cost of Care,Countywide PD Service - Care,Nursing Care
Cambridgeshire County Council,01-Oct-21,51301649177,"-1,635.00",THE MARBROOK CENTRE,CARE ESTABLISHMENT,Physical Disablity - Cost of Care,Countywide PD Service - Care,Nursing Care
Cambridgeshire County Council,01-Oct-21,51301649177,"-1,635.00",THE MARBROOK CENTRE,CARE ESTABLISHMENT,Physical Disablity - Cost of Care,Countywide PD Service - Care,Nursing Care
Cambridgeshire County Council,01-Oct-21,51301649177,"-1,635.00",THE MARBROOK CENTRE,CARE ESTABLISHMENT,Physical Disablity - Cost of Care,Countywide PD Service - Care,Nursing Care
Cambridgeshire County Council,01-Oct-21,51301649177,"-1,635.00",THE MARBROOK CENTRE,CARE ESTABLISHMENT,Physical Disablity - Cost of Care,Countywide PD Service - Care,Nursing Care
Cambridgeshire County Council,01-Oct-21,51301649177,"-1,635.00",THE MARBROOK CENTRE,CARE ESTABLISHMENT,Physical Disablity - Cost of Care,Countywide PD Service - Care,Nursing Care
Cambridgeshire County Council,01-Oct-21,51301649177,"-1,635.00",THE MARBROOK CENTRE,CARE ESTABLISHMENT,Physical Disablity - Cost of Care,Countywide PD Service - Care,Nursing Care
Cambridgeshire County Council,01-Oct-21,51301649177,"-1,635.00",THE MARBROOK CENTRE,CARE ESTABLISHMENT,Physical Disablity - Cost of Care,Countywide PD Service - Care,Nursing Care
Cambridgeshire County Council,01-Oct-21,51301649177,"-1,635.00",THE MARBROOK CENTRE,CARE ESTABLISHMENT,Physical Disablity - Cost of Care,Countywide PD Service - Care,Nursing Care
Cambridgeshire County Council,01-Oct-21,51301649177,"-1,635.00",THE MARBROOK CENTRE,CARE ESTABLISHMENT,Physical Disablity - Cost of Care,Countywide PD Service - Care,Nursing Care
Cambridgeshire County Council,01-Oct-21,51301649177,"-1,635.00",THE MARBROOK CENTRE,CARE ESTABLISHMENT,Physical Disablity - Cost of Care,Countywide PD Service - Care,Nursing Care
Cambridgeshire County Council,01-Oct-21,51301649177,"-1,635.00",THE MARBROOK CENTRE,CARE ESTABLISHMENT,Physical Disablity - Cost of Care,Countywide PD Service - Care,Nursing Care
Cambridgeshire County Council,01-Oct-21,51301649177,"-1,635.00",THE MARBROOK CENTRE,CARE ESTABLISHMENT,Physical Disablity - Cost of Care,Countywide PD Service - Care,Nursing Care
Cambridgeshire County Council,01-Oct-21,51301649177,"-1,635.00",THE MARBROOK CENTRE,CARE ESTABLISHMENT,Physical Disablity - Cost of Care,Countywide PD Service - Care,Nursing Care
Cambridgeshire County Council,01-Oct-21,51301649177,"-1,635.00",THE MARBROOK CENTRE,CARE ESTABLISHMENT,Physical Disablity - Cost of Care,Countywide PD Service - Care,Nursing Care
Cambridgeshire County Council,01-Oct-21,51301649177,"-1,635.00",THE MARBROOK CENTRE,CARE ESTABLISHMENT,Physical Disablity - Cost of Care,Countywide PD Service - Care,Nursing Care
Cambridgeshire County Council,01-Oct-21,51301649177,"-1,635.00",THE MARBROOK CENTRE,CARE ESTABLISHMENT,Physical Disablity - Cost of Care,Countywide PD Service - Care,Nursing Care
Cambridgeshire County Council,01-Oct-21,51301649177,"-1,635.00",THE MARBROOK CENTRE,CARE ESTABLISHMENT,Physical Disablity - Cost of Care,Countywide PD Service - Care,Nursing Care
Cambridgeshire County Council,01-Oct-21,51301649177,"-1,635.00",THE MARBROOK CENTRE,CARE ESTABLISHMENT,Physical Disablity - Cost of Care,Countywide PD Service - Care,Nursing Care
Cambridgeshire County Council,01-Oct-21,51301649177,"-1,635.00",THE MARBROOK CENTRE,CARE ESTABLISHMENT,Physical Disablity - Cost of Care,Countywide PD Service - Care,Nursing Care
Cambridgeshire County Council,01-Oct-21,51301649177,"-1,635.00",THE MARBROOK CENTRE,CARE ESTABLISHMENT,Physical Disablity - Cost of Care,Countywide PD Service - Care,Nursing Care
Cambridgeshire County Council,01-Oct-21,51301651689,"-1,604.08",ABBEY HEALTHCARE (HUNTINGDON) LTD,CARE ESTABLISHMENT,OP - Hunts Blocks,Hunts - Short term blocks,Short Term maximised independence
Cambridgeshire County Council,01-Oct-21,51301651689,"-1,604.08",ABBEY HEALTHCARE (HUNTINGDON) LTD,CARE ESTABLISHMENT,OP - Hunts Blocks,Hunts - Short term blocks,Short Term maximised independence
Cambridgeshire County Council,01-Oct-21,51301651689,"-1,604.08",ABBEY HEALTHCARE (HUNTINGDON) LTD,CARE ESTABLISHMENT,OP - Hunts Blocks,Hunts - Short term blocks,Short Term maximised independence
Cambridgeshire County Council,01-Oct-21,51301651677,"-1,566.00",SWAN HOUSE NURSING & RESIDENTIAL HOME,CARE ESTABLISHMENT,OP - Fenland Blocks,Fenland - Long term blocks,Nursing Care
Cambridgeshire County Council,01-Oct-21,51301651677,"-1,566.00",SWAN HOUSE NURSING & RESIDENTIAL HOME,CARE ESTABLISHMENT,OP - Fenland Blocks,Fenland - Long term blocks,Nursing Care
Cambridgeshire County Council,01-Oct-21,51301651677,"-1,566.00",SWAN HOUSE NURSING & RESIDENTIAL HOME,CARE ESTABLISHMENT,OP - Fenland Blocks,Fenland - Long term blocks,Nursing Care
Cambridgeshire County Council,01-Oct-21,51301651677,"-1,566.00",SWAN HOUSE NURSING & RESIDENTIAL HOME,CARE ESTABLISHMENT,OP - Fenland Blocks,Fenland - Long term blocks,Nursing Care
Cambridgeshire County Council,01-Oct-21,51301651677,"-1,566.00",SWAN HOUSE NURSING & RESIDENTIAL HOME,CARE ESTABLISHMENT,OP - Fenland Blocks,Fenland - Long term blocks,Nursing Care
Cambridgeshire County Council,01-Oct-21,51301651677,"-1,566.00",SWAN HOUSE NURSING & RESIDENTIAL HOME,CARE ESTABLISHMENT,OP - Fenland Blocks,Fenland - Long term blocks,Nursing Care
Cambridgeshire County Council,01-Oct-21,51301642692,"-1,551.24",THE MANOR CHESHIRE HOME,CARE ESTABLISHMENT,LD - East Locality - Cost of Care,LD - East Cambs - Care,Residential Care
Cambridgeshire County Council,01-Oct-21,51301643887,"-1,500.00",WOODLANDS CARE CENTRE,CARE ESTABLISHMENT,OP - City & South Locality - Cost of Care,Older People - City & South - Care,Nursing Care
Cambridgeshire County Council,01-Oct-21,51301643887,"-1,500.00",WOODLANDS CARE CENTRE,CARE ESTABLISHMENT,OP - City & South Locality - Cost of Care,Older People - City & South - Care,Nursing Care
Cambridgeshire County Council,01-Oct-21,51301643887,"-1,500.00",WOODLANDS CARE CENTRE,CARE ESTABLISHMENT,OP - City & South Locality - Cost of Care,Older People - City & South - Care,Nursing Care
Cambridgeshire County Council,01-Oct-21,51301643887,"-1,500.00",WOODLANDS CARE CENTRE,CARE ESTABLISHMENT,OP - City & South Locality - Cost of Care,Older People - City & South - Care,Nursing Care
Cambridgeshire County Council,01-Oct-21,51301643887,"-1,500.00",WOODLANDS CARE CENTRE,CARE ESTABLISHMENT,OP - City & South Locality - Cost of Care,Older People - City & South - Care,Nursing Care
Cambridgeshire County Council,01-Oct-21,51301643887,"-1,500.00",WOODLANDS CARE CENTRE,CARE ESTABLISHMENT,OP - City & South Locality - Cost of Care,Older People - City & South - Care,Nursing Care
Cambridgeshire County Council,01-Oct-21,51301643887,"-1,500.00",WOODLANDS CARE CENTRE,CARE ESTABLISHMENT,OP - City & South Locality - Cost of Care,Older People - City & South - Care,Nursing Care
Cambridgeshire County Council,01-Oct-21,51301643887,"-1,500.00",WOODLANDS CARE CENTRE,CARE ESTABLISHMENT,OP - City & South Locality - Cost of Care,Older People - City & South - Care,Nursing Care
Cambridgeshire County Council,01-Oct-21,51301643887,"-1,500.00",WOODLANDS CARE CENTRE,CARE ESTABLISHMENT,OP - City & South Locality - Cost of Care,Older People - City & South - Care,Nursing Care
Cambridgeshire County Council,01-Oct-21,51301643887,"-1,500.00",WOODLANDS CARE CENTRE,CARE ESTABLISHMENT,OP - City & South Locality - Cost of Care,Older People - City & South - Care,Nursing Care
Cambridgeshire County Council,01-Oct-21,51301652287,"-1,497.08",73 HIGH ROAD,CARE ESTABLISHMENT,LD - Fenland Locality - Cost of Care,LD - Fenland  - Care,Supported Living
Cambridgeshire County Council,01-Oct-21,51301651614,"-1,486.80",VOYAGE,CARE ESTABLISHMENT,LD - City Locality - Cost of Care,LD - City - Care,Supported Living
Cambridgeshire County Council,01-Oct-21,51301649235,"-1,480.00",THE MARBROOK CENTRE,CARE ESTABLISHMENT,OPMH - City & South,Older People Mental Health City & South,Nursing Care
Cambridgeshire County Council,01-Oct-21,51301649235,"-1,480.00",THE MARBROOK CENTRE,CARE ESTABLISHMENT,OPMH - City & South,Older People Mental Health City & South,Nursing Care
Cambridgeshire County Council,01-Oct-21,51301649235,"-1,480.00",THE MARBROOK CENTRE,CARE ESTABLISHMENT,OPMH - City & South,Older People Mental Health City & South,Nursing Care
Cambridgeshire County Council,01-Oct-21,51301649235,"-1,480.00",THE MARBROOK CENTRE,CARE ESTABLISHMENT,OPMH - City & South,Older People Mental Health City & South,Nursing Care
Cambridgeshire County Council,01-Oct-21,51301649235,"-1,480.00",THE MARBROOK CENTRE,CARE ESTABLISHMENT,OPMH - City & South,Older People Mental Health City & South,Nursing Care
Cambridgeshire County Council,01-Oct-21,51301649235,"-1,480.00",THE MARBROOK CENTRE,CARE ESTABLISHMENT,OPMH - City & South,Older People Mental Health City & South,Nursing Care
Cambridgeshire County Council,01-Oct-21,51301649177,"-1,401.43",THE MARBROOK CENTRE,CARE ESTABLISHMENT,Physical Disablity - Cost of Care,Countywide PD Service - Care,Nursing Care
Cambridgeshire County Council,01-Oct-21,51301651698,"-1,400.00",GLENNFIELD CARE CENTRE (OP),CARE ESTABLISHMENT,OP - Fenland Blocks,Fenland - Long term blocks,Nursing Care
Cambridgeshire County Council,01-Oct-21,51301650480,"-1,383.94",GLENHOLME HEALTHCARE LTD,CARE ESTABLISHMENT,LD - Hunts Locality - Cost of Care,LD - Huntingdonshire - Special Needs,Residential Care
Cambridgeshire County Council,01-Oct-21,51301636116,"-1,354.67",FITZROY SUPPORTED,CARE ESTABLISHMENT,LD - Fenland Locality - Cost of Care,LD - Fenland  - Care,Supported Living
Cambridgeshire County Council,01-Oct-21,51301636116,"-1,354.67",FITZROY SUPPORTED,CARE ESTABLISHMENT,LD - Fenland Locality - Cost of Care,LD - Fenland  - Care,Supported Living
Cambridgeshire County Council,01-Oct-21,51301636116,"-1,354.67",FITZROY SUPPORTED,CARE ESTABLISHMENT,LD - Fenland Locality - Cost of Care,LD - Fenland  - Care,Supported Living
Cambridgeshire County Council,01-Oct-21,51301636116,"-1,354.67",FITZROY SUPPORTED,CARE ESTABLISHMENT,LD - Fenland Locality - Cost of Care,LD - Fenland  - Care,Supported Living
Cambridgeshire County Council,01-Oct-21,51301636116,"-1,354.67",FITZROY SUPPORTED,CARE ESTABLISHMENT,LD - Fenland Locality - Cost of Care,LD - Fenland  - Care,Supported Living
Cambridgeshire County Council,01-Oct-21,51301636116,"-1,354.67",FITZROY SUPPORTED,CARE ESTABLISHMENT,LD - Fenland Locality - Cost of Care,LD - Fenland  - Care,Supported Living
Cambridgeshire County Council,01-Oct-21,51301636116,"-1,354.67",FITZROY SUPPORTED,CARE ESTABLISHMENT,LD - Fenland Locality - Cost of Care,LD - Fenland  - Care,Supported Living
Cambridgeshire County Council,01-Oct-21,51301636116,"-1,354.67",FITZROY SUPPORTED,CARE ESTABLISHMENT,LD - Fenland Locality - Cost of Care,LD - Fenland  - Care,Supported Living
Cambridgeshire County Council,01-Oct-21,51301636116,"-1,354.67",FITZROY SUPPORTED,CARE ESTABLISHMENT,LD - Fenland Locality - Cost of Care,LD - Fenland  - Care,Supported Living
Cambridgeshire County Council,01-Oct-21,51301636116,"-1,354.67",FITZROY SUPPORTED,CARE ESTABLISHMENT,LD - Fenland Locality - Cost of Care,LD - Fenland  - Care,Supported Living
Cambridgeshire County Council,01-Oct-21,51301636116,"-1,354.67",FITZROY SUPPORTED,CARE ESTABLISHMENT,LD - Fenland Locality - Cost of Care,LD - Fenland  - Care,Supported Living
Cambridgeshire County Council,01-Oct-21,51301636116,"-1,354.67",FITZROY SUPPORTED,CARE ESTABLISHMENT,LD - Fenland Locality - Cost of Care,LD - Fenland  - Care,Supported Living
Cambridgeshire County Council,01-Oct-21,51301636116,"-1,354.67",FITZROY SUPPORTED,CARE ESTABLISHMENT,LD - Fenland Locality - Cost of Care,LD - Fenland  - Care,Supported Living
Cambridgeshire County Council,01-Oct-21,51301636116,"-1,354.67",FITZROY SUPPORTED,CARE ESTABLISHMENT,LD - Fenland Locality - Cost of Care,LD - Fenland  - Care,Supported Living
Cambridgeshire County Council,01-Oct-21,51301636116,"-1,354.67",FITZROY SUPPORTED,CARE ESTABLISHMENT,LD - Fenland Locality - Cost of Care,LD - Fenland  - Care,Supported Living
Cambridgeshire County Council,01-Oct-21,51301636116,"-1,354.67",FITZROY SUPPORTED,CARE ESTABLISHMENT,LD - Fenland Locality - Cost of Care,LD - Fenland  - Care,Supported Living
Cambridgeshire County Council,01-Oct-21,51301636116,"-1,354.67",FITZROY SUPPORTED,CARE ESTABLISHMENT,LD - Fenland Locality - Cost of Care,LD - Fenland  - Care,Supported Living
Cambridgeshire County Council,01-Oct-21,51301636116,"-1,354.67",FITZROY SUPPORTED,CARE ESTABLISHMENT,LD - Fenland Locality - Cost of Care,LD - Fenland  - Care,Supported Living
Cambridgeshire County Council,01-Oct-21,51301636116,"-1,354.67",FITZROY SUPPORTED,CARE ESTABLISHMENT,LD - Fenland Locality - Cost of Care,LD - Fenland  - Care,Supported Living
Cambridgeshire County Council,01-Oct-21,51301636116,"-1,354.67",FITZROY SUPPORTED,CARE ESTABLISHMENT,LD - Fenland Locality - Cost of Care,LD - Fenland  - Care,Supported Living
Cambridgeshire County Council,01-Oct-21,51301636116,"-1,354.67",FITZROY SUPPORTED,CARE ESTABLISHMENT,LD - Fenland Locality - Cost of Care,LD - Fenland  - Care,Supported Living
Cambridgeshire County Council,01-Oct-21,51301636116,"-1,354.67",FITZROY SUPPORTED,CARE ESTABLISHMENT,LD - Fenland Locality - Cost of Care,LD - Fenland  - Care,Supported Living
Cambridgeshire County Council,01-Oct-21,51301636116,"-1,354.67",FITZROY SUPPORTED,CARE ESTABLISHMENT,LD - Fenland Locality - Cost of Care,LD - Fenland  - Care,Supported Living
Cambridgeshire County Council,01-Oct-21,51301651942,"-1,350.00",WOODLANDS CARE CENTRE,CARE ESTABLISHMENT,OP - Hunts Locality - Cost of Care,Hunts OP Team - Care,Nursing Care
Cambridgeshire County Council,01-Oct-21,51301651942,"-1,350.00",WOODLANDS CARE CENTRE,CARE ESTABLISHMENT,OP - Hunts Locality - Cost of Care,Hunts OP Team - Care,Nursing Care
Cambridgeshire County Council,01-Oct-21,51301651942,"-1,350.00",WOODLANDS CARE CENTRE,CARE ESTABLISHMENT,OP - Hunts Locality - Cost of Care,Hunts OP Team - Care,Nursing Care
Cambridgeshire County Council,01-Oct-21,51301651942,"-1,350.00",WOODLANDS CARE CENTRE,CARE ESTABLISHMENT,OP - Hunts Locality - Cost of Care,Hunts OP Team - Care,Nursing Care
Cambridgeshire County Council,01-Oct-21,51301650552,"-1,297.90",THE BRAMBLES (SOHAM) LTD,CARE ESTABLISHMENT,LD - East Locality - Cost of Care,LD - East Cambs - Care,Residential Care
Cambridgeshire County Council,01-Oct-21,51301650552,"-1,297.90",THE BRAMBLES (SOHAM) LTD,CARE ESTABLISHMENT,LD - East Locality - Cost of Care,LD - East Cambs - Care,Residential Care
Cambridgeshire County Council,01-Oct-21,51301651674,"-1,290.42",SWAN HOUSE NURSING & RESIDENTIAL HOME,CARE ESTABLISHMENT,OP - Fenland Blocks,Fenland - Long term blocks,Residential Care
Cambridgeshire County Council,01-Oct-21,51301651674,"-1,290.42",SWAN HOUSE NURSING & RESIDENTIAL HOME,CARE ESTABLISHMENT,OP - Fenland Blocks,Fenland - Long term blocks,Residential Care
Cambridgeshire County Council,01-Oct-21,51301637382,"-1,277.60",FITZROY SUPPORTED,CARE ESTABLISHMENT,LD - South Locality - Cost of Care,LD - South Cambs - Care,Residential Care
Cambridgeshire County Council,01-Oct-21,51301642692,"-1,257.64",THE MANOR CHESHIRE HOME,CARE ESTABLISHMENT,LD - East Locality - Cost of Care,LD - East Cambs - Care,Residential Care
Cambridgeshire County Council,01-Oct-21,51301642692,"-1,257.64",THE MANOR CHESHIRE HOME,CARE ESTABLISHMENT,LD - East Locality - Cost of Care,LD - East Cambs - Care,Residential Care
Cambridgeshire County Council,01-Oct-21,51301642692,"-1,257.64",THE MANOR CHESHIRE HOME,CARE ESTABLISHMENT,LD - East Locality - Cost of Care,LD - East Cambs - Care,Residential Care
Cambridgeshire County Council,01-Oct-21,51301642692,"-1,257.64",THE MANOR CHESHIRE HOME,CARE ESTABLISHMENT,LD - East Locality - Cost of Care,LD - East Cambs - Care,Residential Care
Cambridgeshire County Council,01-Oct-21,51301652287,"-1,249.72",73 HIGH ROAD,CARE ESTABLISHMENT,LD - Fenland Locality - Cost of Care,LD - Fenland  - Care,Supported Living
Cambridgeshire County Council,01-Oct-21,51301652287,"-1,249.72",73 HIGH ROAD,CARE ESTABLISHMENT,LD - Fenland Locality - Cost of Care,LD - Fenland  - Care,Supported Living
Cambridgeshire County Council,01-Oct-21,51301652287,"-1,249.72",73 HIGH ROAD,CARE ESTABLISHMENT,LD - Fenland Locality - Cost of Care,LD - Fenland  - Care,Supported Living
Cambridgeshire County Council,01-Oct-21,51301652287,"-1,249.72",73 HIGH ROAD,CARE ESTABLISHMENT,LD - Fenland Locality - Cost of Care,LD - Fenland  - Care,Supported Living
Cambridgeshire County Council,01-Oct-21,51301652287,"-1,249.72",73 HIGH ROAD,CARE ESTABLISHMENT,LD - Fenland Locality - Cost of Care,LD - Fenland  - Care,Supported Living
Cambridgeshire County Council,01-Oct-21,51301652287,"-1,249.72",73 HIGH ROAD,CARE ESTABLISHMENT,LD - Fenland Locality - Cost of Care,LD - Fenland  - Care,Supported Living
Cambridgeshire County Council,01-Oct-21,51301652287,"-1,249.72",73 HIGH ROAD,CARE ESTABLISHMENT,LD - Fenland Locality - Cost of Care,LD - Fenland  - Care,Supported Living
Cambridgeshire County Council,01-Oct-21,51301652287,"-1,249.72",73 HIGH ROAD,CARE ESTABLISHMENT,LD - Fenland Locality - Cost of Care,LD - Fenland  - Care,Supported Living
Cambridgeshire County Council,01-Oct-21,51301652287,"-1,249.72",73 HIGH ROAD,CARE ESTABLISHMENT,LD - Fenland Locality - Cost of Care,LD - Fenland  - Care,Supported Living
Cambridgeshire County Council,01-Oct-21,51301652287,"-1,249.72",73 HIGH ROAD,CARE ESTABLISHMENT,LD - Fenland Locality - Cost of Care,LD - Fenland  - Care,Supported Living
Cambridgeshire County Council,01-Oct-21,51301652287,"-1,249.72",73 HIGH ROAD,CARE ESTABLISHMENT,LD - Fenland Locality - Cost of Care,LD - Fenland  - Care,Supported Living
Cambridgeshire County Council,01-Oct-21,51301652287,"-1,249.72",73 HIGH ROAD,CARE ESTABLISHMENT,LD - Fenland Locality - Cost of Care,LD - Fenland  - Care,Supported Living
Cambridgeshire County Council,01-Oct-21,51301652287,"-1,249.72",73 HIGH ROAD,CARE ESTABLISHMENT,LD - Fenland Locality - Cost of Care,LD - Fenland  - Care,Supported Living
Cambridgeshire County Council,01-Oct-21,51301652287,"-1,249.72",73 HIGH ROAD,CARE ESTABLISHMENT,LD - Fenland Locality - Cost of Care,LD - Fenland  - Care,Supported Living
Cambridgeshire County Council,01-Oct-21,51301652287,"-1,249.72",73 HIGH ROAD,CARE ESTABLISHMENT,LD - Fenland Locality - Cost of Care,LD - Fenland  - Care,Supported Living
Cambridgeshire County Council,01-Oct-21,51301652287,"-1,249.72",73 HIGH ROAD,CARE ESTABLISHMENT,LD - Fenland Locality - Cost of Care,LD - Fenland  - Care,Supported Living
Cambridgeshire County Council,01-Oct-21,51301652287,"-1,249.72",73 HIGH ROAD,CARE ESTABLISHMENT,LD - Fenland Locality - Cost of Care,LD - Fenland  - Care,Supported Living
Cambridgeshire County Council,01-Oct-21,51301652287,"-1,249.72",73 HIGH ROAD,CARE ESTABLISHMENT,LD - Fenland Locality - Cost of Care,LD - Fenland  - Care,Supported Living
Cambridgeshire County Council,01-Oct-21,51301652287,"-1,249.72",73 HIGH ROAD,CARE ESTABLISHMENT,LD - Fenland Locality - Cost of Care,LD - Fenland  - Care,Supported Living
Cambridgeshire County Council,01-Oct-21,51301652287,"-1,249.72",73 HIGH ROAD,CARE ESTABLISHMENT,LD - Fenland Locality - Cost of Care,LD - Fenland  - Care,Supported Living
Cambridgeshire County Council,01-Oct-21,51301652287,"-1,249.72",73 HIGH ROAD,CARE ESTABLISHMENT,LD - Fenland Locality - Cost of Care,LD - Fenland  - Care,Supported Living
Cambridgeshire County Council,01-Oct-21,51301652287,"-1,249.72",73 HIGH ROAD,CARE ESTABLISHMENT,LD - Fenland Locality - Cost of Care,LD - Fenland  - Care,Supported Living
Cambridgeshire County Council,01-Oct-21,51301652287,"-1,249.72",73 HIGH ROAD,CARE ESTABLISHMENT,LD - Fenland Locality - Cost of Care,LD - Fenland  - Care,Supported Living
Cambridgeshire County Council,01-Oct-21,51301652287,"-1,249.72",73 HIGH ROAD,CARE ESTABLISHMENT,LD - Fenland Locality - Cost of Care,LD - Fenland  - Care,Supported Living
Cambridgeshire County Council,01-Oct-21,51301652287,"-1,249.72",73 HIGH ROAD,CARE ESTABLISHMENT,LD - Fenland Locality - Cost of Care,LD - Fenland  - Care,Supported Living
Cambridgeshire County Council,01-Oct-21,51301652287,"-1,249.72",73 HIGH ROAD,CARE ESTABLISHMENT,LD - Fenland Locality - Cost of Care,LD - Fenland  - Care,Supported Living
Cambridgeshire County Council,01-Oct-21,51301652287,"-1,249.72",73 HIGH ROAD,CARE ESTABLISHMENT,LD - Fenland Locality - Cost of Care,LD - Fenland  - Care,Supported Living
Cambridgeshire County Council,01-Oct-21,51301652287,"-1,249.72",73 HIGH ROAD,CARE ESTABLISHMENT,LD - Fenland Locality - Cost of Care,LD - Fenland  - Care,Supported Living
Cambridgeshire County Council,01-Oct-21,51301652287,"-1,249.72",73 HIGH ROAD,CARE ESTABLISHMENT,LD - Fenland Locality - Cost of Care,LD - Fenland  - Care,Supported Living
Cambridgeshire County Council,01-Oct-21,51301652287,"-1,249.72",73 HIGH ROAD,CARE ESTABLISHMENT,LD - Fenland Locality - Cost of Care,LD - Fenland  - Care,Supported Living
Cambridgeshire County Council,01-Oct-21,51301652287,"-1,249.72",73 HIGH ROAD,CARE ESTABLISHMENT,LD - Fenland Locality - Cost of Care,LD - Fenland  - Care,Supported Living
Cambridgeshire County Council,01-Oct-21,51301652287,"-1,249.72",73 HIGH ROAD,CARE ESTABLISHMENT,LD - Fenland Locality - Cost of Care,LD - Fenland  - Care,Supported Living
Cambridgeshire County Council,01-Oct-21,51301652287,"-1,249.72",73 HIGH ROAD,CARE ESTABLISHMENT,LD - Fenland Locality - Cost of Care,LD - Fenland  - Care,Supported Living
Cambridgeshire County Council,01-Oct-21,51301652287,"-1,249.72",73 HIGH ROAD,CARE ESTABLISHMENT,LD - Fenland Locality - Cost of Care,LD - Fenland  - Care,Supported Living
Cambridgeshire County Council,01-Oct-21,51301652287,"-1,249.72",73 HIGH ROAD,CARE ESTABLISHMENT,LD - Fenland Locality - Cost of Care,LD - Fenland  - Care,Supported Living
Cambridgeshire County Council,01-Oct-21,51301652287,"-1,249.72",73 HIGH ROAD,CARE ESTABLISHMENT,LD - Fenland Locality - Cost of Care,LD - Fenland  - Care,Supported Living
Cambridgeshire County Council,01-Oct-21,51301652287,"-1,249.72",73 HIGH ROAD,CARE ESTABLISHMENT,LD - Fenland Locality - Cost of Care,LD - Fenland  - Care,Supported Living
Cambridgeshire County Council,01-Oct-21,51301652287,"-1,249.72",73 HIGH ROAD,CARE ESTABLISHMENT,LD - Fenland Locality - Cost of Care,LD - Fenland  - Care,Supported Living
Cambridgeshire County Council,01-Oct-21,51301652287,"-1,249.72",73 HIGH ROAD,CARE ESTABLISHMENT,LD - Fenland Locality - Cost of Care,LD - Fenland  - Care,Supported Living
Cambridgeshire County Council,01-Oct-21,51301652287,"-1,249.72",73 HIGH ROAD,CARE ESTABLISHMENT,LD - Fenland Locality - Cost of Care,LD - Fenland  - Care,Supported Living
Cambridgeshire County Council,01-Oct-21,51301652287,"-1,249.72",73 HIGH ROAD,CARE ESTABLISHMENT,LD - Fenland Locality - Cost of Care,LD - Fenland  - Care,Supported Living
Cambridgeshire County Council,01-Oct-21,51301652287,"-1,249.72",73 HIGH ROAD,CARE ESTABLISHMENT,LD - Fenland Locality - Cost of Care,LD - Fenland  - Care,Supported Living
Cambridgeshire County Council,01-Oct-21,51301652287,"-1,249.72",73 HIGH ROAD,CARE ESTABLISHMENT,LD - Fenland Locality - Cost of Care,LD - Fenland  - Care,Supported Living
Cambridgeshire County Council,01-Oct-21,51301652287,"-1,249.72",73 HIGH ROAD,CARE ESTABLISHMENT,LD - Fenland Locality - Cost of Care,LD - Fenland  - Care,Supported Living
Cambridgeshire County Council,01-Oct-21,51301652287,"-1,249.72",73 HIGH ROAD,CARE ESTABLISHMENT,LD - Fenland Locality - Cost of Care,LD - Fenland  - Care,Supported Living
Cambridgeshire County Council,01-Oct-21,51301652287,"-1,249.72",73 HIGH ROAD,CARE ESTABLISHMENT,LD - Fenland Locality - Cost of Care,LD - Fenland  - Care,Supported Living
Cambridgeshire County Council,01-Oct-21,51301652287,"-1,249.72",73 HIGH ROAD,CARE ESTABLISHMENT,LD - Fenland Locality - Cost of Care,LD - Fenland  - Care,Supported Living
Cambridgeshire County Council,01-Oct-21,51301652287,"-1,249.72",73 HIGH ROAD,CARE ESTABLISHMENT,LD - Fenland Locality - Cost of Care,LD - Fenland  - Care,Supported Living
Cambridgeshire County Council,01-Oct-21,51301652287,"-1,249.72",73 HIGH ROAD,CARE ESTABLISHMENT,LD - Fenland Locality - Cost of Care,LD - Fenland  - Care,Supported Living
Cambridgeshire County Council,01-Oct-21,51301652287,"-1,249.72",73 HIGH ROAD,CARE ESTABLISHMENT,LD - Fenland Locality - Cost of Care,LD - Fenland  - Care,Supported Living
Cambridgeshire County Council,01-Oct-21,51301652287,"-1,249.72",73 HIGH ROAD,CARE ESTABLISHMENT,LD - Fenland Locality - Cost of Care,LD - Fenland  - Care,Supported Living
Cambridgeshire County Council,01-Oct-21,51301652287,"-1,249.72",73 HIGH ROAD,CARE ESTABLISHMENT,LD - Fenland Locality - Cost of Care,LD - Fenland  - Care,Supported Living
Cambridgeshire County Council,01-Oct-21,51301652287,"-1,249.72",73 HIGH ROAD,CARE ESTABLISHMENT,LD - Fenland Locality - Cost of Care,LD - Fenland  - Care,Supported Living
Cambridgeshire County Council,01-Oct-21,51301652287,"-1,249.72",73 HIGH ROAD,CARE ESTABLISHMENT,LD - Fenland Locality - Cost of Care,LD - Fenland  - Care,Supported Living
Cambridgeshire County Council,01-Oct-21,51301652287,"-1,249.72",73 HIGH ROAD,CARE ESTABLISHMENT,LD - Fenland Locality - Cost of Care,LD - Fenland  - Care,Supported Living
Cambridgeshire County Council,01-Oct-21,51301652287,"-1,249.72",73 HIGH ROAD,CARE ESTABLISHMENT,LD - Fenland Locality - Cost of Care,LD - Fenland  - Care,Supported Living
Cambridgeshire County Council,01-Oct-21,51301652287,"-1,249.72",73 HIGH ROAD,CARE ESTABLISHMENT,LD - Fenland Locality - Cost of Care,LD - Fenland  - Care,Supported Living
Cambridgeshire County Council,01-Oct-21,51301652287,"-1,249.72",73 HIGH ROAD,CARE ESTABLISHMENT,LD - Fenland Locality - Cost of Care,LD - Fenland  - Care,Supported Living
Cambridgeshire County Council,01-Oct-21,51301652287,"-1,249.72",73 HIGH ROAD,CARE ESTABLISHMENT,LD - Fenland Locality - Cost of Care,LD - Fenland  - Care,Supported Living
Cambridgeshire County Council,01-Oct-21,51301652287,"-1,249.72",73 HIGH ROAD,CARE ESTABLISHMENT,LD - Fenland Locality - Cost of Care,LD - Fenland  - Care,Supported Living
Cambridgeshire County Council,01-Oct-21,51301652287,"-1,249.72",73 HIGH ROAD,CARE ESTABLISHMENT,LD - Fenland Locality - Cost of Care,LD - Fenland  - Care,Supported Living
Cambridgeshire County Council,01-Oct-21,51301652287,"-1,249.72",73 HIGH ROAD,CARE ESTABLISHMENT,LD - Fenland Locality - Cost of Care,LD - Fenland  - Care,Supported Living
Cambridgeshire County Council,01-Oct-21,51301652287,"-1,249.72",73 HIGH ROAD,CARE ESTABLISHMENT,LD - Fenland Locality - Cost of Care,LD - Fenland  - Care,Supported Living
Cambridgeshire County Council,01-Oct-21,51301652287,"-1,249.72",73 HIGH ROAD,CARE ESTABLISHMENT,LD - Fenland Locality - Cost of Care,LD - Fenland  - Care,Supported Living
Cambridgeshire County Council,01-Oct-21,51301652287,"-1,249.72",73 HIGH ROAD,CARE ESTABLISHMENT,LD - Fenland Locality - Cost of Care,LD - Fenland  - Care,Supported Living
Cambridgeshire County Council,01-Oct-21,51301652287,"-1,249.72",73 HIGH ROAD,CARE ESTABLISHMENT,LD - Fenland Locality - Cost of Care,LD - Fenland  - Care,Supported Living
Cambridgeshire County Council,01-Oct-21,51301652287,"-1,249.72",73 HIGH ROAD,CARE ESTABLISHMENT,LD - Fenland Locality - Cost of Care,LD - Fenland  - Care,Supported Living
Cambridgeshire County Council,01-Oct-21,51301652287,"-1,249.72",73 HIGH ROAD,CARE ESTABLISHMENT,LD - Fenland Locality - Cost of Care,LD - Fenland  - Care,Supported Living
Cambridgeshire County Council,01-Oct-21,51301652287,"-1,249.72",73 HIGH ROAD,CARE ESTABLISHMENT,LD - Fenland Locality - Cost of Care,LD - Fenland  - Care,Supported Living
Cambridgeshire County Council,01-Oct-21,51301652287,"-1,249.72",73 HIGH ROAD,CARE ESTABLISHMENT,LD - Fenland Locality - Cost of Care,LD - Fenland  - Care,Supported Living
Cambridgeshire County Council,01-Oct-21,51301652287,"-1,249.72",73 HIGH ROAD,CARE ESTABLISHMENT,LD - Fenland Locality - Cost of Care,LD - Fenland  - Care,Supported Living
Cambridgeshire County Council,01-Oct-21,51301652287,"-1,249.72",73 HIGH ROAD,CARE ESTABLISHMENT,LD - Fenland Locality - Cost of Care,LD - Fenland  - Care,Supported Living
Cambridgeshire County Council,01-Oct-21,51301652287,"-1,249.72",73 HIGH ROAD,CARE ESTABLISHMENT,LD - Fenland Locality - Cost of Care,LD - Fenland  - Care,Supported Living
Cambridgeshire County Council,01-Oct-21,51301652287,"-1,249.72",73 HIGH ROAD,CARE ESTABLISHMENT,LD - Fenland Locality - Cost of Care,LD - Fenland  - Care,Supported Living
Cambridgeshire County Council,01-Oct-21,51301652287,"-1,249.72",73 HIGH ROAD,CARE ESTABLISHMENT,LD - Fenland Locality - Cost of Care,LD - Fenland  - Care,Supported Living
Cambridgeshire County Council,01-Oct-21,51301649452,"-1,212.40",ETHELDRED HOUSE,CARE ESTABLISHMENT,OPMH - City & South,Older People Mental Health E Cambs,Nursing Care
Cambridgeshire County Council,01-Oct-21,51301649452,"-1,212.40",ETHELDRED HOUSE,CARE ESTABLISHMENT,OPMH - City & South,Older People Mental Health E Cambs,Nursing Care
Cambridgeshire County Council,01-Oct-21,51301651698,"-1,200.00",GLENNFIELD CARE CENTRE (OP),CARE ESTABLISHMENT,OP - Fenland Blocks,Fenland - Long term blocks,Nursing Care
Cambridgeshire County Council,01-Oct-21,51301650759,"-1,187.40",CHERRY HINTON NURSING HOME,CARE ESTABLISHMENT,Physical Disablity - Cost of Care,Countywide PD Service - Care,Nursing Care
Cambridgeshire County Council,01-Oct-21,51301650759,"-1,187.40",CHERRY HINTON NURSING HOME,CARE ESTABLISHMENT,Physical Disablity - Cost of Care,Countywide PD Service - Care,Nursing Care
Cambridgeshire County Council,01-Oct-21,51301650759,"-1,187.40",CHERRY HINTON NURSING HOME,CARE ESTABLISHMENT,Physical Disablity - Cost of Care,Countywide PD Service - Care,Nursing Care
Cambridgeshire County Council,01-Oct-21,51301651882,"-1,179.90",THE CAMBRIDGE HOUSING SOCIETY LTD,CARE ESTABLISHMENT,OP - City & South Locality - Cost of Care,Older People - City & South - Care,Residential Care
Cambridgeshire County Council,01-Oct-21,51301651882,"-1,179.90",THE CAMBRIDGE HOUSING SOCIETY LTD,CARE ESTABLISHMENT,OP - City & South Locality - Cost of Care,Older People - City & South - Care,Residential Care
Cambridgeshire County Council,01-Oct-21,51301651882,"-1,179.90",THE CAMBRIDGE HOUSING SOCIETY LTD,CARE ESTABLISHMENT,OP - City & South Locality - Cost of Care,Older People - City & South - Care,Residential Care
Cambridgeshire County Council,01-Oct-21,51301651882,"-1,179.90",THE CAMBRIDGE HOUSING SOCIETY LTD,CARE ESTABLISHMENT,OP - City & South Locality - Cost of Care,Older People - City & South - Care,Residential Care
Cambridgeshire County Council,01-Oct-21,51301651882,"-1,179.90",THE CAMBRIDGE HOUSING SOCIETY LTD,CARE ESTABLISHMENT,OP - City & South Locality - Cost of Care,Older People - City & South - Care,Residential Care
Cambridgeshire County Council,01-Oct-21,51301651882,"-1,179.90",THE CAMBRIDGE HOUSING SOCIETY LTD,CARE ESTABLISHMENT,OP - City & South Locality - Cost of Care,Older People - City & South - Care,Residential Care
Cambridgeshire County Council,01-Oct-21,51301651882,"-1,179.90",THE CAMBRIDGE HOUSING SOCIETY LTD,CARE ESTABLISHMENT,OP - City & South Locality - Cost of Care,Older People - City & South - Care,Residential Care
Cambridgeshire County Council,01-Oct-21,51301651882,"-1,179.90",THE CAMBRIDGE HOUSING SOCIETY LTD,CARE ESTABLISHMENT,OP - City & South Locality - Cost of Care,Older People - City & South - Care,Residential Care
Cambridgeshire County Council,01-Oct-21,51301651882,"-1,179.90",THE CAMBRIDGE HOUSING SOCIETY LTD,CARE ESTABLISHMENT,OP - City & South Locality - Cost of Care,Older People - City & South - Care,Residential Care
Cambridgeshire County Council,01-Oct-21,51301651882,"-1,179.90",THE CAMBRIDGE HOUSING SOCIETY LTD,CARE ESTABLISHMENT,OP - City & South Locality - Cost of Care,Older People - City & South - Care,Residential Care
Cambridgeshire County Council,01-Oct-21,51301651882,"-1,179.90",THE CAMBRIDGE HOUSING SOCIETY LTD,CARE ESTABLISHMENT,OP - City & South Locality - Cost of Care,Older People - City & South - Care,Residential Care
Cambridgeshire County Council,01-Oct-21,51301651882,"-1,179.90",THE CAMBRIDGE HOUSING SOCIETY LTD,CARE ESTABLISHMENT,OP - City & South Locality - Cost of Care,Older People - City & South - Care,Residential Care
Cambridgeshire County Council,01-Oct-21,51301651882,"-1,179.90",THE CAMBRIDGE HOUSING SOCIETY LTD,CARE ESTABLISHMENT,OP - City & South Locality - Cost of Care,Older People - City & South - Care,Residential Care
Cambridgeshire County Council,01-Oct-21,51301651882,"-1,179.90",THE CAMBRIDGE HOUSING SOCIETY LTD,CARE ESTABLISHMENT,OP - City & South Locality - Cost of Care,Older People - City & South - Care,Residential Care
Cambridgeshire County Council,01-Oct-21,51301651882,"-1,179.90",THE CAMBRIDGE HOUSING SOCIETY LTD,CARE ESTABLISHMENT,OP - City & South Locality - Cost of Care,Older People - City & South - Care,Residential Care
Cambridgeshire County Council,01-Oct-21,51301651882,"-1,179.90",THE CAMBRIDGE HOUSING SOCIETY LTD,CARE ESTABLISHMENT,OP - City & South Locality - Cost of Care,Older People - City & South - Care,Residential Care
Cambridgeshire County Council,01-Oct-21,51301651882,"-1,179.90",THE CAMBRIDGE HOUSING SOCIETY LTD,CARE ESTABLISHMENT,OP - City & South Locality - Cost of Care,Older People - City & South - Care,Residential Care
Cambridgeshire County Council,01-Oct-21,51301651882,"-1,179.90",THE CAMBRIDGE HOUSING SOCIETY LTD,CARE ESTABLISHMENT,OP - City & South Locality - Cost of Care,Older People - City & South - Care,Residential Care
Cambridgeshire County Council,01-Oct-21,51301651882,"-1,179.90",THE CAMBRIDGE HOUSING SOCIETY LTD,CARE ESTABLISHMENT,OP - City & South Locality - Cost of Care,Older People - City & South - Care,Residential Care
Cambridgeshire County Council,01-Oct-21,51301651882,"-1,179.90",THE CAMBRIDGE HOUSING SOCIETY LTD,CARE ESTABLISHMENT,OP - City & South Locality - Cost of Care,Older People - City & South - Care,Residential Care
Cambridgeshire County Council,01-Oct-21,51301651882,"-1,179.90",THE CAMBRIDGE HOUSING SOCIETY LTD,CARE ESTABLISHMENT,OP - City & South Locality - Cost of Care,Older People - City & South - Care,Residential Care
Cambridgeshire County Council,01-Oct-21,51301651882,"-1,179.90",THE CAMBRIDGE HOUSING SOCIETY LTD,CARE ESTABLISHMENT,OP - City & South Locality - Cost of Care,Older People - City & South - Care,Residential Care
Cambridgeshire County Council,01-Oct-21,51301651882,"-1,179.90",THE CAMBRIDGE HOUSING SOCIETY LTD,CARE ESTABLISHMENT,OP - City & South Locality - Cost of Care,Older People - City & South - Care,Residential Care
Cambridgeshire County Council,01-Oct-21,51301651882,"-1,179.90",THE CAMBRIDGE HOUSING SOCIETY LTD,CARE ESTABLISHMENT,OP - City & South Locality - Cost of Care,Older People - City & South - Care,Residential Care
Cambridgeshire County Council,01-Oct-21,51301651882,"-1,179.90",THE CAMBRIDGE HOUSING SOCIETY LTD,CARE ESTABLISHMENT,OP - City & South Locality - Cost of Care,Older People - City & South - Care,Residential Care
Cambridgeshire County Council,01-Oct-21,51301651882,"-1,179.90",THE CAMBRIDGE HOUSING SOCIETY LTD,CARE ESTABLISHMENT,OP - City & South Locality - Cost of Care,Older People - City & South - Care,Residential Care
Cambridgeshire County Council,01-Oct-21,51301651882,"-1,179.90",THE CAMBRIDGE HOUSING SOCIETY LTD,CARE ESTABLISHMENT,OP - City & South Locality - Cost of Care,Older People - City & South - Care,Residential Care
Cambridgeshire County Council,01-Oct-21,51301651882,"-1,179.90",THE CAMBRIDGE HOUSING SOCIETY LTD,CARE ESTABLISHMENT,OP - City & South Locality - Cost of Care,Older People - City & South - Care,Residential Care
Cambridgeshire County Council,01-Oct-21,51301651882,"-1,179.90",THE CAMBRIDGE HOUSING SOCIETY LTD,CARE ESTABLISHMENT,OP - City & South Locality - Cost of Care,Older People - City & South - Care,Residential Care
Cambridgeshire County Council,01-Oct-21,51301651882,"-1,179.90",THE CAMBRIDGE HOUSING SOCIETY LTD,CARE ESTABLISHMENT,OP - City & South Locality - Cost of Care,Older People - City & South - Care,Residential Care
Cambridgeshire County Council,01-Oct-21,51301651882,"-1,179.90",THE CAMBRIDGE HOUSING SOCIETY LTD,CARE ESTABLISHMENT,OP - City & South Locality - Cost of Care,Older People - City & South - Care,Residential Care
Cambridgeshire County Council,01-Oct-21,51301651882,"-1,179.90",THE CAMBRIDGE HOUSING SOCIETY LTD,CARE ESTABLISHMENT,OP - City & South Locality - Cost of Care,Older People - City & South - Care,Residential Care
Cambridgeshire County Council,01-Oct-21,51301651882,"-1,179.90",THE CAMBRIDGE HOUSING SOCIETY LTD,CARE ESTABLISHMENT,OP - City & South Locality - Cost of Care,Older People - City & South - Care,Residential Care
Cambridgeshire County Council,01-Oct-21,51301651882,"-1,179.90",THE CAMBRIDGE HOUSING SOCIETY LTD,CARE ESTABLISHMENT,OP - City & South Locality - Cost of Care,Older People - City & South - Care,Residential Care
Cambridgeshire County Council,01-Oct-21,51301651882,"-1,179.90",THE CAMBRIDGE HOUSING SOCIETY LTD,CARE ESTABLISHMENT,OP - City & South Locality - Cost of Care,Older People - City & South - Care,Residential Care
Cambridgeshire County Council,01-Oct-21,51301651882,"-1,179.90",THE CAMBRIDGE HOUSING SOCIETY LTD,CARE ESTABLISHMENT,OP - City & South Locality - Cost of Care,Older People - City & South - Care,Residential Care
Cambridgeshire County Council,01-Oct-21,51301651882,"-1,179.90",THE CAMBRIDGE HOUSING SOCIETY LTD,CARE ESTABLISHMENT,OP - City & South Locality - Cost of Care,Older People - City & South - Care,Residential Care
Cambridgeshire County Council,01-Oct-21,51301651882,"-1,179.90",THE CAMBRIDGE HOUSING SOCIETY LTD,CARE ESTABLISHMENT,OP - City & South Locality - Cost of Care,Older People - City & South - Care,Residential Care
Cambridgeshire County Council,01-Oct-21,51301651882,"-1,179.90",THE CAMBRIDGE HOUSING SOCIETY LTD,CARE ESTABLISHMENT,OP - City & South Locality - Cost of Care,Older People - City & South - Care,Residential Care
Cambridgeshire County Council,01-Oct-21,51301651882,"-1,179.90",THE CAMBRIDGE HOUSING SOCIETY LTD,CARE ESTABLISHMENT,OP - City & South Locality - Cost of Care,Older People - City & South - Care,Residential Care
Cambridgeshire County Council,01-Oct-21,51301651882,"-1,179.90",THE CAMBRIDGE HOUSING SOCIETY LTD,CARE ESTABLISHMENT,OP - City & South Locality - Cost of Care,Older People - City & South - Care,Residential Care
Cambridgeshire County Council,01-Oct-21,51301651882,"-1,179.90",THE CAMBRIDGE HOUSING SOCIETY LTD,CARE ESTABLISHMENT,OP - City & South Locality - Cost of Care,Older People - City & South - Care,Residential Care
Cambridgeshire County Council,01-Oct-21,51301651882,"-1,179.90",THE CAMBRIDGE HOUSING SOCIETY LTD,CARE ESTABLISHMENT,OP - City & South Locality - Cost of Care,Older People - City & South - Care,Residential Care
Cambridgeshire County Council,01-Oct-21,51301651882,"-1,179.90",THE CAMBRIDGE HOUSING SOCIETY LTD,CARE ESTABLISHMENT,OP - City & South Locality - Cost of Care,Older People - City & South - Care,Residential Care
Cambridgeshire County Council,01-Oct-21,51301651882,"-1,179.90",THE CAMBRIDGE HOUSING SOCIETY LTD,CARE ESTABLISHMENT,OP - City & South Locality - Cost of Care,Older People - City & South - Care,Residential Care
Cambridgeshire County Council,01-Oct-21,51301651882,"-1,179.90",THE CAMBRIDGE HOUSING SOCIETY LTD,CARE ESTABLISHMENT,OP - City & South Locality - Cost of Care,Older People - City & South - Care,Residential Care
Cambridgeshire County Council,01-Oct-21,51301651882,"-1,179.90",THE CAMBRIDGE HOUSING SOCIETY LTD,CARE ESTABLISHMENT,OP - City & South Locality - Cost of Care,Older People - City & South - Care,Residential Care
Cambridgeshire County Council,01-Oct-21,51301651882,"-1,179.90",THE CAMBRIDGE HOUSING SOCIETY LTD,CARE ESTABLISHMENT,OP - City & South Locality - Cost of Care,Older People - City & South - Care,Residential Care
Cambridgeshire County Council,01-Oct-21,51301651882,"-1,179.90",THE CAMBRIDGE HOUSING SOCIETY LTD,CARE ESTABLISHMENT,OP - City & South Locality - Cost of Care,Older People - City & South - Care,Residential Care
Cambridgeshire County Council,01-Oct-21,51301651882,"-1,179.90",THE CAMBRIDGE HOUSING SOCIETY LTD,CARE ESTABLISHMENT,OP - City & South Locality - Cost of Care,Older People - City & South - Care,Residential Care
Cambridgeshire County Council,01-Oct-21,51301651882,"-1,179.90",THE CAMBRIDGE HOUSING SOCIETY LTD,CARE ESTABLISHMENT,OP - City & South Locality - Cost of Care,Older People - City & South - Care,Residential Care
Cambridgeshire County Council,01-Oct-21,51301651882,"-1,179.90",THE CAMBRIDGE HOUSING SOCIETY LTD,CARE ESTABLISHMENT,OP - City & South Locality - Cost of Care,Older People - City & South - Care,Residential Care
Cambridgeshire County Council,01-Oct-21,51301651882,"-1,179.90",THE CAMBRIDGE HOUSING SOCIETY LTD,CARE ESTABLISHMENT,OP - City & South Locality - Cost of Care,Older People - City & South - Care,Residential Care
Cambridgeshire County Council,01-Oct-21,51301651882,"-1,179.90",THE CAMBRIDGE HOUSING SOCIETY LTD,CARE ESTABLISHMENT,OP - City & South Locality - Cost of Care,Older People - City & South - Care,Residential Care
Cambridgeshire County Council,01-Oct-21,51301651882,"-1,179.90",THE CAMBRIDGE HOUSING SOCIETY LTD,CARE ESTABLISHMENT,OP - City & South Locality - Cost of Care,Older People - City & South - Care,Residential Care
Cambridgeshire County Council,01-Oct-21,51301651882,"-1,179.90",THE CAMBRIDGE HOUSING SOCIETY LTD,CARE ESTABLISHMENT,OP - City & South Locality - Cost of Care,Older People - City & South - Care,Residential Care
Cambridgeshire County Council,01-Oct-21,51301651882,"-1,179.90",THE CAMBRIDGE HOUSING SOCIETY LTD,CARE ESTABLISHMENT,OP - City & South Locality - Cost of Care,Older People - City & South - Care,Residential Care
Cambridgeshire County Council,01-Oct-21,51301651882,"-1,179.90",THE CAMBRIDGE HOUSING SOCIETY LTD,CARE ESTABLISHMENT,OP - City & South Locality - Cost of Care,Older People - City & South - Care,Residential Care
Cambridgeshire County Council,01-Oct-21,51301651882,"-1,179.90",THE CAMBRIDGE HOUSING SOCIETY LTD,CARE ESTABLISHMENT,OP - City & South Locality - Cost of Care,Older People - City & South - Care,Residential Care
Cambridgeshire County Council,01-Oct-21,51301651882,"-1,179.90",THE CAMBRIDGE HOUSING SOCIETY LTD,CARE ESTABLISHMENT,OP - City & South Locality - Cost of Care,Older People - City & South - Care,Residential Care
Cambridgeshire County Council,01-Oct-21,51301651882,"-1,179.90",THE CAMBRIDGE HOUSING SOCIETY LTD,CARE ESTABLISHMENT,OP - City & South Locality - Cost of Care,Older People - City & South - Care,Residential Care
Cambridgeshire County Council,01-Oct-21,51301651882,"-1,179.90",THE CAMBRIDGE HOUSING SOCIETY LTD,CARE ESTABLISHMENT,OP - City & South Locality - Cost of Care,Older People - City & South - Care,Residential Care
Cambridgeshire County Council,01-Oct-21,51301651882,"-1,179.90",THE CAMBRIDGE HOUSING SOCIETY LTD,CARE ESTABLISHMENT,OP - City & South Locality - Cost of Care,Older People - City & South - Care,Residential Care
Cambridgeshire County Council,01-Oct-21,51301651882,"-1,179.90",THE CAMBRIDGE HOUSING SOCIETY LTD,CARE ESTABLISHMENT,OP - City & South Locality - Cost of Care,Older People - City & South - Care,Residential Care
Cambridgeshire County Council,01-Oct-21,51301651882,"-1,179.90",THE CAMBRIDGE HOUSING SOCIETY LTD,CARE ESTABLISHMENT,OP - City & South Locality - Cost of Care,Older People - City & South - Care,Residential Care
Cambridgeshire County Council,01-Oct-21,51301651882,"-1,179.90",THE CAMBRIDGE HOUSING SOCIETY LTD,CARE ESTABLISHMENT,OP - City & South Locality - Cost of Care,Older People - City & South - Care,Residential Care
Cambridgeshire County Council,01-Oct-21,51301651882,"-1,179.90",THE CAMBRIDGE HOUSING SOCIETY LTD,CARE ESTABLISHMENT,OP - City & South Locality - Cost of Care,Older People - City & South - Care,Residential Care
Cambridgeshire County Council,01-Oct-21,51301651882,"-1,179.90",THE CAMBRIDGE HOUSING SOCIETY LTD,CARE ESTABLISHMENT,OP - City & South Locality - Cost of Care,Older People - City & South - Care,Residential Care
Cambridgeshire County Council,01-Oct-21,51301651882,"-1,179.90",THE CAMBRIDGE HOUSING SOCIETY LTD,CARE ESTABLISHMENT,OP - City & South Locality - Cost of Care,Older People - City & South - Care,Residential Care
Cambridgeshire County Council,01-Oct-21,51301651882,"-1,179.90",THE CAMBRIDGE HOUSING SOCIETY LTD,CARE ESTABLISHMENT,OP - City & South Locality - Cost of Care,Older People - City & South - Care,Residential Care
Cambridgeshire County Council,01-Oct-21,51301651882,"-1,179.90",THE CAMBRIDGE HOUSING SOCIETY LTD,CARE ESTABLISHMENT,OP - City & South Locality - Cost of Care,Older People - City & South - Care,Residential Care
Cambridgeshire County Council,01-Oct-21,51301651882,"-1,179.90",THE CAMBRIDGE HOUSING SOCIETY LTD,CARE ESTABLISHMENT,OP - City & South Locality - Cost of Care,Older People - City & South - Care,Residential Care
Cambridgeshire County Council,01-Oct-21,51301651882,"-1,179.90",THE CAMBRIDGE HOUSING SOCIETY LTD,CARE ESTABLISHMENT,OP - City & South Locality - Cost of Care,Older People - City & South - Care,Residential Care
Cambridgeshire County Council,01-Oct-21,51301651882,"-1,179.90",THE CAMBRIDGE HOUSING SOCIETY LTD,CARE ESTABLISHMENT,OP - City & South Locality - Cost of Care,Older People - City & South - Care,Residential Care
Cambridgeshire County Council,01-Oct-21,51301651882,"-1,179.90",THE CAMBRIDGE HOUSING SOCIETY LTD,CARE ESTABLISHMENT,OP - City & South Locality - Cost of Care,Older People - City & South - Care,Residential Care
Cambridgeshire County Council,01-Oct-21,51301651882,"-1,179.90",THE CAMBRIDGE HOUSING SOCIETY LTD,CARE ESTABLISHMENT,OP - City & South Locality - Cost of Care,Older People - City & South - Care,Residential Care
Cambridgeshire County Council,01-Oct-21,51301651882,"-1,179.90",THE CAMBRIDGE HOUSING SOCIETY LTD,CARE ESTABLISHMENT,OP - City & South Locality - Cost of Care,Older People - City & South - Care,Residential Care
Cambridgeshire County Council,01-Oct-21,51301651882,"-1,179.90",THE CAMBRIDGE HOUSING SOCIETY LTD,CARE ESTABLISHMENT,OP - City & South Locality - Cost of Care,Older People - City & South - Care,Residential Care
Cambridgeshire County Council,01-Oct-21,51301651882,"-1,179.90",THE CAMBRIDGE HOUSING SOCIETY LTD,CARE ESTABLISHMENT,OP - City & South Locality - Cost of Care,Older People - City & South - Care,Residential Care
Cambridgeshire County Council,01-Oct-21,51301651882,"-1,179.90",THE CAMBRIDGE HOUSING SOCIETY LTD,CARE ESTABLISHMENT,OP - City & South Locality - Cost of Care,Older People - City & South - Care,Residential Care
Cambridgeshire County Council,01-Oct-21,51301651882,"-1,179.90",THE CAMBRIDGE HOUSING SOCIETY LTD,CARE ESTABLISHMENT,OP - City & South Locality - Cost of Care,Older People - City & South - Care,Residential Care
Cambridgeshire County Council,01-Oct-21,51301651882,"-1,179.90",THE CAMBRIDGE HOUSING SOCIETY LTD,CARE ESTABLISHMENT,OP - City & South Locality - Cost of Care,Older People - City & South - Care,Residential Care
Cambridgeshire County Council,01-Oct-21,51301651882,"-1,179.90",THE CAMBRIDGE HOUSING SOCIETY LTD,CARE ESTABLISHMENT,OP - City & South Locality - Cost of Care,Older People - City & South - Care,Residential Care
Cambridgeshire County Council,01-Oct-21,51301651882,"-1,179.90",THE CAMBRIDGE HOUSING SOCIETY LTD,CARE ESTABLISHMENT,OP - City & South Locality - Cost of Care,Older People - City & South - Care,Residential Care
Cambridgeshire County Council,01-Oct-21,51301651882,"-1,179.90",THE CAMBRIDGE HOUSING SOCIETY LTD,CARE ESTABLISHMENT,OP - City & South Locality - Cost of Care,Older People - City & South - Care,Residential Care
Cambridgeshire County Council,01-Oct-21,51301651939,"-1,166.08",BARCHESTER HEALTHCARE HOMES LTD,CARE ESTABLISHMENT,AMH - City South,Cambridge South Mental Health,Nursing Care
Cambridgeshire County Council,01-Oct-21,51301651939,"-1,166.08",BARCHESTER HEALTHCARE HOMES LTD,CARE ESTABLISHMENT,AMH - City South,Cambridge South Mental Health,Nursing Care
Cambridgeshire County Council,01-Oct-21,51301651939,"-1,166.08",BARCHESTER HEALTHCARE HOMES LTD,CARE ESTABLISHMENT,AMH - City South,Cambridge South Mental Health,Nursing Care
Cambridgeshire County Council,01-Oct-21,51301651939,"-1,166.08",BARCHESTER HEALTHCARE HOMES LTD,CARE ESTABLISHMENT,AMH - City South,Cambridge South Mental Health,Nursing Care
Cambridgeshire County Council,01-Oct-21,51301651939,"-1,166.08",BARCHESTER HEALTHCARE HOMES LTD,CARE ESTABLISHMENT,AMH - City South,Cambridge South Mental Health,Nursing Care
Cambridgeshire County Council,01-Oct-21,51301651939,"-1,166.08",BARCHESTER HEALTHCARE HOMES LTD,CARE ESTABLISHMENT,AMH - City South,Cambridge South Mental Health,Nursing Care
Cambridgeshire County Council,01-Oct-21,51301651939,"-1,166.08",BARCHESTER HEALTHCARE HOMES LTD,CARE ESTABLISHMENT,AMH - City South,Cambridge South Mental Health,Nursing Care
Cambridgeshire County Council,01-Oct-21,51301651939,"-1,166.08",BARCHESTER HEALTHCARE HOMES LTD,CARE ESTABLISHMENT,AMH - City South,Cambridge South Mental Health,Nursing Care
Cambridgeshire County Council,01-Oct-21,51301651939,"-1,166.08",BARCHESTER HEALTHCARE HOMES LTD,CARE ESTABLISHMENT,AMH - City South,Cambridge South Mental Health,Nursing Care
Cambridgeshire County Council,01-Oct-21,51301651939,"-1,166.08",BARCHESTER HEALTHCARE HOMES LTD,CARE ESTABLISHMENT,AMH - City South,Cambridge South Mental Health,Nursing Care
Cambridgeshire County Council,01-Oct-21,51301651939,"-1,166.08",BARCHESTER HEALTHCARE HOMES LTD,CARE ESTABLISHMENT,AMH - City South,Cambridge South Mental Health,Nursing Care
Cambridgeshire County Council,01-Oct-21,51301651939,"-1,166.08",BARCHESTER HEALTHCARE HOMES LTD,CARE ESTABLISHMENT,AMH - City South,Cambridge South Mental Health,Nursing Care
Cambridgeshire County Council,01-Oct-21,51301651939,"-1,166.08",BARCHESTER HEALTHCARE HOMES LTD,CARE ESTABLISHMENT,AMH - City South,Cambridge South Mental Health,Nursing Care
Cambridgeshire County Council,01-Oct-21,51301651939,"-1,166.08",BARCHESTER HEALTHCARE HOMES LTD,CARE ESTABLISHMENT,AMH - City South,Cambridge South Mental Health,Nursing Care
Cambridgeshire County Council,01-Oct-21,51301651939,"-1,166.08",BARCHESTER HEALTHCARE HOMES LTD,CARE ESTABLISHMENT,AMH - City South,Cambridge South Mental Health,Nursing Care
Cambridgeshire County Council,01-Oct-21,51301651939,"-1,166.08",BARCHESTER HEALTHCARE HOMES LTD,CARE ESTABLISHMENT,AMH - City South,Cambridge South Mental Health,Nursing Care
Cambridgeshire County Council,01-Oct-21,51301651939,"-1,166.08",BARCHESTER HEALTHCARE HOMES LTD,CARE ESTABLISHMENT,AMH - City South,Cambridge South Mental Health,Nursing Care
Cambridgeshire County Council,01-Oct-21,51301651939,"-1,166.08",BARCHESTER HEALTHCARE HOMES LTD,CARE ESTABLISHMENT,AMH - City South,Cambridge South Mental Health,Nursing Care
Cambridgeshire County Council,01-Oct-21,51301651939,"-1,166.08",BARCHESTER HEALTHCARE HOMES LTD,CARE ESTABLISHMENT,AMH - City South,Cambridge South Mental Health,Nursing Care
Cambridgeshire County Council,01-Oct-21,51301651939,"-1,166.08",BARCHESTER HEALTHCARE HOMES LTD,CARE ESTABLISHMENT,AMH - City South,Cambridge South Mental Health,Nursing Care
Cambridgeshire County Council,01-Oct-21,51301651939,"-1,166.08",BARCHESTER HEALTHCARE HOMES LTD,CARE ESTABLISHMENT,AMH - City South,Cambridge South Mental Health,Nursing Care
Cambridgeshire County Council,01-Oct-21,51301651939,"-1,166.08",BARCHESTER HEALTHCARE HOMES LTD,CARE ESTABLISHMENT,AMH - City South,Cambridge South Mental Health,Nursing Care
Cambridgeshire County Council,01-Oct-21,51301651939,"-1,166.08",BARCHESTER HEALTHCARE HOMES LTD,CARE ESTABLISHMENT,AMH - City South,Cambridge South Mental Health,Nursing Care
Cambridgeshire County Council,01-Oct-21,51301651939,"-1,166.08",BARCHESTER HEALTHCARE HOMES LTD,CARE ESTABLISHMENT,AMH - City South,Cambridge South Mental Health,Nursing Care
Cambridgeshire County Council,01-Oct-21,51301651939,"-1,166.08",BARCHESTER HEALTHCARE HOMES LTD,CARE ESTABLISHMENT,AMH - City South,Cambridge South Mental Health,Nursing Care
Cambridgeshire County Council,01-Oct-21,51301651939,"-1,166.08",BARCHESTER HEALTHCARE HOMES LTD,CARE ESTABLISHMENT,AMH - City South,Cambridge South Mental Health,Nursing Care
Cambridgeshire County Council,01-Oct-21,51301651939,"-1,166.08",BARCHESTER HEALTHCARE HOMES LTD,CARE ESTABLISHMENT,AMH - City South,Cambridge South Mental Health,Nursing Care
Cambridgeshire County Council,01-Oct-21,51301651689,"-1,145.77",ABBEY HEALTHCARE (HUNTINGDON) LTD,CARE ESTABLISHMENT,OP - Hunts Blocks,Hunts - Short term blocks,Short Term maximised independence
Cambridgeshire County Council,01-Oct-21,51301651861,"-1,096.56",THE CAMBRIDGE HOUSING SOCIETY LTD,CARE ESTABLISHMENT,OP - City & South Locality - Cost of Care,Older People - City & South - Care,Residential Care
Cambridgeshire County Council,01-Oct-21,51301651861,"-1,096.56",THE CAMBRIDGE HOUSING SOCIETY LTD,CARE ESTABLISHMENT,OP - City & South Locality - Cost of Care,Older People - City & South - Care,Residential Care
Cambridgeshire County Council,01-Oct-21,51301651861,"-1,096.56",THE CAMBRIDGE HOUSING SOCIETY LTD,CARE ESTABLISHMENT,OP - City & South Locality - Cost of Care,Older People - City & South - Care,Residential Care
Cambridgeshire County Council,01-Oct-21,51301651861,"-1,096.56",THE CAMBRIDGE HOUSING SOCIETY LTD,CARE ESTABLISHMENT,OP - City & South Locality - Cost of Care,Older People - City & South - Care,Residential Care
Cambridgeshire County Council,01-Oct-21,51301651861,"-1,096.56",THE CAMBRIDGE HOUSING SOCIETY LTD,CARE ESTABLISHMENT,OP - City & South Locality - Cost of Care,Older People - City & South - Care,Residential Care
Cambridgeshire County Council,01-Oct-21,51301651861,"-1,096.56",THE CAMBRIDGE HOUSING SOCIETY LTD,CARE ESTABLISHMENT,OP - City & South Locality - Cost of Care,Older People - City & South - Care,Residential Care
Cambridgeshire County Council,01-Oct-21,51301651861,"-1,096.56",THE CAMBRIDGE HOUSING SOCIETY LTD,CARE ESTABLISHMENT,OP - City & South Locality - Cost of Care,Older People - City & South - Care,Residential Care
Cambridgeshire County Council,01-Oct-21,51301651861,"-1,096.56",THE CAMBRIDGE HOUSING SOCIETY LTD,CARE ESTABLISHMENT,OP - City & South Locality - Cost of Care,Older People - City & South - Care,Residential Care
Cambridgeshire County Council,01-Oct-21,51301651861,"-1,096.56",THE CAMBRIDGE HOUSING SOCIETY LTD,CARE ESTABLISHMENT,OP - City & South Locality - Cost of Care,Older People - City & South - Care,Residential Care
Cambridgeshire County Council,01-Oct-21,51301651861,"-1,096.56",THE CAMBRIDGE HOUSING SOCIETY LTD,CARE ESTABLISHMENT,OP - City & South Locality - Cost of Care,Older People - City & South - Care,Residential Care
Cambridgeshire County Council,01-Oct-21,51301651861,"-1,096.56",THE CAMBRIDGE HOUSING SOCIETY LTD,CARE ESTABLISHMENT,OP - City & South Locality - Cost of Care,Older People - City & South - Care,Residential Care
Cambridgeshire County Council,01-Oct-21,51301651861,"-1,096.56",THE CAMBRIDGE HOUSING SOCIETY LTD,CARE ESTABLISHMENT,OP - City & South Locality - Cost of Care,Older People - City & South - Care,Residential Care
Cambridgeshire County Council,01-Oct-21,51301651861,"-1,096.56",THE CAMBRIDGE HOUSING SOCIETY LTD,CARE ESTABLISHMENT,OP - City & South Locality - Cost of Care,Older People - City & South - Care,Residential Care
Cambridgeshire County Council,01-Oct-21,51301651861,"-1,096.56",THE CAMBRIDGE HOUSING SOCIETY LTD,CARE ESTABLISHMENT,OP - City & South Locality - Cost of Care,Older People - City & South - Care,Residential Care
Cambridgeshire County Council,01-Oct-21,51301651861,"-1,096.56",THE CAMBRIDGE HOUSING SOCIETY LTD,CARE ESTABLISHMENT,OP - City & South Locality - Cost of Care,Older People - City & South - Care,Residential Care
Cambridgeshire County Council,01-Oct-21,51301651861,"-1,096.56",THE CAMBRIDGE HOUSING SOCIETY LTD,CARE ESTABLISHMENT,OP - City & South Locality - Cost of Care,Older People - City & South - Care,Residential Care
Cambridgeshire County Council,01-Oct-21,51301651861,"-1,096.56",THE CAMBRIDGE HOUSING SOCIETY LTD,CARE ESTABLISHMENT,OP - City & South Locality - Cost of Care,Older People - City & South - Care,Residential Care
Cambridgeshire County Council,01-Oct-21,51301651861,"-1,096.56",THE CAMBRIDGE HOUSING SOCIETY LTD,CARE ESTABLISHMENT,OP - City & South Locality - Cost of Care,Older People - City & South - Care,Residential Care
Cambridgeshire County Council,01-Oct-21,51301651861,"-1,096.56",THE CAMBRIDGE HOUSING SOCIETY LTD,CARE ESTABLISHMENT,OP - City & South Locality - Cost of Care,Older People - City & South - Care,Residential Care
Cambridgeshire County Council,01-Oct-21,51301651861,"-1,096.56",THE CAMBRIDGE HOUSING SOCIETY LTD,CARE ESTABLISHMENT,OP - City & South Locality - Cost of Care,Older People - City & South - Care,Residential Care
Cambridgeshire County Council,01-Oct-21,51301651861,"-1,096.56",THE CAMBRIDGE HOUSING SOCIETY LTD,CARE ESTABLISHMENT,OP - City & South Locality - Cost of Care,Older People - City & South - Care,Residential Care
Cambridgeshire County Council,01-Oct-21,51301651861,"-1,096.56",THE CAMBRIDGE HOUSING SOCIETY LTD,CARE ESTABLISHMENT,OP - City & South Locality - Cost of Care,Older People - City & South - Care,Residential Care
Cambridgeshire County Council,01-Oct-21,51301651861,"-1,096.56",THE CAMBRIDGE HOUSING SOCIETY LTD,CARE ESTABLISHMENT,OP - City & South Locality - Cost of Care,Older People - City & South - Care,Residential Care
Cambridgeshire County Council,01-Oct-21,51301651861,"-1,096.56",THE CAMBRIDGE HOUSING SOCIETY LTD,CARE ESTABLISHMENT,OP - City & South Locality - Cost of Care,Older People - City & South - Care,Residential Care
Cambridgeshire County Council,01-Oct-21,51301651861,"-1,096.56",THE CAMBRIDGE HOUSING SOCIETY LTD,CARE ESTABLISHMENT,OP - City & South Locality - Cost of Care,Older People - City & South - Care,Residential Care
Cambridgeshire County Council,01-Oct-21,51301651861,"-1,096.56",THE CAMBRIDGE HOUSING SOCIETY LTD,CARE ESTABLISHMENT,OP - City & South Locality - Cost of Care,Older People - City & South - Care,Residential Care
Cambridgeshire County Council,01-Oct-21,51301651518,"-1,079.74",FLORIDA AVENUE (VOYAGE),CARE ESTABLISHMENT,LD - Hunts Locality - Cost of Care,LD - Huntingdonshire - Care,Supported Living
Cambridgeshire County Council,01-Oct-21,51301642692,"-1,077.98",THE MANOR CHESHIRE HOME,CARE ESTABLISHMENT,LD - East Locality - Cost of Care,LD - East Cambs - Care,Residential Care
Cambridgeshire County Council,01-Oct-21,51301651807,"-1,068.97",ROYAL MENCAP SOCIETY,CARE ESTABLISHMENT,LD - South Locality - Cost of Care,LD - South Cambs - Care,Residential Care
Cambridgeshire County Council,01-Oct-21,51301651807,"-1,068.97",ROYAL MENCAP SOCIETY,CARE ESTABLISHMENT,LD - South Locality - Cost of Care,LD - South Cambs - Care,Residential Care
Cambridgeshire County Council,01-Oct-21,51301651807,"-1,068.97",ROYAL MENCAP SOCIETY,CARE ESTABLISHMENT,LD - South Locality - Cost of Care,LD - South Cambs - Care,Residential Care
Cambridgeshire County Council,01-Oct-21,51301651807,"-1,068.97",ROYAL MENCAP SOCIETY,CARE ESTABLISHMENT,LD - South Locality - Cost of Care,LD - South Cambs - Care,Residential Care
Cambridgeshire County Council,01-Oct-21,51301651807,"-1,068.97",ROYAL MENCAP SOCIETY,CARE ESTABLISHMENT,LD - South Locality - Cost of Care,LD - South Cambs - Care,Residential Care
Cambridgeshire County Council,01-Oct-21,51301651807,"-1,068.97",ROYAL MENCAP SOCIETY,CARE ESTABLISHMENT,LD - South Locality - Cost of Care,LD - South Cambs - Care,Residential Care
Cambridgeshire County Council,01-Oct-21,51301651807,"-1,068.97",ROYAL MENCAP SOCIETY,CARE ESTABLISHMENT,LD - South Locality - Cost of Care,LD - South Cambs - Care,Residential Care
Cambridgeshire County Council,01-Oct-21,51301651807,"-1,068.97",ROYAL MENCAP SOCIETY,CARE ESTABLISHMENT,LD - South Locality - Cost of Care,LD - South Cambs - Care,Residential Care
Cambridgeshire County Council,01-Oct-21,51301651807,"-1,068.97",ROYAL MENCAP SOCIETY,CARE ESTABLISHMENT,LD - South Locality - Cost of Care,LD - South Cambs - Care,Residential Care
Cambridgeshire County Council,01-Oct-21,51301651807,"-1,068.97",ROYAL MENCAP SOCIETY,CARE ESTABLISHMENT,LD - South Locality - Cost of Care,LD - South Cambs - Care,Residential Care
Cambridgeshire County Council,01-Oct-21,51301651807,"-1,068.97",ROYAL MENCAP SOCIETY,CARE ESTABLISHMENT,LD - South Locality - Cost of Care,LD - South Cambs - Care,Residential Care
Cambridgeshire County Council,01-Oct-21,51301651807,"-1,068.97",ROYAL MENCAP SOCIETY,CARE ESTABLISHMENT,LD - South Locality - Cost of Care,LD - South Cambs - Care,Residential Care
Cambridgeshire County Council,01-Oct-21,51301651807,"-1,068.97",ROYAL MENCAP SOCIETY,CARE ESTABLISHMENT,LD - South Locality - Cost of Care,LD - South Cambs - Care,Residential Care
Cambridgeshire County Council,01-Oct-21,51301651807,"-1,068.97",ROYAL MENCAP SOCIETY,CARE ESTABLISHMENT,LD - South Locality - Cost of Care,LD - South Cambs - Care,Residential Care
Cambridgeshire County Council,01-Oct-21,51301651807,"-1,068.97",ROYAL MENCAP SOCIETY,CARE ESTABLISHMENT,LD - South Locality - Cost of Care,LD - South Cambs - Care,Residential Care
Cambridgeshire County Council,01-Oct-21,51301651807,"-1,068.97",ROYAL MENCAP SOCIETY,CARE ESTABLISHMENT,LD - South Locality - Cost of Care,LD - South Cambs - Care,Residential Care
Cambridgeshire County Council,01-Oct-21,51301651807,"-1,068.97",ROYAL MENCAP SOCIETY,CARE ESTABLISHMENT,LD - South Locality - Cost of Care,LD - South Cambs - Care,Residential Care
Cambridgeshire County Council,01-Oct-21,51301651807,"-1,068.97",ROYAL MENCAP SOCIETY,CARE ESTABLISHMENT,LD - South Locality - Cost of Care,LD - South Cambs - Care,Residential Care
Cambridgeshire County Council,01-Oct-21,51301651807,"-1,068.97",ROYAL MENCAP SOCIETY,CARE ESTABLISHMENT,LD - South Locality - Cost of Care,LD - South Cambs - Care,Residential Care
Cambridgeshire County Council,01-Oct-21,51301651807,"-1,068.97",ROYAL MENCAP SOCIETY,CARE ESTABLISHMENT,LD - South Locality - Cost of Care,LD - South Cambs - Care,Residential Care
Cambridgeshire County Council,01-Oct-21,51301651807,"-1,068.97",ROYAL MENCAP SOCIETY,CARE ESTABLISHMENT,LD - South Locality - Cost of Care,LD - South Cambs - Care,Residential Care
Cambridgeshire County Council,01-Oct-21,51301651807,"-1,068.97",ROYAL MENCAP SOCIETY,CARE ESTABLISHMENT,LD - South Locality - Cost of Care,LD - South Cambs - Care,Residential Care
Cambridgeshire County Council,01-Oct-21,51301651807,"-1,068.97",ROYAL MENCAP SOCIETY,CARE ESTABLISHMENT,LD - South Locality - Cost of Care,LD - South Cambs - Care,Residential Care
Cambridgeshire County Council,01-Oct-21,51301651807,"-1,068.97",ROYAL MENCAP SOCIETY,CARE ESTABLISHMENT,LD - South Locality - Cost of Care,LD - South Cambs - Care,Residential Care
Cambridgeshire County Council,01-Oct-21,51301651807,"-1,068.97",ROYAL MENCAP SOCIETY,CARE ESTABLISHMENT,LD - South Locality - Cost of Care,LD - South Cambs - Care,Residential Care
Cambridgeshire County Council,01-Oct-21,51301651807,"-1,068.97",ROYAL MENCAP SOCIETY,CARE ESTABLISHMENT,LD - South Locality - Cost of Care,LD - South Cambs - Care,Residential Care
Cambridgeshire County Council,01-Oct-21,51301651807,"-1,068.97",ROYAL MENCAP SOCIETY,CARE ESTABLISHMENT,LD - South Locality - Cost of Care,LD - South Cambs - Care,Residential Care
Cambridgeshire County Council,01-Oct-21,51301651807,"-1,068.97",ROYAL MENCAP SOCIETY,CARE ESTABLISHMENT,LD - South Locality - Cost of Care,LD - South Cambs - Care,Residential Care
Cambridgeshire County Council,01-Oct-21,51301651807,"-1,068.97",ROYAL MENCAP SOCIETY,CARE ESTABLISHMENT,LD - South Locality - Cost of Care,LD - South Cambs - Care,Residential Care
Cambridgeshire County Council,01-Oct-21,51301651807,"-1,068.97",ROYAL MENCAP SOCIETY,CARE ESTABLISHMENT,LD - South Locality - Cost of Care,LD - South Cambs - Care,Residential Care
Cambridgeshire County Council,01-Oct-21,51301651807,"-1,068.97",ROYAL MENCAP SOCIETY,CARE ESTABLISHMENT,LD - South Locality - Cost of Care,LD - South Cambs - Care,Residential Care
Cambridgeshire County Council,01-Oct-21,51301651807,"-1,068.97",ROYAL MENCAP SOCIETY,CARE ESTABLISHMENT,LD - South Locality - Cost of Care,LD - South Cambs - Care,Residential Care
Cambridgeshire County Council,01-Oct-21,51301651807,"-1,068.97",ROYAL MENCAP SOCIETY,CARE ESTABLISHMENT,LD - South Locality - Cost of Care,LD - South Cambs - Care,Residential Care
Cambridgeshire County Council,01-Oct-21,51301651807,"-1,068.97",ROYAL MENCAP SOCIETY,CARE ESTABLISHMENT,LD - South Locality - Cost of Care,LD - South Cambs - Care,Residential Care
Cambridgeshire County Council,01-Oct-21,51301651807,"-1,068.97",ROYAL MENCAP SOCIETY,CARE ESTABLISHMENT,LD - South Locality - Cost of Care,LD - South Cambs - Care,Residential Care
Cambridgeshire County Council,01-Oct-21,51301651807,"-1,068.97",ROYAL MENCAP SOCIETY,CARE ESTABLISHMENT,LD - South Locality - Cost of Care,LD - South Cambs - Care,Residential Care
Cambridgeshire County Council,01-Oct-21,51301651807,"-1,068.97",ROYAL MENCAP SOCIETY,CARE ESTABLISHMENT,LD - South Locality - Cost of Care,LD - South Cambs - Care,Residential Care
Cambridgeshire County Council,01-Oct-21,51301651807,"-1,068.97",ROYAL MENCAP SOCIETY,CARE ESTABLISHMENT,LD - South Locality - Cost of Care,LD - South Cambs - Care,Residential Care
Cambridgeshire County Council,01-Oct-21,51301651807,"-1,068.97",ROYAL MENCAP SOCIETY,CARE ESTABLISHMENT,LD - South Locality - Cost of Care,LD - South Cambs - Care,Residential Care
Cambridgeshire County Council,01-Oct-21,51301651807,"-1,068.97",ROYAL MENCAP SOCIETY,CARE ESTABLISHMENT,LD - South Locality - Cost of Care,LD - South Cambs - Care,Residential Care
Cambridgeshire County Council,01-Oct-21,51301651807,"-1,068.97",ROYAL MENCAP SOCIETY,CARE ESTABLISHMENT,LD - South Locality - Cost of Care,LD - South Cambs - Care,Residential Care
Cambridgeshire County Council,01-Oct-21,51301651807,"-1,068.97",ROYAL MENCAP SOCIETY,CARE ESTABLISHMENT,LD - South Locality - Cost of Care,LD - South Cambs - Care,Residential Care
Cambridgeshire County Council,01-Oct-21,51301651807,"-1,068.97",ROYAL MENCAP SOCIETY,CARE ESTABLISHMENT,LD - South Locality - Cost of Care,LD - South Cambs - Care,Residential Care
Cambridgeshire County Council,01-Oct-21,51301651807,"-1,068.97",ROYAL MENCAP SOCIETY,CARE ESTABLISHMENT,LD - South Locality - Cost of Care,LD - South Cambs - Care,Residential Care
Cambridgeshire County Council,01-Oct-21,51301651807,"-1,068.97",ROYAL MENCAP SOCIETY,CARE ESTABLISHMENT,LD - South Locality - Cost of Care,LD - South Cambs - Care,Residential Care
Cambridgeshire County Council,01-Oct-21,51301651807,"-1,068.97",ROYAL MENCAP SOCIETY,CARE ESTABLISHMENT,LD - South Locality - Cost of Care,LD - South Cambs - Care,Residential Care
Cambridgeshire County Council,01-Oct-21,51301651807,"-1,068.97",ROYAL MENCAP SOCIETY,CARE ESTABLISHMENT,LD - South Locality - Cost of Care,LD - South Cambs - Care,Residential Care
Cambridgeshire County Council,01-Oct-21,51301651807,"-1,068.97",ROYAL MENCAP SOCIETY,CARE ESTABLISHMENT,LD - South Locality - Cost of Care,LD - South Cambs - Care,Residential Care
Cambridgeshire County Council,01-Oct-21,51301651807,"-1,068.97",ROYAL MENCAP SOCIETY,CARE ESTABLISHMENT,LD - South Locality - Cost of Care,LD - South Cambs - Care,Residential Care
Cambridgeshire County Council,01-Oct-21,51301651807,"-1,068.97",ROYAL MENCAP SOCIETY,CARE ESTABLISHMENT,LD - South Locality - Cost of Care,LD - South Cambs - Care,Residential Care
Cambridgeshire County Council,01-Oct-21,51301651807,"-1,068.97",ROYAL MENCAP SOCIETY,CARE ESTABLISHMENT,LD - South Locality - Cost of Care,LD - South Cambs - Care,Residential Care
Cambridgeshire County Council,01-Oct-21,51301651807,"-1,068.97",ROYAL MENCAP SOCIETY,CARE ESTABLISHMENT,LD - South Locality - Cost of Care,LD - South Cambs - Care,Residential Care
Cambridgeshire County Council,01-Oct-21,51301651807,"-1,068.97",ROYAL MENCAP SOCIETY,CARE ESTABLISHMENT,LD - South Locality - Cost of Care,LD - South Cambs - Care,Residential Care
Cambridgeshire County Council,01-Oct-21,51301651807,"-1,068.97",ROYAL MENCAP SOCIETY,CARE ESTABLISHMENT,LD - South Locality - Cost of Care,LD - South Cambs - Care,Residential Care
Cambridgeshire County Council,01-Oct-21,51301651807,"-1,068.97",ROYAL MENCAP SOCIETY,CARE ESTABLISHMENT,LD - South Locality - Cost of Care,LD - South Cambs - Care,Residential Care
Cambridgeshire County Council,01-Oct-21,51301651807,"-1,068.97",ROYAL MENCAP SOCIETY,CARE ESTABLISHMENT,LD - South Locality - Cost of Care,LD - South Cambs - Care,Residential Care
Cambridgeshire County Council,01-Oct-21,51301651807,"-1,068.97",ROYAL MENCAP SOCIETY,CARE ESTABLISHMENT,LD - South Locality - Cost of Care,LD - South Cambs - Care,Residential Care
Cambridgeshire County Council,01-Oct-21,51301651807,"-1,068.97",ROYAL MENCAP SOCIETY,CARE ESTABLISHMENT,LD - South Locality - Cost of Care,LD - South Cambs - Care,Residential Care
Cambridgeshire County Council,01-Oct-21,51301651807,"-1,068.97",ROYAL MENCAP SOCIETY,CARE ESTABLISHMENT,LD - South Locality - Cost of Care,LD - South Cambs - Care,Residential Care
Cambridgeshire County Council,01-Oct-21,51301651807,"-1,068.97",ROYAL MENCAP SOCIETY,CARE ESTABLISHMENT,LD - South Locality - Cost of Care,LD - South Cambs - Care,Residential Care
Cambridgeshire County Council,01-Oct-21,51301651807,"-1,068.97",ROYAL MENCAP SOCIETY,CARE ESTABLISHMENT,LD - South Locality - Cost of Care,LD - South Cambs - Care,Residential Care
Cambridgeshire County Council,01-Oct-21,51301651807,"-1,068.97",ROYAL MENCAP SOCIETY,CARE ESTABLISHMENT,LD - South Locality - Cost of Care,LD - South Cambs - Care,Residential Care
Cambridgeshire County Council,01-Oct-21,51301651807,"-1,068.97",ROYAL MENCAP SOCIETY,CARE ESTABLISHMENT,LD - South Locality - Cost of Care,LD - South Cambs - Care,Residential Care
Cambridgeshire County Council,01-Oct-21,51301651807,"-1,068.97",ROYAL MENCAP SOCIETY,CARE ESTABLISHMENT,LD - South Locality - Cost of Care,LD - South Cambs - Care,Residential Care
Cambridgeshire County Council,01-Oct-21,51301651807,"-1,068.97",ROYAL MENCAP SOCIETY,CARE ESTABLISHMENT,LD - South Locality - Cost of Care,LD - South Cambs - Care,Residential Care
Cambridgeshire County Council,01-Oct-21,51301651807,"-1,068.97",ROYAL MENCAP SOCIETY,CARE ESTABLISHMENT,LD - South Locality - Cost of Care,LD - South Cambs - Care,Residential Care
Cambridgeshire County Council,01-Oct-21,51301652098,"-1,026.03",VOYAGE,CARE ESTABLISHMENT,LD - South Locality - Cost of Care,LD - South Cambs - Care,Residential Care
Cambridgeshire County Council,01-Oct-21,51301652098,"-1,026.03",VOYAGE,CARE ESTABLISHMENT,LD - South Locality - Cost of Care,LD - South Cambs - Care,Residential Care
Cambridgeshire County Council,01-Oct-21,51301652098,"-1,026.03",VOYAGE,CARE ESTABLISHMENT,LD - South Locality - Cost of Care,LD - South Cambs - Care,Residential Care
Cambridgeshire County Council,01-Oct-21,51301652098,"-1,026.03",VOYAGE,CARE ESTABLISHMENT,LD - South Locality - Cost of Care,LD - South Cambs - Care,Residential Care
Cambridgeshire County Council,01-Oct-21,51301652098,"-1,026.03",VOYAGE,CARE ESTABLISHMENT,LD - South Locality - Cost of Care,LD - South Cambs - Care,Residential Care
Cambridgeshire County Council,01-Oct-21,51301652098,"-1,026.03",VOYAGE,CARE ESTABLISHMENT,LD - South Locality - Cost of Care,LD - South Cambs - Care,Residential Care
Cambridgeshire County Council,01-Oct-21,51301652098,"-1,026.03",VOYAGE,CARE ESTABLISHMENT,LD - South Locality - Cost of Care,LD - South Cambs - Care,Residential Care
Cambridgeshire County Council,01-Oct-21,51301652098,"-1,026.03",VOYAGE,CARE ESTABLISHMENT,LD - South Locality - Cost of Care,LD - South Cambs - Care,Residential Care
Cambridgeshire County Council,01-Oct-21,51301652098,"-1,026.03",VOYAGE,CARE ESTABLISHMENT,LD - South Locality - Cost of Care,LD - South Cambs - Care,Residential Care
Cambridgeshire County Council,01-Oct-21,51301652098,"-1,026.03",VOYAGE,CARE ESTABLISHMENT,LD - South Locality - Cost of Care,LD - South Cambs - Care,Residential Care
Cambridgeshire County Council,01-Oct-21,51301652098,"-1,026.03",VOYAGE,CARE ESTABLISHMENT,LD - South Locality - Cost of Care,LD - South Cambs - Care,Residential Care
Cambridgeshire County Council,01-Oct-21,51301652098,"-1,026.03",VOYAGE,CARE ESTABLISHMENT,LD - South Locality - Cost of Care,LD - South Cambs - Care,Residential Care
Cambridgeshire County Council,01-Oct-21,51301652098,"-1,026.03",VOYAGE,CARE ESTABLISHMENT,LD - South Locality - Cost of Care,LD - South Cambs - Care,Residential Care
Cambridgeshire County Council,01-Oct-21,51301652098,"-1,026.03",VOYAGE,CARE ESTABLISHMENT,LD - South Locality - Cost of Care,LD - South Cambs - Care,Residential Care
Cambridgeshire County Council,01-Oct-21,51301652098,"-1,026.03",VOYAGE,CARE ESTABLISHMENT,LD - South Locality - Cost of Care,LD - South Cambs - Care,Residential Care
Cambridgeshire County Council,01-Oct-21,51301652098,"-1,026.03",VOYAGE,CARE ESTABLISHMENT,LD - South Locality - Cost of Care,LD - South Cambs - Care,Residential Care
Cambridgeshire County Council,01-Oct-21,51301652098,"-1,026.03",VOYAGE,CARE ESTABLISHMENT,LD - South Locality - Cost of Care,LD - South Cambs - Care,Residential Care
Cambridgeshire County Council,01-Oct-21,51301652098,"-1,026.03",VOYAGE,CARE ESTABLISHMENT,LD - South Locality - Cost of Care,LD - South Cambs - Care,Residential Care
Cambridgeshire County Council,01-Oct-21,51301652098,"-1,026.03",VOYAGE,CARE ESTABLISHMENT,LD - South Locality - Cost of Care,LD - South Cambs - Care,Residential Care
Cambridgeshire County Council,01-Oct-21,51301652098,"-1,026.03",VOYAGE,CARE ESTABLISHMENT,LD - South Locality - Cost of Care,LD - South Cambs - Care,Residential Care
Cambridgeshire County Council,01-Oct-21,51301652098,"-1,026.03",VOYAGE,CARE ESTABLISHMENT,LD - South Locality - Cost of Care,LD - South Cambs - Care,Residential Care
Cambridgeshire County Council,01-Oct-21,51301652098,"-1,026.03",VOYAGE,CARE ESTABLISHMENT,LD - South Locality - Cost of Care,LD - South Cambs - Care,Residential Care
Cambridgeshire County Council,01-Oct-21,51301652098,"-1,026.03",VOYAGE,CARE ESTABLISHMENT,LD - South Locality - Cost of Care,LD - South Cambs - Care,Residential Care
Cambridgeshire County Council,01-Oct-21,51301652098,"-1,026.03",VOYAGE,CARE ESTABLISHMENT,LD - South Locality - Cost of Care,LD - South Cambs - Care,Residential Care
Cambridgeshire County Council,01-Oct-21,51301652098,"-1,026.03",VOYAGE,CARE ESTABLISHMENT,LD - South Locality - Cost of Care,LD - South Cambs - Care,Residential Care
Cambridgeshire County Council,01-Oct-21,51301652098,"-1,026.03",VOYAGE,CARE ESTABLISHMENT,LD - South Locality - Cost of Care,LD - South Cambs - Care,Residential Care
Cambridgeshire County Council,01-Oct-21,51301652098,"-1,026.03",VOYAGE,CARE ESTABLISHMENT,LD - South Locality - Cost of Care,LD - South Cambs - Care,Residential Care
Cambridgeshire County Council,01-Oct-21,51301652098,"-1,026.03",VOYAGE,CARE ESTABLISHMENT,LD - South Locality - Cost of Care,LD - South Cambs - Care,Residential Care
Cambridgeshire County Council,01-Oct-21,51301652098,"-1,026.03",VOYAGE,CARE ESTABLISHMENT,LD - South Locality - Cost of Care,LD - South Cambs - Care,Residential Care
Cambridgeshire County Council,01-Oct-21,51301652098,"-1,026.03",VOYAGE,CARE ESTABLISHMENT,LD - South Locality - Cost of Care,LD - South Cambs - Care,Residential Care
Cambridgeshire County Council,01-Oct-21,51301652098,"-1,026.03",VOYAGE,CARE ESTABLISHMENT,LD - South Locality - Cost of Care,LD - South Cambs - Care,Residential Care
Cambridgeshire County Council,01-Oct-21,51301652098,"-1,026.03",VOYAGE,CARE ESTABLISHMENT,LD - South Locality - Cost of Care,LD - South Cambs - Care,Residential Care
Cambridgeshire County Council,01-Oct-21,51301652098,"-1,026.03",VOYAGE,CARE ESTABLISHMENT,LD - South Locality - Cost of Care,LD - South Cambs - Care,Residential Care
Cambridgeshire County Council,01-Oct-21,51301652098,"-1,026.03",VOYAGE,CARE ESTABLISHMENT,LD - South Locality - Cost of Care,LD - South Cambs - Care,Residential Care
Cambridgeshire County Council,01-Oct-21,51301652098,"-1,026.03",VOYAGE,CARE ESTABLISHMENT,LD - South Locality - Cost of Care,LD - South Cambs - Care,Residential Care
Cambridgeshire County Council,01-Oct-21,51301652098,"-1,026.03",VOYAGE,CARE ESTABLISHMENT,LD - South Locality - Cost of Care,LD - South Cambs - Care,Residential Care
Cambridgeshire County Council,01-Oct-21,51301652098,"-1,026.03",VOYAGE,CARE ESTABLISHMENT,LD - South Locality - Cost of Care,LD - South Cambs - Care,Residential Care
Cambridgeshire County Council,01-Oct-21,51301652098,"-1,026.03",VOYAGE,CARE ESTABLISHMENT,LD - South Locality - Cost of Care,LD - South Cambs - Care,Residential Care
Cambridgeshire County Council,01-Oct-21,51301652098,"-1,026.03",VOYAGE,CARE ESTABLISHMENT,LD - South Locality - Cost of Care,LD - South Cambs - Care,Residential Care
Cambridgeshire County Council,01-Oct-21,51301652098,"-1,026.03",VOYAGE,CARE ESTABLISHMENT,LD - South Locality - Cost of Care,LD - South Cambs - Care,Residential Care
Cambridgeshire County Council,01-Oct-21,51301652098,"-1,026.03",VOYAGE,CARE ESTABLISHMENT,LD - South Locality - Cost of Care,LD - South Cambs - Care,Residential Care
Cambridgeshire County Council,01-Oct-21,51301652098,"-1,026.03",VOYAGE,CARE ESTABLISHMENT,LD - South Locality - Cost of Care,LD - South Cambs - Care,Residential Care
Cambridgeshire County Council,01-Oct-21,51301652098,"-1,026.03",VOYAGE,CARE ESTABLISHMENT,LD - South Locality - Cost of Care,LD - South Cambs - Care,Residential Care
Cambridgeshire County Council,01-Oct-21,51301652098,"-1,026.03",VOYAGE,CARE ESTABLISHMENT,LD - South Locality - Cost of Care,LD - South Cambs - Care,Residential Care
Cambridgeshire County Council,01-Oct-21,51301652098,"-1,026.03",VOYAGE,CARE ESTABLISHMENT,LD - South Locality - Cost of Care,LD - South Cambs - Care,Residential Care
Cambridgeshire County Council,01-Oct-21,51301652098,"-1,026.03",VOYAGE,CARE ESTABLISHMENT,LD - South Locality - Cost of Care,LD - South Cambs - Care,Residential Care
Cambridgeshire County Council,01-Oct-21,51301652098,"-1,026.03",VOYAGE,CARE ESTABLISHMENT,LD - South Locality - Cost of Care,LD - South Cambs - Care,Residential Care
Cambridgeshire County Council,01-Oct-21,51301652098,"-1,026.03",VOYAGE,CARE ESTABLISHMENT,LD - South Locality - Cost of Care,LD - South Cambs - Care,Residential Care
Cambridgeshire County Council,01-Oct-21,51301652098,"-1,026.03",VOYAGE,CARE ESTABLISHMENT,LD - South Locality - Cost of Care,LD - South Cambs - Care,Residential Care
Cambridgeshire County Council,01-Oct-21,51301652098,"-1,026.03",VOYAGE,CARE ESTABLISHMENT,LD - South Locality - Cost of Care,LD - South Cambs - Care,Residential Care
Cambridgeshire County Council,01-Oct-21,51301652098,"-1,026.03",VOYAGE,CARE ESTABLISHMENT,LD - South Locality - Cost of Care,LD - South Cambs - Care,Residential Care
Cambridgeshire County Council,01-Oct-21,51301652098,"-1,026.03",VOYAGE,CARE ESTABLISHMENT,LD - South Locality - Cost of Care,LD - South Cambs - Care,Residential Care
Cambridgeshire County Council,01-Oct-21,51301652098,"-1,026.03",VOYAGE,CARE ESTABLISHMENT,LD - South Locality - Cost of Care,LD - South Cambs - Care,Residential Care
Cambridgeshire County Council,01-Oct-21,51301652098,"-1,026.03",VOYAGE,CARE ESTABLISHMENT,LD - South Locality - Cost of Care,LD - South Cambs - Care,Residential Care
Cambridgeshire County Council,01-Oct-21,51301652098,"-1,026.03",VOYAGE,CARE ESTABLISHMENT,LD - South Locality - Cost of Care,LD - South Cambs - Care,Residential Care
Cambridgeshire County Council,01-Oct-21,51301652098,"-1,026.03",VOYAGE,CARE ESTABLISHMENT,LD - South Locality - Cost of Care,LD - South Cambs - Care,Residential Care
Cambridgeshire County Council,01-Oct-21,51301652098,"-1,026.03",VOYAGE,CARE ESTABLISHMENT,LD - South Locality - Cost of Care,LD - South Cambs - Care,Residential Care
Cambridgeshire County Council,01-Oct-21,51301652098,"-1,026.03",VOYAGE,CARE ESTABLISHMENT,LD - South Locality - Cost of Care,LD - South Cambs - Care,Residential Care
Cambridgeshire County Council,01-Oct-21,51301652098,"-1,026.03",VOYAGE,CARE ESTABLISHMENT,LD - South Locality - Cost of Care,LD - South Cambs - Care,Residential Care
Cambridgeshire County Council,01-Oct-21,51301651192,"-1,000.00",FOUR OAKS HEALTHCARE LIMITED,CARE ESTABLISHMENT,OP - City & South Locality - Cost of Care,Older People - City & South - Care,Homecare
Cambridgeshire County Council,01-Oct-21,51301651192,"-1,000.00",FOUR OAKS HEALTHCARE LIMITED,CARE ESTABLISHMENT,OP - City & South Locality - Cost of Care,Older People - City & South - Care,Homecare
Cambridgeshire County Council,01-Oct-21,51301651192,"-1,000.00",FOUR OAKS HEALTHCARE LIMITED,CARE ESTABLISHMENT,OP - City & South Locality - Cost of Care,Older People - City & South - Care,Homecare
Cambridgeshire County Council,01-Oct-21,51301649098,-987.71,VOYAGE,CARE ESTABLISHMENT,LD - South Locality - Cost of Care,LD - South Cambs - Care,Residential Care
Cambridgeshire County Council,01-Oct-21,51301651999,-987.40,WOODLANDS CARE CENTRE,CARE ESTABLISHMENT,OP - City & South Locality - Cost of Care,Older People - City & South - Care,Residential Care
Cambridgeshire County Council,01-Oct-21,51301651999,-987.40,WOODLANDS CARE CENTRE,CARE ESTABLISHMENT,OP - City & South Locality - Cost of Care,Older People - City & South - Care,Residential Care
Cambridgeshire County Council,01-Oct-21,51301651999,-987.40,WOODLANDS CARE CENTRE,CARE ESTABLISHMENT,OP - City & South Locality - Cost of Care,Older People - City & South - Care,Residential Care
Cambridgeshire County Council,01-Oct-21,51301651999,-987.40,WOODLANDS CARE CENTRE,CARE ESTABLISHMENT,OP - City & South Locality - Cost of Care,Older People - City & South - Care,Residential Care
Cambridgeshire County Council,01-Oct-21,51301649482,-962.40,ARIA COURT,CARE ESTABLISHMENT,OP - Fenland Locality - Cost of Care,Older People - Fenland - Care,Nursing Care
Cambridgeshire County Council,01-Oct-21,51301649482,-962.40,ARIA COURT,CARE ESTABLISHMENT,OP - Fenland Locality - Cost of Care,Older People - Fenland - Care,Nursing Care
Cambridgeshire County Council,01-Oct-21,51301649482,-962.40,ARIA COURT,CARE ESTABLISHMENT,OP - Fenland Locality - Cost of Care,Older People - Fenland - Care,Nursing Care
Cambridgeshire County Council,01-Oct-21,51301649482,-962.40,ARIA COURT,CARE ESTABLISHMENT,OP - Fenland Locality - Cost of Care,Older People - Fenland - Care,Nursing Care
Cambridgeshire County Council,01-Oct-21,51301651861,-939.91,THE CAMBRIDGE HOUSING SOCIETY LTD,CARE ESTABLISHMENT,OP - City & South Locality - Cost of Care,Older People - City & South - Care,Residential Care
Cambridgeshire County Council,01-Oct-21,51301652278,-916.86,73 HIGH ROAD,CARE ESTABLISHMENT,LD - Fenland Locality - Cost of Care,LD - Fenland  - Care,Supported Living
Cambridgeshire County Council,01-Oct-21,51301652278,-916.86,73 HIGH ROAD,CARE ESTABLISHMENT,LD - Fenland Locality - Cost of Care,LD - Fenland  - Care,Supported Living
Cambridgeshire County Council,01-Oct-21,51301652278,-916.86,73 HIGH ROAD,CARE ESTABLISHMENT,LD - Fenland Locality - Cost of Care,LD - Fenland  - Care,Supported Living
Cambridgeshire County Council,01-Oct-21,51301652278,-916.86,73 HIGH ROAD,CARE ESTABLISHMENT,LD - Fenland Locality - Cost of Care,LD - Fenland  - Care,Supported Living
Cambridgeshire County Council,01-Oct-21,51301652278,-916.86,73 HIGH ROAD,CARE ESTABLISHMENT,LD - Fenland Locality - Cost of Care,LD - Fenland  - Care,Supported Living
Cambridgeshire County Council,01-Oct-21,51301652278,-916.86,73 HIGH ROAD,CARE ESTABLISHMENT,LD - Fenland Locality - Cost of Care,LD - Fenland  - Care,Supported Living
Cambridgeshire County Council,01-Oct-21,51301652278,-916.86,73 HIGH ROAD,CARE ESTABLISHMENT,LD - Fenland Locality - Cost of Care,LD - Fenland  - Care,Supported Living
Cambridgeshire County Council,01-Oct-21,51301652278,-916.86,73 HIGH ROAD,CARE ESTABLISHMENT,LD - Fenland Locality - Cost of Care,LD - Fenland  - Care,Supported Living
Cambridgeshire County Council,01-Oct-21,51301652278,-916.86,73 HIGH ROAD,CARE ESTABLISHMENT,LD - Fenland Locality - Cost of Care,LD - Fenland  - Care,Supported Living
Cambridgeshire County Council,01-Oct-21,51301652278,-916.86,73 HIGH ROAD,CARE ESTABLISHMENT,LD - Fenland Locality - Cost of Care,LD - Fenland  - Care,Supported Living
Cambridgeshire County Council,01-Oct-21,51301652278,-916.86,73 HIGH ROAD,CARE ESTABLISHMENT,LD - Fenland Locality - Cost of Care,LD - Fenland  - Care,Supported Living
Cambridgeshire County Council,01-Oct-21,51301652278,-916.86,73 HIGH ROAD,CARE ESTABLISHMENT,LD - Fenland Locality - Cost of Care,LD - Fenland  - Care,Supported Living
Cambridgeshire County Council,01-Oct-21,51301652278,-916.86,73 HIGH ROAD,CARE ESTABLISHMENT,LD - Fenland Locality - Cost of Care,LD - Fenland  - Care,Supported Living
Cambridgeshire County Council,01-Oct-21,51301652278,-916.86,73 HIGH ROAD,CARE ESTABLISHMENT,LD - Fenland Locality - Cost of Care,LD - Fenland  - Care,Supported Living
Cambridgeshire County Council,01-Oct-21,51301652278,-916.86,73 HIGH ROAD,CARE ESTABLISHMENT,LD - Fenland Locality - Cost of Care,LD - Fenland  - Care,Supported Living
Cambridgeshire County Council,01-Oct-21,51301652278,-916.86,73 HIGH ROAD,CARE ESTABLISHMENT,LD - Fenland Locality - Cost of Care,LD - Fenland  - Care,Supported Living
Cambridgeshire County Council,01-Oct-21,51301652278,-916.86,73 HIGH ROAD,CARE ESTABLISHMENT,LD - Fenland Locality - Cost of Care,LD - Fenland  - Care,Supported Living
Cambridgeshire County Council,01-Oct-21,51301652278,-916.86,73 HIGH ROAD,CARE ESTABLISHMENT,LD - Fenland Locality - Cost of Care,LD - Fenland  - Care,Supported Living
Cambridgeshire County Council,01-Oct-21,51301652278,-916.86,73 HIGH ROAD,CARE ESTABLISHMENT,LD - Fenland Locality - Cost of Care,LD - Fenland  - Care,Supported Living
Cambridgeshire County Council,01-Oct-21,51301652278,-916.86,73 HIGH ROAD,CARE ESTABLISHMENT,LD - Fenland Locality - Cost of Care,LD - Fenland  - Care,Supported Living
Cambridgeshire County Council,01-Oct-21,51301652278,-916.86,73 HIGH ROAD,CARE ESTABLISHMENT,LD - Fenland Locality - Cost of Care,LD - Fenland  - Care,Supported Living
Cambridgeshire County Council,01-Oct-21,51301652278,-916.86,73 HIGH ROAD,CARE ESTABLISHMENT,LD - Fenland Locality - Cost of Care,LD - Fenland  - Care,Supported Living
Cambridgeshire County Council,01-Oct-21,51301652278,-916.86,73 HIGH ROAD,CARE ESTABLISHMENT,LD - Fenland Locality - Cost of Care,LD - Fenland  - Care,Supported Living
Cambridgeshire County Council,01-Oct-21,51301652278,-916.86,73 HIGH ROAD,CARE ESTABLISHMENT,LD - Fenland Locality - Cost of Care,LD - Fenland  - Care,Supported Living
Cambridgeshire County Council,01-Oct-21,51301652278,-916.86,73 HIGH ROAD,CARE ESTABLISHMENT,LD - Fenland Locality - Cost of Care,LD - Fenland  - Care,Supported Living
Cambridgeshire County Council,01-Oct-21,51301652278,-916.86,73 HIGH ROAD,CARE ESTABLISHMENT,LD - Fenland Locality - Cost of Care,LD - Fenland  - Care,Supported Living
Cambridgeshire County Council,01-Oct-21,51301652278,-916.86,73 HIGH ROAD,CARE ESTABLISHMENT,LD - Fenland Locality - Cost of Care,LD - Fenland  - Care,Supported Living
Cambridgeshire County Council,01-Oct-21,51301652278,-916.86,73 HIGH ROAD,CARE ESTABLISHMENT,LD - Fenland Locality - Cost of Care,LD - Fenland  - Care,Supported Living
Cambridgeshire County Council,01-Oct-21,51301652278,-916.86,73 HIGH ROAD,CARE ESTABLISHMENT,LD - Fenland Locality - Cost of Care,LD - Fenland  - Care,Supported Living
Cambridgeshire County Council,01-Oct-21,51301652278,-916.86,73 HIGH ROAD,CARE ESTABLISHMENT,LD - Fenland Locality - Cost of Care,LD - Fenland  - Care,Supported Living
Cambridgeshire County Council,01-Oct-21,51301652278,-916.86,73 HIGH ROAD,CARE ESTABLISHMENT,LD - Fenland Locality - Cost of Care,LD - Fenland  - Care,Supported Living
Cambridgeshire County Council,01-Oct-21,51301652278,-916.86,73 HIGH ROAD,CARE ESTABLISHMENT,LD - Fenland Locality - Cost of Care,LD - Fenland  - Care,Supported Living
Cambridgeshire County Council,01-Oct-21,51301652278,-916.86,73 HIGH ROAD,CARE ESTABLISHMENT,LD - Fenland Locality - Cost of Care,LD - Fenland  - Care,Supported Living
Cambridgeshire County Council,01-Oct-21,51301652278,-916.86,73 HIGH ROAD,CARE ESTABLISHMENT,LD - Fenland Locality - Cost of Care,LD - Fenland  - Care,Supported Living
Cambridgeshire County Council,01-Oct-21,51301652278,-916.86,73 HIGH ROAD,CARE ESTABLISHMENT,LD - Fenland Locality - Cost of Care,LD - Fenland  - Care,Supported Living
Cambridgeshire County Council,01-Oct-21,51301652278,-916.86,73 HIGH ROAD,CARE ESTABLISHMENT,LD - Fenland Locality - Cost of Care,LD - Fenland  - Care,Supported Living
Cambridgeshire County Council,01-Oct-21,51301652278,-916.86,73 HIGH ROAD,CARE ESTABLISHMENT,LD - Fenland Locality - Cost of Care,LD - Fenland  - Care,Supported Living
Cambridgeshire County Council,01-Oct-21,51301652278,-916.86,73 HIGH ROAD,CARE ESTABLISHMENT,LD - Fenland Locality - Cost of Care,LD - Fenland  - Care,Supported Living
Cambridgeshire County Council,01-Oct-21,51301652278,-916.86,73 HIGH ROAD,CARE ESTABLISHMENT,LD - Fenland Locality - Cost of Care,LD - Fenland  - Care,Supported Living
Cambridgeshire County Council,01-Oct-21,51301652278,-916.86,73 HIGH ROAD,CARE ESTABLISHMENT,LD - Fenland Locality - Cost of Care,LD - Fenland  - Care,Supported Living
Cambridgeshire County Council,01-Oct-21,51301652278,-916.86,73 HIGH ROAD,CARE ESTABLISHMENT,LD - Fenland Locality - Cost of Care,LD - Fenland  - Care,Supported Living
Cambridgeshire County Council,01-Oct-21,51301652278,-916.86,73 HIGH ROAD,CARE ESTABLISHMENT,LD - Fenland Locality - Cost of Care,LD - Fenland  - Care,Supported Living
Cambridgeshire County Council,01-Oct-21,51301652278,-916.86,73 HIGH ROAD,CARE ESTABLISHMENT,LD - Fenland Locality - Cost of Care,LD - Fenland  - Care,Supported Living
Cambridgeshire County Council,01-Oct-21,51301652278,-916.86,73 HIGH ROAD,CARE ESTABLISHMENT,LD - Fenland Locality - Cost of Care,LD - Fenland  - Care,Supported Living
Cambridgeshire County Council,01-Oct-21,51301652278,-916.86,73 HIGH ROAD,CARE ESTABLISHMENT,LD - Fenland Locality - Cost of Care,LD - Fenland  - Care,Supported Living
Cambridgeshire County Council,01-Oct-21,51301652278,-916.86,73 HIGH ROAD,CARE ESTABLISHMENT,LD - Fenland Locality - Cost of Care,LD - Fenland  - Care,Supported Living
Cambridgeshire County Council,01-Oct-21,51301652278,-916.86,73 HIGH ROAD,CARE ESTABLISHMENT,LD - Fenland Locality - Cost of Care,LD - Fenland  - Care,Supported Living
Cambridgeshire County Council,01-Oct-21,51301652278,-916.86,73 HIGH ROAD,CARE ESTABLISHMENT,LD - Fenland Locality - Cost of Care,LD - Fenland  - Care,Supported Living
Cambridgeshire County Council,01-Oct-21,51301652278,-916.86,73 HIGH ROAD,CARE ESTABLISHMENT,LD - Fenland Locality - Cost of Care,LD - Fenland  - Care,Supported Living
Cambridgeshire County Council,01-Oct-21,51301652278,-916.86,73 HIGH ROAD,CARE ESTABLISHMENT,LD - Fenland Locality - Cost of Care,LD - Fenland  - Care,Supported Living
Cambridgeshire County Council,01-Oct-21,51301652278,-916.86,73 HIGH ROAD,CARE ESTABLISHMENT,LD - Fenland Locality - Cost of Care,LD - Fenland  - Care,Supported Living
Cambridgeshire County Council,01-Oct-21,51301652278,-916.86,73 HIGH ROAD,CARE ESTABLISHMENT,LD - Fenland Locality - Cost of Care,LD - Fenland  - Care,Supported Living
Cambridgeshire County Council,01-Oct-21,51301652278,-916.86,73 HIGH ROAD,CARE ESTABLISHMENT,LD - Fenland Locality - Cost of Care,LD - Fenland  - Care,Supported Living
Cambridgeshire County Council,01-Oct-21,51301652278,-916.86,73 HIGH ROAD,CARE ESTABLISHMENT,LD - Fenland Locality - Cost of Care,LD - Fenland  - Care,Supported Living
Cambridgeshire County Council,01-Oct-21,51301652278,-916.86,73 HIGH ROAD,CARE ESTABLISHMENT,LD - Fenland Locality - Cost of Care,LD - Fenland  - Care,Supported Living
Cambridgeshire County Council,01-Oct-21,51301652278,-916.86,73 HIGH ROAD,CARE ESTABLISHMENT,LD - Fenland Locality - Cost of Care,LD - Fenland  - Care,Supported Living
Cambridgeshire County Council,01-Oct-21,51301652278,-916.86,73 HIGH ROAD,CARE ESTABLISHMENT,LD - Fenland Locality - Cost of Care,LD - Fenland  - Care,Supported Living
Cambridgeshire County Council,01-Oct-21,51301652278,-916.86,73 HIGH ROAD,CARE ESTABLISHMENT,LD - Fenland Locality - Cost of Care,LD - Fenland  - Care,Supported Living
Cambridgeshire County Council,01-Oct-21,51301652278,-916.86,73 HIGH ROAD,CARE ESTABLISHMENT,LD - Fenland Locality - Cost of Care,LD - Fenland  - Care,Supported Living
Cambridgeshire County Council,01-Oct-21,51301652278,-916.86,73 HIGH ROAD,CARE ESTABLISHMENT,LD - Fenland Locality - Cost of Care,LD - Fenland  - Care,Supported Living
Cambridgeshire County Council,01-Oct-21,51301652278,-916.86,73 HIGH ROAD,CARE ESTABLISHMENT,LD - Fenland Locality - Cost of Care,LD - Fenland  - Care,Supported Living
Cambridgeshire County Council,01-Oct-21,51301652278,-916.86,73 HIGH ROAD,CARE ESTABLISHMENT,LD - Fenland Locality - Cost of Care,LD - Fenland  - Care,Supported Living
Cambridgeshire County Council,01-Oct-21,51301652278,-916.86,73 HIGH ROAD,CARE ESTABLISHMENT,LD - Fenland Locality - Cost of Care,LD - Fenland  - Care,Supported Living
Cambridgeshire County Council,01-Oct-21,51301652278,-916.86,73 HIGH ROAD,CARE ESTABLISHMENT,LD - Fenland Locality - Cost of Care,LD - Fenland  - Care,Supported Living
Cambridgeshire County Council,01-Oct-21,51301652278,-916.86,73 HIGH ROAD,CARE ESTABLISHMENT,LD - Fenland Locality - Cost of Care,LD - Fenland  - Care,Supported Living
Cambridgeshire County Council,01-Oct-21,51301652278,-916.86,73 HIGH ROAD,CARE ESTABLISHMENT,LD - Fenland Locality - Cost of Care,LD - Fenland  - Care,Supported Living
Cambridgeshire County Council,01-Oct-21,51301652278,-916.86,73 HIGH ROAD,CARE ESTABLISHMENT,LD - Fenland Locality - Cost of Care,LD - Fenland  - Care,Supported Living
Cambridgeshire County Council,01-Oct-21,51301652278,-916.86,73 HIGH ROAD,CARE ESTABLISHMENT,LD - Fenland Locality - Cost of Care,LD - Fenland  - Care,Supported Living
Cambridgeshire County Council,01-Oct-21,51301652278,-916.86,73 HIGH ROAD,CARE ESTABLISHMENT,LD - Fenland Locality - Cost of Care,LD - Fenland  - Care,Supported Living
Cambridgeshire County Council,01-Oct-21,51301652278,-916.86,73 HIGH ROAD,CARE ESTABLISHMENT,LD - Fenland Locality - Cost of Care,LD - Fenland  - Care,Supported Living
Cambridgeshire County Council,01-Oct-21,51301652278,-916.86,73 HIGH ROAD,CARE ESTABLISHMENT,LD - Fenland Locality - Cost of Care,LD - Fenland  - Care,Supported Living
Cambridgeshire County Council,01-Oct-21,51301652278,-916.86,73 HIGH ROAD,CARE ESTABLISHMENT,LD - Fenland Locality - Cost of Care,LD - Fenland  - Care,Supported Living
Cambridgeshire County Council,01-Oct-21,51301652278,-916.86,73 HIGH ROAD,CARE ESTABLISHMENT,LD - Fenland Locality - Cost of Care,LD - Fenland  - Care,Supported Living
Cambridgeshire County Council,01-Oct-21,51301652278,-916.86,73 HIGH ROAD,CARE ESTABLISHMENT,LD - Fenland Locality - Cost of Care,LD - Fenland  - Care,Supported Living
Cambridgeshire County Council,01-Oct-21,51301652278,-916.86,73 HIGH ROAD,CARE ESTABLISHMENT,LD - Fenland Locality - Cost of Care,LD - Fenland  - Care,Supported Living
Cambridgeshire County Council,01-Oct-21,51301649489,-912.40,ARIA COURT,CARE ESTABLISHMENT,OP - Fenland Locality - Cost of Care,Older People - Fenland - Care,Nursing Care
Cambridgeshire County Council,01-Oct-21,51301649489,-912.40,ARIA COURT,CARE ESTABLISHMENT,OP - Fenland Locality - Cost of Care,Older People - Fenland - Care,Nursing Care
Cambridgeshire County Council,01-Oct-21,51301649489,-912.40,ARIA COURT,CARE ESTABLISHMENT,OP - Fenland Locality - Cost of Care,Older People - Fenland - Care,Nursing Care
Cambridgeshire County Council,01-Oct-21,51301649489,-912.40,ARIA COURT,CARE ESTABLISHMENT,OP - Fenland Locality - Cost of Care,Older People - Fenland - Care,Nursing Care
Cambridgeshire County Council,01-Oct-21,51301649489,-912.40,ARIA COURT,CARE ESTABLISHMENT,OP - Fenland Locality - Cost of Care,Older People - Fenland - Care,Nursing Care
Cambridgeshire County Council,01-Oct-21,51301649485,-912.40,ETHELDRED HOUSE,CARE ESTABLISHMENT,OP - City & South Locality - Cost of Care,Older People - City & South - Care,Nursing Care
Cambridgeshire County Council,01-Oct-21,51301649485,-912.40,ETHELDRED HOUSE,CARE ESTABLISHMENT,OP - City & South Locality - Cost of Care,Older People - City & South - Care,Nursing Care
Cambridgeshire County Council,01-Oct-21,51301652098,-879.45,VOYAGE,CARE ESTABLISHMENT,LD - South Locality - Cost of Care,LD - South Cambs - Care,Residential Care
Cambridgeshire County Council,01-Oct-21,51301647891,-868.28,Fen HomeCare Ltd,COMPANY,OP - City & South Locality - Cost of Care,Older People - City & South - Care,Domiciliary Care
Cambridgeshire County Council,01-Oct-21,51301647891,-868.28,Fen HomeCare Ltd,COMPANY,OP - City & South Locality - Cost of Care,Older People - City & South - Care,Domiciliary Care
Cambridgeshire County Council,01-Oct-21,51301647891,-868.28,Fen HomeCare Ltd,COMPANY,OP - City & South Locality - Cost of Care,Older People - City & South - Care,Domiciliary Care
Cambridgeshire County Council,01-Oct-21,51301647891,-868.28,Fen HomeCare Ltd,COMPANY,OP - City & South Locality - Cost of Care,Older People - City & South - Care,Domiciliary Care
Cambridgeshire County Council,01-Oct-21,51301647891,-868.28,Fen HomeCare Ltd,COMPANY,OP - City & South Locality - Cost of Care,Older People - City & South - Care,Domiciliary Care
Cambridgeshire County Council,01-Oct-21,51301647891,-868.28,Fen HomeCare Ltd,COMPANY,OP - City & South Locality - Cost of Care,Older People - City & South - Care,Domiciliary Care
Cambridgeshire County Council,01-Oct-21,51301647891,-868.28,Fen HomeCare Ltd,COMPANY,OP - City & South Locality - Cost of Care,Older People - City & South - Care,Domiciliary Care
Cambridgeshire County Council,01-Oct-21,51301648995,-859.95,EMPATHY CARE SERVICES LIMITED,CARE ESTABLISHMENT,OP - Fenland Locality - Cost of Care,Older People - Fenland - Care,Domiciliary Care
Cambridgeshire County Council,01-Oct-21,51301648995,-859.95,EMPATHY CARE SERVICES LIMITED,CARE ESTABLISHMENT,OP - Fenland Locality - Cost of Care,Older People - Fenland - Care,Domiciliary Care
Cambridgeshire County Council,01-Oct-21,51301648995,-859.95,EMPATHY CARE SERVICES LIMITED,CARE ESTABLISHMENT,OP - Fenland Locality - Cost of Care,Older People - Fenland - Care,Domiciliary Care
Cambridgeshire County Council,01-Oct-21,51301648995,-859.95,EMPATHY CARE SERVICES LIMITED,CARE ESTABLISHMENT,OP - Fenland Locality - Cost of Care,Older People - Fenland - Care,Domiciliary Care
Cambridgeshire County Council,01-Oct-21,51301643887,-857.14,WOODLANDS CARE CENTRE,CARE ESTABLISHMENT,OP - City & South Locality - Cost of Care,Older People - City & South - Care,Nursing Care
Cambridgeshire County Council,01-Oct-21,51301649098,-856.72,VOYAGE,CARE ESTABLISHMENT,LD - South Locality - Cost of Care,LD - South Cambs - Care,Residential Care
Cambridgeshire County Council,01-Oct-21,51301649098,-856.72,VOYAGE,CARE ESTABLISHMENT,LD - South Locality - Cost of Care,LD - South Cambs - Care,Residential Care
Cambridgeshire County Council,01-Oct-21,51301649098,-856.72,VOYAGE,CARE ESTABLISHMENT,LD - South Locality - Cost of Care,LD - South Cambs - Care,Residential Care
Cambridgeshire County Council,01-Oct-21,51301649098,-856.72,VOYAGE,CARE ESTABLISHMENT,LD - South Locality - Cost of Care,LD - South Cambs - Care,Residential Care
Cambridgeshire County Council,01-Oct-21,51301649098,-856.72,VOYAGE,CARE ESTABLISHMENT,LD - South Locality - Cost of Care,LD - South Cambs - Care,Residential Care
Cambridgeshire County Council,01-Oct-21,51301649098,-856.72,VOYAGE,CARE ESTABLISHMENT,LD - South Locality - Cost of Care,LD - South Cambs - Care,Residential Care
Cambridgeshire County Council,01-Oct-21,51301652070,-856.28,VOYAGE,CARE ESTABLISHMENT,LD - South Locality - Cost of Care,LD - South Cambs - Care,Residential Care
Cambridgeshire County Council,01-Oct-21,51301652070,-856.28,VOYAGE,CARE ESTABLISHMENT,LD - South Locality - Cost of Care,LD - South Cambs - Care,Residential Care
Cambridgeshire County Council,01-Oct-21,51301651979,-850.00,ABBEY HEALTHCARE (HUNTINGDON) LTD,CARE ESTABLISHMENT,OP - Hunts Locality - Cost of Care,Hunts OP Team - Care,Nursing Care
Cambridgeshire County Council,01-Oct-21,51301651979,-850.00,ABBEY HEALTHCARE (HUNTINGDON) LTD,CARE ESTABLISHMENT,OP - Hunts Locality - Cost of Care,Hunts OP Team - Care,Nursing Care
Cambridgeshire County Council,01-Oct-21,51301651979,-850.00,ABBEY HEALTHCARE (HUNTINGDON) LTD,CARE ESTABLISHMENT,OP - Hunts Locality - Cost of Care,Hunts OP Team - Care,Nursing Care
Cambridgeshire County Council,01-Oct-21,51301651979,-850.00,ABBEY HEALTHCARE (HUNTINGDON) LTD,CARE ESTABLISHMENT,OP - Hunts Locality - Cost of Care,Hunts OP Team - Care,Nursing Care
Cambridgeshire County Council,01-Oct-21,51301651979,-850.00,ABBEY HEALTHCARE (HUNTINGDON) LTD,CARE ESTABLISHMENT,OP - Hunts Locality - Cost of Care,Hunts OP Team - Care,Nursing Care
Cambridgeshire County Council,01-Oct-21,51301651979,-850.00,ABBEY HEALTHCARE (HUNTINGDON) LTD,CARE ESTABLISHMENT,OP - Hunts Locality - Cost of Care,Hunts OP Team - Care,Nursing Care
Cambridgeshire County Council,01-Oct-21,51301651979,-850.00,ABBEY HEALTHCARE (HUNTINGDON) LTD,CARE ESTABLISHMENT,OP - Hunts Locality - Cost of Care,Hunts OP Team - Care,Nursing Care
Cambridgeshire County Council,01-Oct-21,51301651979,-850.00,ABBEY HEALTHCARE (HUNTINGDON) LTD,CARE ESTABLISHMENT,OP - Hunts Locality - Cost of Care,Hunts OP Team - Care,Nursing Care
Cambridgeshire County Council,01-Oct-21,51301651979,-850.00,ABBEY HEALTHCARE (HUNTINGDON) LTD,CARE ESTABLISHMENT,OP - Hunts Locality - Cost of Care,Hunts OP Team - Care,Nursing Care
Cambridgeshire County Council,01-Oct-21,51301651979,-850.00,ABBEY HEALTHCARE (HUNTINGDON) LTD,CARE ESTABLISHMENT,OP - Hunts Locality - Cost of Care,Hunts OP Team - Care,Nursing Care
Cambridgeshire County Council,01-Oct-21,51301651979,-850.00,ABBEY HEALTHCARE (HUNTINGDON) LTD,CARE ESTABLISHMENT,OP - Hunts Locality - Cost of Care,Hunts OP Team - Care,Nursing Care
Cambridgeshire County Council,01-Oct-21,51301651979,-850.00,ABBEY HEALTHCARE (HUNTINGDON) LTD,CARE ESTABLISHMENT,OP - Hunts Locality - Cost of Care,Hunts OP Team - Care,Nursing Care
Cambridgeshire County Council,01-Oct-21,51301651979,-850.00,ABBEY HEALTHCARE (HUNTINGDON) LTD,CARE ESTABLISHMENT,OP - Hunts Locality - Cost of Care,Hunts OP Team - Care,Nursing Care
Cambridgeshire County Council,01-Oct-21,51301651979,-850.00,ABBEY HEALTHCARE (HUNTINGDON) LTD,CARE ESTABLISHMENT,OP - Hunts Locality - Cost of Care,Hunts OP Team - Care,Nursing Care
Cambridgeshire County Council,01-Oct-21,51301651979,-850.00,ABBEY HEALTHCARE (HUNTINGDON) LTD,CARE ESTABLISHMENT,OP - Hunts Locality - Cost of Care,Hunts OP Team - Care,Nursing Care
Cambridgeshire County Council,01-Oct-21,51301651325,-845.35,Willow Care and Support,CARE ESTABLISHMENT,OPMH - Hunts & Fens,Older People Mental Health Fenland,Domiciliary Care
Cambridgeshire County Council,01-Oct-21,51301651325,-845.35,Willow Care and Support,CARE ESTABLISHMENT,OPMH - Hunts & Fens,Older People Mental Health Fenland,Domiciliary Care
Cambridgeshire County Council,01-Oct-21,51301651325,-845.35,Willow Care and Support,CARE ESTABLISHMENT,OPMH - Hunts & Fens,Older People Mental Health Fenland,Domiciliary Care
Cambridgeshire County Council,01-Oct-21,51301651325,-845.35,Willow Care and Support,CARE ESTABLISHMENT,OPMH - Hunts & Fens,Older People Mental Health Fenland,Domiciliary Care
Cambridgeshire County Council,01-Oct-21,51301651325,-845.35,Willow Care and Support,CARE ESTABLISHMENT,OPMH - Hunts & Fens,Older People Mental Health Fenland,Domiciliary Care
Cambridgeshire County Council,01-Oct-21,51301651325,-845.35,Willow Care and Support,CARE ESTABLISHMENT,OPMH - Hunts & Fens,Older People Mental Health Fenland,Domiciliary Care
Cambridgeshire County Council,01-Oct-21,51301651325,-845.35,Willow Care and Support,CARE ESTABLISHMENT,OPMH - Hunts & Fens,Older People Mental Health Fenland,Domiciliary Care
Cambridgeshire County Council,01-Oct-21,51301651325,-845.35,Willow Care and Support,CARE ESTABLISHMENT,OPMH - Hunts & Fens,Older People Mental Health Fenland,Domiciliary Care
Cambridgeshire County Council,01-Oct-21,51301649492,-837.40,ETHELDRED HOUSE,CARE ESTABLISHMENT,OPMH - City & South,Older People Mental Health City & South,Nursing Care
Cambridgeshire County Council,01-Oct-21,51301649492,-837.40,ETHELDRED HOUSE,CARE ESTABLISHMENT,OPMH - City & South,Older People Mental Health City & South,Nursing Care
Cambridgeshire County Council,01-Oct-21,51301649492,-837.40,ETHELDRED HOUSE,CARE ESTABLISHMENT,OPMH - City & South,Older People Mental Health City & South,Nursing Care
Cambridgeshire County Council,01-Oct-21,51301649492,-837.40,ETHELDRED HOUSE,CARE ESTABLISHMENT,OPMH - City & South,Older People Mental Health City & South,Nursing Care
Cambridgeshire County Council,01-Oct-21,51301649492,-837.40,ETHELDRED HOUSE,CARE ESTABLISHMENT,OPMH - City & South,Older People Mental Health City & South,Nursing Care
Cambridgeshire County Council,01-Oct-21,51301651693,-816.70,THE ELMS NURSING HOME,CARE ESTABLISHMENT,OP - Fenland Blocks,Fenland - Short term blocks,Nursing Care
Cambridgeshire County Council,01-Oct-21,51301651693,-816.70,THE ELMS NURSING HOME,CARE ESTABLISHMENT,OP - Fenland Blocks,Fenland - Short term blocks,Nursing Care
Cambridgeshire County Council,01-Oct-21,51301651693,-816.70,THE ELMS NURSING HOME,CARE ESTABLISHMENT,OP - Fenland Blocks,Fenland - Short term blocks,Nursing Care
Cambridgeshire County Council,01-Oct-21,51301651924,-806.26,BARCHESTER HEALTHCARE HOMES LTD,CARE ESTABLISHMENT,OPMH - City & South,Older People Mental Health City & South,Nursing Care
Cambridgeshire County Council,01-Oct-21,51301651924,-806.26,BARCHESTER HEALTHCARE HOMES LTD,CARE ESTABLISHMENT,OPMH - City & South,Older People Mental Health City & South,Nursing Care
Cambridgeshire County Council,01-Oct-21,51301651924,-806.26,BARCHESTER HEALTHCARE HOMES LTD,CARE ESTABLISHMENT,OPMH - City & South,Older People Mental Health City & South,Nursing Care
Cambridgeshire County Council,01-Oct-21,51301651924,-806.26,BARCHESTER HEALTHCARE HOMES LTD,CARE ESTABLISHMENT,OPMH - City & South,Older People Mental Health City & South,Nursing Care
Cambridgeshire County Council,01-Oct-21,51301651924,-806.26,BARCHESTER HEALTHCARE HOMES LTD,CARE ESTABLISHMENT,OPMH - City & South,Older People Mental Health City & South,Nursing Care
Cambridgeshire County Council,01-Oct-21,51301651924,-806.26,BARCHESTER HEALTHCARE HOMES LTD,CARE ESTABLISHMENT,OPMH - City & South,Older People Mental Health City & South,Nursing Care
Cambridgeshire County Council,01-Oct-21,51301651924,-806.26,BARCHESTER HEALTHCARE HOMES LTD,CARE ESTABLISHMENT,OPMH - City & South,Older People Mental Health City & South,Nursing Care
Cambridgeshire County Council,01-Oct-21,51301651924,-806.26,BARCHESTER HEALTHCARE HOMES LTD,CARE ESTABLISHMENT,OPMH - City & South,Older People Mental Health City & South,Nursing Care
Cambridgeshire County Council,01-Oct-21,51301651924,-806.26,BARCHESTER HEALTHCARE HOMES LTD,CARE ESTABLISHMENT,OPMH - City & South,Older People Mental Health City & South,Nursing Care
Cambridgeshire County Council,01-Oct-21,51301651924,-806.26,BARCHESTER HEALTHCARE HOMES LTD,CARE ESTABLISHMENT,OPMH - City & South,Older People Mental Health City & South,Nursing Care
Cambridgeshire County Council,01-Oct-21,51301651924,-806.26,BARCHESTER HEALTHCARE HOMES LTD,CARE ESTABLISHMENT,OPMH - City & South,Older People Mental Health City & South,Nursing Care
Cambridgeshire County Council,01-Oct-21,51301651924,-806.26,BARCHESTER HEALTHCARE HOMES LTD,CARE ESTABLISHMENT,OPMH - City & South,Older People Mental Health City & South,Nursing Care
Cambridgeshire County Council,01-Oct-21,51301651924,-806.26,BARCHESTER HEALTHCARE HOMES LTD,CARE ESTABLISHMENT,OPMH - City & South,Older People Mental Health City & South,Nursing Care
Cambridgeshire County Council,01-Oct-21,51301651924,-806.26,BARCHESTER HEALTHCARE HOMES LTD,CARE ESTABLISHMENT,OPMH - City & South,Older People Mental Health City & South,Nursing Care
Cambridgeshire County Council,01-Oct-21,51301651924,-806.26,BARCHESTER HEALTHCARE HOMES LTD,CARE ESTABLISHMENT,OPMH - City & South,Older People Mental Health City & South,Nursing Care
Cambridgeshire County Council,01-Oct-21,51301651924,-806.26,BARCHESTER HEALTHCARE HOMES LTD,CARE ESTABLISHMENT,OPMH - City & South,Older People Mental Health City & South,Nursing Care
Cambridgeshire County Council,01-Oct-21,51301651924,-806.26,BARCHESTER HEALTHCARE HOMES LTD,CARE ESTABLISHMENT,OPMH - City & South,Older People Mental Health City & South,Nursing Care
Cambridgeshire County Council,01-Oct-21,51301651924,-806.26,BARCHESTER HEALTHCARE HOMES LTD,CARE ESTABLISHMENT,OPMH - City & South,Older People Mental Health City & South,Nursing Care
Cambridgeshire County Council,01-Oct-21,51301651924,-806.26,BARCHESTER HEALTHCARE HOMES LTD,CARE ESTABLISHMENT,OPMH - City & South,Older People Mental Health City & South,Nursing Care
Cambridgeshire County Council,01-Oct-21,51301651924,-806.26,BARCHESTER HEALTHCARE HOMES LTD,CARE ESTABLISHMENT,OPMH - City & South,Older People Mental Health City & South,Nursing Care
Cambridgeshire County Council,01-Oct-21,51301651924,-806.26,BARCHESTER HEALTHCARE HOMES LTD,CARE ESTABLISHMENT,OPMH - City & South,Older People Mental Health City & South,Nursing Care
Cambridgeshire County Council,01-Oct-21,51301651924,-806.26,BARCHESTER HEALTHCARE HOMES LTD,CARE ESTABLISHMENT,OPMH - City & South,Older People Mental Health City & South,Nursing Care
Cambridgeshire County Council,01-Oct-21,51301651924,-806.26,BARCHESTER HEALTHCARE HOMES LTD,CARE ESTABLISHMENT,OPMH - City & South,Older People Mental Health City & South,Nursing Care
Cambridgeshire County Council,01-Oct-21,51301651924,-806.26,BARCHESTER HEALTHCARE HOMES LTD,CARE ESTABLISHMENT,OPMH - City & South,Older People Mental Health City & South,Nursing Care
Cambridgeshire County Council,01-Oct-21,51301651924,-806.26,BARCHESTER HEALTHCARE HOMES LTD,CARE ESTABLISHMENT,OPMH - City & South,Older People Mental Health City & South,Nursing Care
Cambridgeshire County Council,01-Oct-21,51301651924,-806.26,BARCHESTER HEALTHCARE HOMES LTD,CARE ESTABLISHMENT,OPMH - City & South,Older People Mental Health City & South,Nursing Care
Cambridgeshire County Council,01-Oct-21,51301651924,-806.26,BARCHESTER HEALTHCARE HOMES LTD,CARE ESTABLISHMENT,OPMH - City & South,Older People Mental Health City & South,Nursing Care
Cambridgeshire County Council,01-Oct-21,51301651924,-806.26,BARCHESTER HEALTHCARE HOMES LTD,CARE ESTABLISHMENT,OPMH - City & South,Older People Mental Health City & South,Nursing Care
Cambridgeshire County Council,01-Oct-21,51301651924,-806.26,BARCHESTER HEALTHCARE HOMES LTD,CARE ESTABLISHMENT,OPMH - City & South,Older People Mental Health City & South,Nursing Care
Cambridgeshire County Council,01-Oct-21,51301651924,-806.26,BARCHESTER HEALTHCARE HOMES LTD,CARE ESTABLISHMENT,OPMH - City & South,Older People Mental Health City & South,Nursing Care
Cambridgeshire County Council,01-Oct-21,51301651924,-806.26,BARCHESTER HEALTHCARE HOMES LTD,CARE ESTABLISHMENT,OPMH - City & South,Older People Mental Health City & South,Nursing Care
Cambridgeshire County Council,01-Oct-21,51301651924,-806.26,BARCHESTER HEALTHCARE HOMES LTD,CARE ESTABLISHMENT,OPMH - City & South,Older People Mental Health City & South,Nursing Care
Cambridgeshire County Council,01-Oct-21,51301651924,-806.26,BARCHESTER HEALTHCARE HOMES LTD,CARE ESTABLISHMENT,OPMH - City & South,Older People Mental Health City & South,Nursing Care
Cambridgeshire County Council,01-Oct-21,51301651924,-806.26,BARCHESTER HEALTHCARE HOMES LTD,CARE ESTABLISHMENT,OPMH - City & South,Older People Mental Health City & South,Nursing Care
Cambridgeshire County Council,01-Oct-21,51301651924,-806.26,BARCHESTER HEALTHCARE HOMES LTD,CARE ESTABLISHMENT,OPMH - City & South,Older People Mental Health City & South,Nursing Care
Cambridgeshire County Council,01-Oct-21,51301651924,-806.26,BARCHESTER HEALTHCARE HOMES LTD,CARE ESTABLISHMENT,OPMH - City & South,Older People Mental Health City & South,Nursing Care
Cambridgeshire County Council,01-Oct-21,51301651924,-806.26,BARCHESTER HEALTHCARE HOMES LTD,CARE ESTABLISHMENT,OPMH - City & South,Older People Mental Health City & South,Nursing Care
Cambridgeshire County Council,01-Oct-21,51301651924,-806.26,BARCHESTER HEALTHCARE HOMES LTD,CARE ESTABLISHMENT,OPMH - City & South,Older People Mental Health City & South,Nursing Care
Cambridgeshire County Council,01-Oct-21,51301651924,-806.26,BARCHESTER HEALTHCARE HOMES LTD,CARE ESTABLISHMENT,OPMH - City & South,Older People Mental Health City & South,Nursing Care
Cambridgeshire County Council,01-Oct-21,51301651924,-806.26,BARCHESTER HEALTHCARE HOMES LTD,CARE ESTABLISHMENT,OPMH - City & South,Older People Mental Health City & South,Nursing Care
Cambridgeshire County Council,01-Oct-21,51301651924,-806.26,BARCHESTER HEALTHCARE HOMES LTD,CARE ESTABLISHMENT,OPMH - City & South,Older People Mental Health City & South,Nursing Care
Cambridgeshire County Council,01-Oct-21,51301651924,-806.26,BARCHESTER HEALTHCARE HOMES LTD,CARE ESTABLISHMENT,OPMH - City & South,Older People Mental Health City & South,Nursing Care
Cambridgeshire County Council,01-Oct-21,51301651924,-806.26,BARCHESTER HEALTHCARE HOMES LTD,CARE ESTABLISHMENT,OPMH - City & South,Older People Mental Health City & South,Nursing Care
Cambridgeshire County Council,01-Oct-21,51301651814,-806.26,BARCHESTER HEALTHCARE HOMES LTD,CARE ESTABLISHMENT,OPMH - City & South,Older People Mental Health E Cambs,Nursing Care
Cambridgeshire County Council,01-Oct-21,51301651814,-806.26,BARCHESTER HEALTHCARE HOMES LTD,CARE ESTABLISHMENT,OPMH - City & South,Older People Mental Health E Cambs,Nursing Care
Cambridgeshire County Council,01-Oct-21,51301651814,-806.26,BARCHESTER HEALTHCARE HOMES LTD,CARE ESTABLISHMENT,OPMH - City & South,Older People Mental Health E Cambs,Nursing Care
Cambridgeshire County Council,01-Oct-21,51301651814,-806.26,BARCHESTER HEALTHCARE HOMES LTD,CARE ESTABLISHMENT,OPMH - City & South,Older People Mental Health E Cambs,Nursing Care
Cambridgeshire County Council,01-Oct-21,51301651814,-806.26,BARCHESTER HEALTHCARE HOMES LTD,CARE ESTABLISHMENT,OPMH - City & South,Older People Mental Health E Cambs,Nursing Care
Cambridgeshire County Council,01-Oct-21,51301651814,-806.26,BARCHESTER HEALTHCARE HOMES LTD,CARE ESTABLISHMENT,OPMH - City & South,Older People Mental Health E Cambs,Nursing Care
Cambridgeshire County Council,01-Oct-21,51301651814,-806.26,BARCHESTER HEALTHCARE HOMES LTD,CARE ESTABLISHMENT,OPMH - City & South,Older People Mental Health E Cambs,Nursing Care
Cambridgeshire County Council,01-Oct-21,51301651814,-806.26,BARCHESTER HEALTHCARE HOMES LTD,CARE ESTABLISHMENT,OPMH - City & South,Older People Mental Health E Cambs,Nursing Care
Cambridgeshire County Council,01-Oct-21,51301651814,-806.26,BARCHESTER HEALTHCARE HOMES LTD,CARE ESTABLISHMENT,OPMH - City & South,Older People Mental Health E Cambs,Nursing Care
Cambridgeshire County Council,01-Oct-21,51301651814,-806.26,BARCHESTER HEALTHCARE HOMES LTD,CARE ESTABLISHMENT,OPMH - City & South,Older People Mental Health E Cambs,Nursing Care
Cambridgeshire County Council,01-Oct-21,51301651814,-806.26,BARCHESTER HEALTHCARE HOMES LTD,CARE ESTABLISHMENT,OPMH - City & South,Older People Mental Health E Cambs,Nursing Care
Cambridgeshire County Council,01-Oct-21,51301651814,-806.26,BARCHESTER HEALTHCARE HOMES LTD,CARE ESTABLISHMENT,OPMH - City & South,Older People Mental Health E Cambs,Nursing Care
Cambridgeshire County Council,01-Oct-21,51301651814,-806.26,BARCHESTER HEALTHCARE HOMES LTD,CARE ESTABLISHMENT,OPMH - City & South,Older People Mental Health E Cambs,Nursing Care
Cambridgeshire County Council,01-Oct-21,51301651814,-806.26,BARCHESTER HEALTHCARE HOMES LTD,CARE ESTABLISHMENT,OPMH - City & South,Older People Mental Health E Cambs,Nursing Care
Cambridgeshire County Council,01-Oct-21,51301651814,-806.26,BARCHESTER HEALTHCARE HOMES LTD,CARE ESTABLISHMENT,OPMH - City & South,Older People Mental Health E Cambs,Nursing Care
Cambridgeshire County Council,01-Oct-21,51301651814,-806.26,BARCHESTER HEALTHCARE HOMES LTD,CARE ESTABLISHMENT,OPMH - City & South,Older People Mental Health E Cambs,Nursing Care
Cambridgeshire County Council,01-Oct-21,51301651814,-806.26,BARCHESTER HEALTHCARE HOMES LTD,CARE ESTABLISHMENT,OPMH - City & South,Older People Mental Health E Cambs,Nursing Care
Cambridgeshire County Council,01-Oct-21,51301651814,-806.26,BARCHESTER HEALTHCARE HOMES LTD,CARE ESTABLISHMENT,OPMH - City & South,Older People Mental Health E Cambs,Nursing Care
Cambridgeshire County Council,01-Oct-21,51301651814,-806.26,BARCHESTER HEALTHCARE HOMES LTD,CARE ESTABLISHMENT,OPMH - City & South,Older People Mental Health E Cambs,Nursing Care
Cambridgeshire County Council,01-Oct-21,51301651814,-806.26,BARCHESTER HEALTHCARE HOMES LTD,CARE ESTABLISHMENT,OPMH - City & South,Older People Mental Health E Cambs,Nursing Care
Cambridgeshire County Council,01-Oct-21,51301651814,-806.26,BARCHESTER HEALTHCARE HOMES LTD,CARE ESTABLISHMENT,OPMH - City & South,Older People Mental Health E Cambs,Nursing Care
Cambridgeshire County Council,01-Oct-21,51301651814,-806.26,BARCHESTER HEALTHCARE HOMES LTD,CARE ESTABLISHMENT,OPMH - City & South,Older People Mental Health E Cambs,Nursing Care
Cambridgeshire County Council,01-Oct-21,51301651814,-806.26,BARCHESTER HEALTHCARE HOMES LTD,CARE ESTABLISHMENT,OPMH - City & South,Older People Mental Health E Cambs,Nursing Care
Cambridgeshire County Council,01-Oct-21,51301651814,-806.26,BARCHESTER HEALTHCARE HOMES LTD,CARE ESTABLISHMENT,OPMH - City & South,Older People Mental Health E Cambs,Nursing Care
Cambridgeshire County Council,01-Oct-21,51301651814,-806.26,BARCHESTER HEALTHCARE HOMES LTD,CARE ESTABLISHMENT,OPMH - City & South,Older People Mental Health E Cambs,Nursing Care
Cambridgeshire County Council,01-Oct-21,51301651814,-806.26,BARCHESTER HEALTHCARE HOMES LTD,CARE ESTABLISHMENT,OPMH - City & South,Older People Mental Health E Cambs,Nursing Care
Cambridgeshire County Council,01-Oct-21,51301651814,-806.26,BARCHESTER HEALTHCARE HOMES LTD,CARE ESTABLISHMENT,OPMH - City & South,Older People Mental Health E Cambs,Nursing Care
Cambridgeshire County Council,01-Oct-21,51301651814,-806.26,BARCHESTER HEALTHCARE HOMES LTD,CARE ESTABLISHMENT,OPMH - City & South,Older People Mental Health E Cambs,Nursing Care
Cambridgeshire County Council,01-Oct-21,51301651814,-806.26,BARCHESTER HEALTHCARE HOMES LTD,CARE ESTABLISHMENT,OPMH - City & South,Older People Mental Health E Cambs,Nursing Care
Cambridgeshire County Council,01-Oct-21,51301651814,-806.26,BARCHESTER HEALTHCARE HOMES LTD,CARE ESTABLISHMENT,OPMH - City & South,Older People Mental Health E Cambs,Nursing Care
Cambridgeshire County Council,01-Oct-21,51301651814,-806.26,BARCHESTER HEALTHCARE HOMES LTD,CARE ESTABLISHMENT,OPMH - City & South,Older People Mental Health E Cambs,Nursing Care
Cambridgeshire County Council,01-Oct-21,51301651814,-806.26,BARCHESTER HEALTHCARE HOMES LTD,CARE ESTABLISHMENT,OPMH - City & South,Older People Mental Health E Cambs,Nursing Care
Cambridgeshire County Council,01-Oct-21,51301651814,-806.26,BARCHESTER HEALTHCARE HOMES LTD,CARE ESTABLISHMENT,OPMH - City & South,Older People Mental Health E Cambs,Nursing Care
Cambridgeshire County Council,01-Oct-21,51301651814,-806.26,BARCHESTER HEALTHCARE HOMES LTD,CARE ESTABLISHMENT,OPMH - City & South,Older People Mental Health E Cambs,Nursing Care
Cambridgeshire County Council,01-Oct-21,51301651814,-806.26,BARCHESTER HEALTHCARE HOMES LTD,CARE ESTABLISHMENT,OPMH - City & South,Older People Mental Health E Cambs,Nursing Care
Cambridgeshire County Council,01-Oct-21,51301651814,-806.26,BARCHESTER HEALTHCARE HOMES LTD,CARE ESTABLISHMENT,OPMH - City & South,Older People Mental Health E Cambs,Nursing Care
Cambridgeshire County Council,01-Oct-21,51301651814,-806.26,BARCHESTER HEALTHCARE HOMES LTD,CARE ESTABLISHMENT,OPMH - City & South,Older People Mental Health E Cambs,Nursing Care
Cambridgeshire County Council,01-Oct-21,51301651814,-806.26,BARCHESTER HEALTHCARE HOMES LTD,CARE ESTABLISHMENT,OPMH - City & South,Older People Mental Health E Cambs,Nursing Care
Cambridgeshire County Council,01-Oct-21,51301651814,-806.26,BARCHESTER HEALTHCARE HOMES LTD,CARE ESTABLISHMENT,OPMH - City & South,Older People Mental Health E Cambs,Nursing Care
Cambridgeshire County Council,01-Oct-21,51301651814,-806.26,BARCHESTER HEALTHCARE HOMES LTD,CARE ESTABLISHMENT,OPMH - City & South,Older People Mental Health E Cambs,Nursing Care
Cambridgeshire County Council,01-Oct-21,51301651814,-806.26,BARCHESTER HEALTHCARE HOMES LTD,CARE ESTABLISHMENT,OPMH - City & South,Older People Mental Health E Cambs,Nursing Care
Cambridgeshire County Council,01-Oct-21,51301651814,-806.26,BARCHESTER HEALTHCARE HOMES LTD,CARE ESTABLISHMENT,OPMH - City & South,Older People Mental Health E Cambs,Nursing Care
Cambridgeshire County Council,01-Oct-21,51301651814,-806.26,BARCHESTER HEALTHCARE HOMES LTD,CARE ESTABLISHMENT,OPMH - City & South,Older People Mental Health E Cambs,Nursing Care
Cambridgeshire County Council,01-Oct-21,51301651814,-806.26,BARCHESTER HEALTHCARE HOMES LTD,CARE ESTABLISHMENT,OPMH - City & South,Older People Mental Health E Cambs,Nursing Care
Cambridgeshire County Council,01-Oct-21,51301651814,-806.26,BARCHESTER HEALTHCARE HOMES LTD,CARE ESTABLISHMENT,OPMH - City & South,Older People Mental Health E Cambs,Nursing Care
Cambridgeshire County Council,01-Oct-21,51301651814,-806.26,BARCHESTER HEALTHCARE HOMES LTD,CARE ESTABLISHMENT,OPMH - City & South,Older People Mental Health E Cambs,Nursing Care
Cambridgeshire County Council,01-Oct-21,51301651814,-806.26,BARCHESTER HEALTHCARE HOMES LTD,CARE ESTABLISHMENT,OPMH - City & South,Older People Mental Health E Cambs,Nursing Care
Cambridgeshire County Council,01-Oct-21,51301651814,-806.26,BARCHESTER HEALTHCARE HOMES LTD,CARE ESTABLISHMENT,OPMH - City & South,Older People Mental Health E Cambs,Nursing Care
Cambridgeshire County Council,01-Oct-21,51301651814,-806.26,BARCHESTER HEALTHCARE HOMES LTD,CARE ESTABLISHMENT,OPMH - City & South,Older People Mental Health E Cambs,Nursing Care
Cambridgeshire County Council,01-Oct-21,51301651814,-806.26,BARCHESTER HEALTHCARE HOMES LTD,CARE ESTABLISHMENT,OPMH - City & South,Older People Mental Health E Cambs,Nursing Care
Cambridgeshire County Council,01-Oct-21,51301651814,-806.26,BARCHESTER HEALTHCARE HOMES LTD,CARE ESTABLISHMENT,OPMH - City & South,Older People Mental Health E Cambs,Nursing Care
Cambridgeshire County Council,01-Oct-21,51301651814,-806.26,BARCHESTER HEALTHCARE HOMES LTD,CARE ESTABLISHMENT,OPMH - City & South,Older People Mental Health E Cambs,Nursing Care
Cambridgeshire County Council,01-Oct-21,51301651814,-806.26,BARCHESTER HEALTHCARE HOMES LTD,CARE ESTABLISHMENT,OPMH - City & South,Older People Mental Health E Cambs,Nursing Care
Cambridgeshire County Council,01-Oct-21,51301651814,-806.26,BARCHESTER HEALTHCARE HOMES LTD,CARE ESTABLISHMENT,OPMH - City & South,Older People Mental Health E Cambs,Nursing Care
Cambridgeshire County Council,01-Oct-21,51301651814,-806.26,BARCHESTER HEALTHCARE HOMES LTD,CARE ESTABLISHMENT,OPMH - City & South,Older People Mental Health E Cambs,Nursing Care
Cambridgeshire County Council,01-Oct-21,51301651814,-806.26,BARCHESTER HEALTHCARE HOMES LTD,CARE ESTABLISHMENT,OPMH - City & South,Older People Mental Health E Cambs,Nursing Care
Cambridgeshire County Council,01-Oct-21,51301651814,-806.26,BARCHESTER HEALTHCARE HOMES LTD,CARE ESTABLISHMENT,OPMH - City & South,Older People Mental Health E Cambs,Nursing Care
Cambridgeshire County Council,01-Oct-21,51301651814,-806.26,BARCHESTER HEALTHCARE HOMES LTD,CARE ESTABLISHMENT,OPMH - City & South,Older People Mental Health E Cambs,Nursing Care
Cambridgeshire County Council,01-Oct-21,51301651814,-806.26,BARCHESTER HEALTHCARE HOMES LTD,CARE ESTABLISHMENT,OPMH - City & South,Older People Mental Health E Cambs,Nursing Care
Cambridgeshire County Council,01-Oct-21,51301651814,-806.26,BARCHESTER HEALTHCARE HOMES LTD,CARE ESTABLISHMENT,OPMH - City & South,Older People Mental Health E Cambs,Nursing Care
Cambridgeshire County Council,01-Oct-21,51301651814,-806.26,BARCHESTER HEALTHCARE HOMES LTD,CARE ESTABLISHMENT,OPMH - City & South,Older People Mental Health E Cambs,Nursing Care
Cambridgeshire County Council,01-Oct-21,51301651814,-806.26,BARCHESTER HEALTHCARE HOMES LTD,CARE ESTABLISHMENT,OPMH - City & South,Older People Mental Health E Cambs,Nursing Care
Cambridgeshire County Council,01-Oct-21,51301651814,-806.26,BARCHESTER HEALTHCARE HOMES LTD,CARE ESTABLISHMENT,OPMH - City & South,Older People Mental Health E Cambs,Nursing Care
Cambridgeshire County Council,01-Oct-21,51301651814,-806.26,BARCHESTER HEALTHCARE HOMES LTD,CARE ESTABLISHMENT,OPMH - City & South,Older People Mental Health E Cambs,Nursing Care
Cambridgeshire County Council,01-Oct-21,51301651814,-806.26,BARCHESTER HEALTHCARE HOMES LTD,CARE ESTABLISHMENT,OPMH - City & South,Older People Mental Health E Cambs,Nursing Care
Cambridgeshire County Council,01-Oct-21,51301651814,-806.26,BARCHESTER HEALTHCARE HOMES LTD,CARE ESTABLISHMENT,OPMH - City & South,Older People Mental Health E Cambs,Nursing Care
Cambridgeshire County Council,01-Oct-21,51301650102,-800.00,HATLEY COURT HAVEN LTD,CARE ESTABLISHMENT,OP - City & South Locality - Cost of Care,Older People - City & South - Care,Residential Care
Cambridgeshire County Council,01-Oct-21,51301650102,-800.00,HATLEY COURT HAVEN LTD,CARE ESTABLISHMENT,OP - City & South Locality - Cost of Care,Older People - City & South - Care,Residential Care
Cambridgeshire County Council,01-Oct-21,51301650102,-800.00,HATLEY COURT HAVEN LTD,CARE ESTABLISHMENT,OP - City & South Locality - Cost of Care,Older People - City & South - Care,Residential Care
Cambridgeshire County Council,01-Oct-21,51301650102,-800.00,HATLEY COURT HAVEN LTD,CARE ESTABLISHMENT,OP - City & South Locality - Cost of Care,Older People - City & South - Care,Residential Care
Cambridgeshire County Council,01-Oct-21,51301650102,-800.00,HATLEY COURT HAVEN LTD,CARE ESTABLISHMENT,OP - City & South Locality - Cost of Care,Older People - City & South - Care,Residential Care
Cambridgeshire County Council,01-Oct-21,51301650102,-800.00,HATLEY COURT HAVEN LTD,CARE ESTABLISHMENT,OP - City & South Locality - Cost of Care,Older People - City & South - Care,Residential Care
Cambridgeshire County Council,01-Oct-21,51301650102,-800.00,HATLEY COURT HAVEN LTD,CARE ESTABLISHMENT,OP - City & South Locality - Cost of Care,Older People - City & South - Care,Residential Care
Cambridgeshire County Council,01-Oct-21,51301650102,-800.00,HATLEY COURT HAVEN LTD,CARE ESTABLISHMENT,OP - City & South Locality - Cost of Care,Older People - City & South - Care,Residential Care
Cambridgeshire County Council,01-Oct-21,51301652017,-800.00,THE CAMBRIDGE HOUSING SOCIETY LTD,CARE ESTABLISHMENT,OP - City & South Locality - Cost of Care,Older People - City & South - Care,Residential Care
Cambridgeshire County Council,01-Oct-21,51301652017,-800.00,THE CAMBRIDGE HOUSING SOCIETY LTD,CARE ESTABLISHMENT,OP - City & South Locality - Cost of Care,Older People - City & South - Care,Residential Care
Cambridgeshire County Council,01-Oct-21,51301652017,-800.00,THE CAMBRIDGE HOUSING SOCIETY LTD,CARE ESTABLISHMENT,OP - City & South Locality - Cost of Care,Older People - City & South - Care,Residential Care
Cambridgeshire County Council,01-Oct-21,51301652017,-800.00,THE CAMBRIDGE HOUSING SOCIETY LTD,CARE ESTABLISHMENT,OP - City & South Locality - Cost of Care,Older People - City & South - Care,Residential Care
Cambridgeshire County Council,01-Oct-21,51301652017,-800.00,THE CAMBRIDGE HOUSING SOCIETY LTD,CARE ESTABLISHMENT,OP - City & South Locality - Cost of Care,Older People - City & South - Care,Residential Care
Cambridgeshire County Council,01-Oct-21,51301652017,-800.00,THE CAMBRIDGE HOUSING SOCIETY LTD,CARE ESTABLISHMENT,OP - City & South Locality - Cost of Care,Older People - City & South - Care,Residential Care
Cambridgeshire County Council,01-Oct-21,51301652017,-800.00,THE CAMBRIDGE HOUSING SOCIETY LTD,CARE ESTABLISHMENT,OP - City & South Locality - Cost of Care,Older People - City & South - Care,Residential Care
Cambridgeshire County Council,01-Oct-21,51301652017,-800.00,THE CAMBRIDGE HOUSING SOCIETY LTD,CARE ESTABLISHMENT,OP - City & South Locality - Cost of Care,Older People - City & South - Care,Residential Care
Cambridgeshire County Council,01-Oct-21,51301649502,-787.40,CROMWELL HOUSE HEALTH CARE,CARE ESTABLISHMENT,OP - Hunts Locality - Cost of Care,Hunts OP Team - Care,Nursing Care
Cambridgeshire County Council,01-Oct-21,51301649502,-787.40,CROMWELL HOUSE HEALTH CARE,CARE ESTABLISHMENT,OP - Hunts Locality - Cost of Care,Hunts OP Team - Care,Nursing Care
Cambridgeshire County Council,01-Oct-21,51301649502,-787.40,CROMWELL HOUSE HEALTH CARE,CARE ESTABLISHMENT,OP - Hunts Locality - Cost of Care,Hunts OP Team - Care,Nursing Care
Cambridgeshire County Council,01-Oct-21,51301649504,-787.40,CROMWELL HOUSE HEALTH CARE,CARE ESTABLISHMENT,Physical Disablity - Cost of Care,Countywide PD Service - Care,Nursing Care
Cambridgeshire County Council,01-Oct-21,51301649504,-787.40,CROMWELL HOUSE HEALTH CARE,CARE ESTABLISHMENT,Physical Disablity - Cost of Care,Countywide PD Service - Care,Nursing Care
Cambridgeshire County Council,01-Oct-21,51301649542,-780.00,GLENNFIELD CARE CENTRE (OP),CARE ESTABLISHMENT,OP - Fenland Locality - Cost of Care,Older People - Fenland - Care,Nursing Care
Cambridgeshire County Council,01-Oct-21,51301649542,-780.00,GLENNFIELD CARE CENTRE (OP),CARE ESTABLISHMENT,OP - Fenland Locality - Cost of Care,Older People - Fenland - Care,Nursing Care
Cambridgeshire County Council,01-Oct-21,51301649542,-780.00,GLENNFIELD CARE CENTRE (OP),CARE ESTABLISHMENT,OP - Fenland Locality - Cost of Care,Older People - Fenland - Care,Nursing Care
Cambridgeshire County Council,01-Oct-21,51301651518,-774.02,FLORIDA AVENUE (VOYAGE),CARE ESTABLISHMENT,LD - Hunts Locality - Cost of Care,LD - Huntingdonshire - Care,Supported Living
Cambridgeshire County Council,01-Oct-21,51301651518,-774.02,FLORIDA AVENUE (VOYAGE),CARE ESTABLISHMENT,LD - Hunts Locality - Cost of Care,LD - Huntingdonshire - Care,Supported Living
Cambridgeshire County Council,01-Oct-21,51301651518,-774.02,FLORIDA AVENUE (VOYAGE),CARE ESTABLISHMENT,LD - Hunts Locality - Cost of Care,LD - Huntingdonshire - Care,Supported Living
Cambridgeshire County Council,01-Oct-21,51301651518,-774.02,FLORIDA AVENUE (VOYAGE),CARE ESTABLISHMENT,LD - Hunts Locality - Cost of Care,LD - Huntingdonshire - Care,Supported Living
Cambridgeshire County Council,01-Oct-21,51301651518,-774.02,FLORIDA AVENUE (VOYAGE),CARE ESTABLISHMENT,LD - Hunts Locality - Cost of Care,LD - Huntingdonshire - Care,Supported Living
Cambridgeshire County Council,01-Oct-21,51301651518,-774.02,FLORIDA AVENUE (VOYAGE),CARE ESTABLISHMENT,LD - Hunts Locality - Cost of Care,LD - Huntingdonshire - Care,Supported Living
Cambridgeshire County Council,01-Oct-21,51301651518,-774.02,FLORIDA AVENUE (VOYAGE),CARE ESTABLISHMENT,LD - Hunts Locality - Cost of Care,LD - Huntingdonshire - Care,Supported Living
Cambridgeshire County Council,01-Oct-21,51301651518,-774.02,FLORIDA AVENUE (VOYAGE),CARE ESTABLISHMENT,LD - Hunts Locality - Cost of Care,LD - Huntingdonshire - Care,Supported Living
Cambridgeshire County Council,01-Oct-21,51301651518,-774.02,FLORIDA AVENUE (VOYAGE),CARE ESTABLISHMENT,LD - Hunts Locality - Cost of Care,LD - Huntingdonshire - Care,Supported Living
Cambridgeshire County Council,01-Oct-21,51301651518,-774.02,FLORIDA AVENUE (VOYAGE),CARE ESTABLISHMENT,LD - Hunts Locality - Cost of Care,LD - Huntingdonshire - Care,Supported Living
Cambridgeshire County Council,01-Oct-21,51301651518,-774.02,FLORIDA AVENUE (VOYAGE),CARE ESTABLISHMENT,LD - Hunts Locality - Cost of Care,LD - Huntingdonshire - Care,Supported Living
Cambridgeshire County Council,01-Oct-21,51301651518,-774.02,FLORIDA AVENUE (VOYAGE),CARE ESTABLISHMENT,LD - Hunts Locality - Cost of Care,LD - Huntingdonshire - Care,Supported Living
Cambridgeshire County Council,01-Oct-21,51301651518,-774.02,FLORIDA AVENUE (VOYAGE),CARE ESTABLISHMENT,LD - Hunts Locality - Cost of Care,LD - Huntingdonshire - Care,Supported Living
Cambridgeshire County Council,01-Oct-21,51301651518,-774.02,FLORIDA AVENUE (VOYAGE),CARE ESTABLISHMENT,LD - Hunts Locality - Cost of Care,LD - Huntingdonshire - Care,Supported Living
Cambridgeshire County Council,01-Oct-21,51301651518,-774.02,FLORIDA AVENUE (VOYAGE),CARE ESTABLISHMENT,LD - Hunts Locality - Cost of Care,LD - Huntingdonshire - Care,Supported Living
Cambridgeshire County Council,01-Oct-21,51301651518,-774.02,FLORIDA AVENUE (VOYAGE),CARE ESTABLISHMENT,LD - Hunts Locality - Cost of Care,LD - Huntingdonshire - Care,Supported Living
Cambridgeshire County Council,01-Oct-21,51301651518,-774.02,FLORIDA AVENUE (VOYAGE),CARE ESTABLISHMENT,LD - Hunts Locality - Cost of Care,LD - Huntingdonshire - Care,Supported Living
Cambridgeshire County Council,01-Oct-21,51301651518,-774.02,FLORIDA AVENUE (VOYAGE),CARE ESTABLISHMENT,LD - Hunts Locality - Cost of Care,LD - Huntingdonshire - Care,Supported Living
Cambridgeshire County Council,01-Oct-21,51301651518,-774.02,FLORIDA AVENUE (VOYAGE),CARE ESTABLISHMENT,LD - Hunts Locality - Cost of Care,LD - Huntingdonshire - Care,Supported Living
Cambridgeshire County Council,01-Oct-21,51301651518,-774.02,FLORIDA AVENUE (VOYAGE),CARE ESTABLISHMENT,LD - Hunts Locality - Cost of Care,LD - Huntingdonshire - Care,Supported Living
Cambridgeshire County Council,01-Oct-21,51301651518,-774.02,FLORIDA AVENUE (VOYAGE),CARE ESTABLISHMENT,LD - Hunts Locality - Cost of Care,LD - Huntingdonshire - Care,Supported Living
Cambridgeshire County Council,01-Oct-21,51301651518,-774.02,FLORIDA AVENUE (VOYAGE),CARE ESTABLISHMENT,LD - Hunts Locality - Cost of Care,LD - Huntingdonshire - Care,Supported Living
Cambridgeshire County Council,01-Oct-21,51301651518,-774.02,FLORIDA AVENUE (VOYAGE),CARE ESTABLISHMENT,LD - Hunts Locality - Cost of Care,LD - Huntingdonshire - Care,Supported Living
Cambridgeshire County Council,01-Oct-21,51301651518,-774.02,FLORIDA AVENUE (VOYAGE),CARE ESTABLISHMENT,LD - Hunts Locality - Cost of Care,LD - Huntingdonshire - Care,Supported Living
Cambridgeshire County Council,01-Oct-21,51301651518,-774.02,FLORIDA AVENUE (VOYAGE),CARE ESTABLISHMENT,LD - Hunts Locality - Cost of Care,LD - Huntingdonshire - Care,Supported Living
Cambridgeshire County Council,01-Oct-21,51301651518,-774.02,FLORIDA AVENUE (VOYAGE),CARE ESTABLISHMENT,LD - Hunts Locality - Cost of Care,LD - Huntingdonshire - Care,Supported Living
Cambridgeshire County Council,01-Oct-21,51301651518,-774.02,FLORIDA AVENUE (VOYAGE),CARE ESTABLISHMENT,LD - Hunts Locality - Cost of Care,LD - Huntingdonshire - Care,Supported Living
Cambridgeshire County Council,01-Oct-21,51301651518,-774.02,FLORIDA AVENUE (VOYAGE),CARE ESTABLISHMENT,LD - Hunts Locality - Cost of Care,LD - Huntingdonshire - Care,Supported Living
Cambridgeshire County Council,01-Oct-21,51301651518,-774.02,FLORIDA AVENUE (VOYAGE),CARE ESTABLISHMENT,LD - Hunts Locality - Cost of Care,LD - Huntingdonshire - Care,Supported Living
Cambridgeshire County Council,01-Oct-21,51301651518,-774.02,FLORIDA AVENUE (VOYAGE),CARE ESTABLISHMENT,LD - Hunts Locality - Cost of Care,LD - Huntingdonshire - Care,Supported Living
Cambridgeshire County Council,01-Oct-21,51301651518,-774.02,FLORIDA AVENUE (VOYAGE),CARE ESTABLISHMENT,LD - Hunts Locality - Cost of Care,LD - Huntingdonshire - Care,Supported Living
Cambridgeshire County Council,01-Oct-21,51301651518,-774.02,FLORIDA AVENUE (VOYAGE),CARE ESTABLISHMENT,LD - Hunts Locality - Cost of Care,LD - Huntingdonshire - Care,Supported Living
Cambridgeshire County Council,01-Oct-21,51301651518,-774.02,FLORIDA AVENUE (VOYAGE),CARE ESTABLISHMENT,LD - Hunts Locality - Cost of Care,LD - Huntingdonshire - Care,Supported Living
Cambridgeshire County Council,01-Oct-21,51301651518,-774.02,FLORIDA AVENUE (VOYAGE),CARE ESTABLISHMENT,LD - Hunts Locality - Cost of Care,LD - Huntingdonshire - Care,Supported Living
Cambridgeshire County Council,01-Oct-21,51301651518,-774.02,FLORIDA AVENUE (VOYAGE),CARE ESTABLISHMENT,LD - Hunts Locality - Cost of Care,LD - Huntingdonshire - Care,Supported Living
Cambridgeshire County Council,01-Oct-21,51301651518,-774.02,FLORIDA AVENUE (VOYAGE),CARE ESTABLISHMENT,LD - Hunts Locality - Cost of Care,LD - Huntingdonshire - Care,Supported Living
Cambridgeshire County Council,01-Oct-21,51301651518,-774.02,FLORIDA AVENUE (VOYAGE),CARE ESTABLISHMENT,LD - Hunts Locality - Cost of Care,LD - Huntingdonshire - Care,Supported Living
Cambridgeshire County Council,01-Oct-21,51301651518,-774.02,FLORIDA AVENUE (VOYAGE),CARE ESTABLISHMENT,LD - Hunts Locality - Cost of Care,LD - Huntingdonshire - Care,Supported Living
Cambridgeshire County Council,01-Oct-21,51301651518,-774.02,FLORIDA AVENUE (VOYAGE),CARE ESTABLISHMENT,LD - Hunts Locality - Cost of Care,LD - Huntingdonshire - Care,Supported Living
Cambridgeshire County Council,01-Oct-21,51301651518,-774.02,FLORIDA AVENUE (VOYAGE),CARE ESTABLISHMENT,LD - Hunts Locality - Cost of Care,LD - Huntingdonshire - Care,Supported Living
Cambridgeshire County Council,01-Oct-21,51301651518,-774.02,FLORIDA AVENUE (VOYAGE),CARE ESTABLISHMENT,LD - Hunts Locality - Cost of Care,LD - Huntingdonshire - Care,Supported Living
Cambridgeshire County Council,01-Oct-21,51301651518,-774.02,FLORIDA AVENUE (VOYAGE),CARE ESTABLISHMENT,LD - Hunts Locality - Cost of Care,LD - Huntingdonshire - Care,Supported Living
Cambridgeshire County Council,01-Oct-21,51301651518,-774.02,FLORIDA AVENUE (VOYAGE),CARE ESTABLISHMENT,LD - Hunts Locality - Cost of Care,LD - Huntingdonshire - Care,Supported Living
